Workbook

Sheet INGRESO DE DATOS
O2: 24 years | P2: FALSE
O3: Coaseguro (Panamá) | P3: FALSE
O11: Descuento 24 años (por edad) | S11: Type | T11: Nuevo Negocio
O12: age | P12: Discount (%) | Q12: Parameter | T12: Renovación
O13: 24 | P13: 35 | Q13: =1-P13/100 -> 0.65
O14: 25 | P14: 30 | Q14: =1-P14/100 -> 0.7
O15: 26 | P15: 25 | Q15: 0.75
O16: 27 | P16: 20 | Q16: 0.8
O17: 28 | P17: 15 | Q17: 0.85
O18: 29 | P18: 6 | Q18: 0.94
O19: All ages | P19: 0 | Q19: 1 | S19: Type selected | T19: 2
H21: FALSE
O22: NEW BUSINESS DISCOUNT (ENTRADA MANUAL)
O23: Ultimate | P23: Elite | Q23: Premier | R23: Select | S23: Major Medical
O24: 0 | P24: 0 | Q24: 0 | R24: 0 | S24: 0
O30: Descuento de 24 años: | P30: =IF(P2,_xlfn.SWITCH(C43,O13,Q13,O14,Q14,O15,Q15,O16,Q16,O17,Q17,O18,Q18,Q19),Q19) -> 1
O32: Descuento por variante de coaseguro | P32: =IF(P3=TRUE,0.25,1) -> 1
O35: Descuento si es nuevo negocio:
A37: Nombre del Asegurado Titular: | C37: John Doe | O37: NEW BUSINESS DISCOUNT (MULTIPLICATION FACTOR)
O38: Ultimate | P38: Elite | Q38: Premier | R38: Select | S38: Major Medical
A39: Número de adultos en la póliza: | C39: 2 | E39: Número de dependientes menores de 16 años: | H39: Número de dependientes menores de 10 años: | O39: =IF($T$19=1,(O24/100),0) -> 0 | P39: =IF($T$19=1,(P24/100),0) -> 0 | Q39: =IF($T$19=1,(Q24/100),0) -> 0 | R39: =IF($T$19=1,(R24/100),0) -> 0 | S39: =IF($T$19=1,(S24/100),0) -> 0
A41: Número total de dependientes en la póliza: | C41: 2
E42: 1 | H42: 1 | O42: Descuento combinado 24 años y Nuevo Negocio
A43: Edad del Asegurado Titular: | C43: 32
A45: Edad del/la cónyuge: | C45: 46 | O45: NEW BUSINESS DISCOUNT
O46: Ultimate | P46: Elite | Q46: Premier | R46: Select | S46: Major Medical
O47: =(1-O39)*$P$30 -> 1 | P47: =(1-P39)*$P$30 -> 1 | Q47: =(1-Q39)*$P$30 -> 1 | R47: 1 | S47: 1

Sheet Bupa Global Ultimate
C1: FALSE | H1: RESUMEN DE BENEFICIOS | O1: RESUMEN DE BENEFICIOS | V1: RESUMEN DE BENEFICIOS
A5: Cotización de Seguro Médico Internacional Bupa Global Ultimate Health Plan Tarifas en US$ | Validas: 1 de enero de 2024
A13: Nombre del Asegurado Titular | B13: =+'INGRESO DE DATOS'!$C$37 -> John Doe
A15: Número de adultos en la póliza | B15: =+'INGRESO DE DATOS'!$C$41 -> 2
A17: Número de Dependientes en la póliza | B17: =+'INGRESO DE DATOS'!$C$39 -> 2 | C17: =IF('INGRESO DE DATOS'!$P$2=TRUE, "Cotización para dependiente de 24 años","") -> 
A19: Número de Dependientes menores de 16 años | B19: =+'INGRESO DE DATOS'!$E$42 -> 1
A21: Edad del Asegurado Titular | B21: =+'INGRESO DE DATOS'!$C$43 -> 32 | C21: Edad del/la conyuge | D21: =+'INGRESO DE DATOS'!$C$45 -> 46
A23: Fecha de la cotización | B23: =NOW() -> 2024-01-09T15:15:16.520
A26: DEDUCIBLES | C26: PLAN 1 | D26: PLAN 2 | E26: PLAN 3
A27: En el país de residencia | C27: $0 | D27: 1000 | E27: 2000
A28: Fuera del país de residencia | C28: $0 | D28: 1000 | E28: 2000
A30: TARIFAS ANUALES
A31: Prima para Asegurado Titular | C31: =VLOOKUP($B$21,Tablas!$A$912:$G$978,3,TRUE) -> 28872 | D31: =VLOOKUP($B$21,Tablas!$A$912:$G$978,4,TRUE) -> 18629 | E31: =VLOOKUP($B$21,Tablas!$A$912:$G$978,5,TRUE) -> 0
A32: Prima para conyuge | C32: =IF($B$17=1,0,(VLOOKUP($D$21,Tablas!$A$912:$G$978,3,TRUE))) -> 40528 | D32: =IF($B$17=1,0,(VLOOKUP($D$21,Tablas!$A$912:$G$978,4,TRUE))) -> 26149 | E32: =IF($B$17=1,0,(VLOOKUP($D$21,Tablas!$A$912:$G$978,5,TRUE))) -> 0
A33: Prima para hijo (s) | C33: =IF($B$17=1, (IF($B$15=0, 0, (IF($B$19>$B$15, (VLOOKUP($B$15,Tablas!$A$979:$G$981,3,TRUE)), (IF($B$15>4,(IF($B$19=0, (VLOOKUP(3,Tablas!$A$979:$G$981,3,TRUE)), (IF($B$19=1, (VLOOKUP(3,Tablas!$A$979:$G$981,3,TRUE)), (IF($B$19=2, (VLOOKUP(3,Tablas!$A$979:$G$981,3,TRUE)), (VLOOKUP(3,Tablas!$A$979:$G$981,3,TRUE)))))))), (IF($B$15=4,(IF(4-$B$19=0,(VLOOKUP(2,Tablas!$A$979:$G$981,3,TRUE)), (IF(4-$B$19=1,(VLOOKUP(2,Tablas!$A$979:$G$981,3,TRUE)), (IF(4-$B$19=2, (VLOOKUP(2,Tablas!$A$979:$G$981,3,TRUE)), (VLOOKUP(3,Tablas!$A$979:$G$981,3,TRUE)))))))), (IF($B$15=3,(IF(3-$B$19=0,(VLOOKUP(1,Tablas!$A$979:$G$981,3,TRUE)), (IF(3-$B$19=1,(VLOOKUP(1,Tablas!$A$979:$G$981,3,TRUE)), (IF(3-$B$19=2, (VLOOKUP(2,Tablas!$A$979:$G$981,3,TRUE)), (VLOOKUP(3,Tablas!$A$979:$G$981,3,TRUE)))))))), (IF($B$15=2,(IF(2-$B$19=0, 0, (IF(2-$B$19=1,(VLOOKUP(1,Tablas!$A$979:$G$981,3,TRUE)), (IF(2-$B$19=2, (VLOOKUP(2,Tablas!$A$979:$G$981,3,TRUE)), 0)))))), (IF($B$15=1,(IF(1-$B$19=0, 0, (IF(1-$B$19=1,(VLOOKUP(1,Tablas!$A$979:$G$981,3,TRUE)),0)))),0)))))))))))))), (IF($B$15=0, 0, (IF($B$19>$B$15, (VLOOKUP($B$15,Tablas!$A$979:$G$981,3,TRUE)), (IF($B$15=4,(IF(4-$B$19=0, 0, (IF(4-$B$19=1, (VLOOKUP(1,Tablas!$A$979:$G$981,3,TRUE)), (IF(4-$B$19=2, (VLOOKUP(2,Tablas!$A$979:$G$981,3,TRUE)), (IF(4-$B$19=3, (VLOOKUP(3,Tablas!$A$979:$G$981,3,TRUE)), (IF(4-$B$19=4, (VLOOKUP(3,Tablas!$A$979:$G$981,3,TRUE)), 0)))))))))), (IF($B$15=5,(IF(5-$B$19=0, (VLOOKUP(1,Tablas!$A$979:$G$981,3,TRUE)), (IF(5-$B$19=1, (VLOOKUP(1,Tablas!$A$979:$G$981,3,TRUE)), (IF(5-$B$19=2, (VLOOKUP(2,Tablas!$A$979:$G$981,3,TRUE)), (IF(5-$B$19=3, (VLOOKUP(3,Tablas!$A$979:$G$981,3,TRUE)), (IF(5-$B$19=4, (VLOOKUP(3,Tablas!$A$979:$G$981,3,TRUE)), (VLOOKUP(3,Tablas!$A$979:$G$981,3,TRUE)))))))))))), (IF($B$15=6,(IF(6-$B$19=0, (VLOOKUP(2,Tablas!$A$979:$G$981,3,TRUE)), (IF(6-$B$19=1, (VLOOKUP(2,Tablas!$A$979:$G$981,3,TRUE)), (IF(6-$B$19=2, (VLOOKUP(2,Tablas!$A$979:$G$981,3,TRUE)), (IF(6-$B$19=3, (VLOOKUP(3,Tablas!$A$979:$G$981,3,TRUE)), (IF(6-$B$19=4, (VLOOKUP(3,Tablas!$A$979:$G$981,3,TRUE)), (VLOOKUP(3,Tablas!$A$979:$G$981,3,TRUE)))))))))))), (IF($B$15>6,(IF(7-$B$19=0, (VLOOKUP(3,Tablas!$A$979:$G$981,3,TRUE)), (IF(7-$B$19=1, (VLOOKUP(3,Tablas!$A$979:$G$981,3,TRUE)), (IF(7-$B$19=2, (VLOOKUP(3,Tablas!$A$979:$G$981,3,TRUE)), (IF(7-$B$19=3, (VLOOKUP(3,Tablas!$A$979:$G$981,3,TRUE)), (IF(7-$B$19=4, (VLOOKUP(3,Tablas!$A$979:$G$981,3,TRUE)), (VLOOKUP(3,Tablas!$A$979:$G$981,3,TRUE)))))))))))), (IF($B$15=3,(IF(3-$B$19=0,0, (IF(3-$B$19=1,(VLOOKUP(1,Tablas!$A$979:$G$981,3,TRUE)), (IF(3-$B$19=2, (VLOOKUP(2,Tablas!$A$979:$G$981,3,TRUE)), (VLOOKUP(3,Tablas!$A$979:$G$981,3,TRUE)))))))), (IF($B$15=2,(IF(2-$B$19=0, 0, (IF(2-$B$19=1,(VLOOKUP(1,Tablas!$A$979:$G$981,3,TRUE)), (IF(2-$B$19=2, (VLOOKUP(2,Tablas!$A$979:$G$981,3,TRUE)), 0)))))), (IF($B$15=1,(IF(1-$B$19=0, 0, (IF(1-$B$19=1,(VLOOKUP(1,Tablas!$A$979:$G$981,3,TRUE)),0)))),0))))))))))))))))))) -> 10149 | D33: =IF($B$17=1, (IF($B$15=0, 0, (IF($B$19>$B$15, (VLOOKUP($B$15,Tablas!$A$979:$G$981,4,TRUE)), (IF($B$15>4,(IF($B$19=0, (VLOOKUP(3,Tablas!$A$979:$G$981,4,TRUE)), (IF($B$19=1, (VLOOKUP(3,Tablas!$A$979:$G$981,4,TRUE)), (IF($B$19=2, (VLOOKUP(3,Tablas!$A$979:$G$981,4,TRUE)), (VLOOKUP(3,Tablas!$A$979:$G$981,4,TRUE)))))))), (IF($B$15=4,(IF(4-$B$19=0,(VLOOKUP(2,Tablas!$A$979:$G$981,4,TRUE)), (IF(4-$B$19=1,(VLOOKUP(2,Tablas!$A$979:$G$981,4,TRUE)), (IF(4-$B$19=2, (VLOOKUP(2,Tablas!$A$979:$G$981,4,TRUE)), (VLOOKUP(3,Tablas!$A$979:$G$981,4,TRUE)))))))), (IF($B$15=3,(IF(3-$B$19=0,(VLOOKUP(1,Tablas!$A$979:$G$981,4,TRUE)), (IF(3-$B$19=1,(VLOOKUP(1,Tablas!$A$979:$G$981,4,TRUE)), (IF(3-$B$19=2, (VLOOKUP(2,Tablas!$A$979:$G$981,4,TRUE)), (VLOOKUP(3,Tablas!$A$979:$G$981,4,TRUE)))))))), (IF($B$15=2,(IF(2-$B$19=0, 0, (IF(2-$B$19=1,(VLOOKUP(1,Tablas!$A$979:$G$981,4,TRUE)), (IF(2-$B$19=2, (VLOOKUP(2,Tablas!$A$979:$G$981,4,TRUE)), 0)))))), (IF($B$15=1,(IF(1-$B$19=0, 0, (IF(1-$B$19=1,(VLOOKUP(1,Tablas!$A$979:$G$981,4,TRUE)),0)))),0)))))))))))))), (IF($B$15=0, 0, (IF($B$19>$B$15, (VLOOKUP($B$15,Tablas!$A$979:$G$981,4,TRUE)), (IF($B$15=4,(IF(4-$B$19=0, 0, (IF(4-$B$19=1, (VLOOKUP(1,Tablas!$A$979:$G$981,4,TRUE)), (IF(4-$B$19=2, (VLOOKUP(2,Tablas!$A$979:$G$981,4,TRUE)), (IF(4-$B$19=3, (VLOOKUP(3,Tablas!$A$979:$G$981,4,TRUE)), (IF(4-$B$19=4, (VLOOKUP(3,Tablas!$A$979:$G$981,4,TRUE)), 0)))))))))), (IF($B$15=5,(IF(5-$B$19=0, (VLOOKUP(1,Tablas!$A$979:$G$981,4,TRUE)), (IF(5-$B$19=1, (VLOOKUP(1,Tablas!$A$979:$G$981,4,TRUE)), (IF(5-$B$19=2, (VLOOKUP(2,Tablas!$A$979:$G$981,4,TRUE)), (IF(5-$B$19=3, (VLOOKUP(3,Tablas!$A$979:$G$981,4,TRUE)), (IF(5-$B$19=4, (VLOOKUP(3,Tablas!$A$979:$G$981,4,TRUE)), (VLOOKUP(3,Tablas!$A$979:$G$981,4,TRUE)))))))))))), (IF($B$15=6,(IF(6-$B$19=0, (VLOOKUP(2,Tablas!$A$979:$G$981,4,TRUE)), (IF(6-$B$19=1, (VLOOKUP(2,Tablas!$A$979:$G$981,4,TRUE)), (IF(6-$B$19=2, (VLOOKUP(2,Tablas!$A$979:$G$981,4,TRUE)), (IF(6-$B$19=3, (VLOOKUP(3,Tablas!$A$979:$G$981,4,TRUE)), (IF(6-$B$19=4, (VLOOKUP(3,Tablas!$A$979:$G$981,4,TRUE)), (VLOOKUP(3,Tablas!$A$979:$G$981,4,TRUE)))))))))))), (IF($B$15>6,(IF(7-$B$19=0, (VLOOKUP(3,Tablas!$A$979:$G$981,4,TRUE)), (IF(7-$B$19=1, (VLOOKUP(3,Tablas!$A$979:$G$981,4,TRUE)), (IF(7-$B$19=2, (VLOOKUP(3,Tablas!$A$979:$G$981,4,TRUE)), (IF(7-$B$19=3, (VLOOKUP(3,Tablas!$A$979:$G$981,4,TRUE)), (IF(7-$B$19=4, (VLOOKUP(3,Tablas!$A$979:$G$981,4,TRUE)), (VLOOKUP(3,Tablas!$A$979:$G$981,4,TRUE)))))))))))), (IF($B$15=3,(IF(3-$B$19=0,0, (IF(3-$B$19=1,(VLOOKUP(1,Tablas!$A$979:$G$981,4,TRUE)), (IF(3-$B$19=2, (VLOOKUP(2,Tablas!$A$979:$G$981,4,TRUE)), (VLOOKUP(3,Tablas!$A$979:$G$981,4,TRUE)))))))), (IF($B$15=2,(IF(2-$B$19=0, 0, (IF(2-$B$19=1,(VLOOKUP(1,Tablas!$A$979:$G$981,4,TRUE)), (IF(2-$B$19=2, (VLOOKUP(2,Tablas!$A$979:$G$981,4,TRUE)), 0)))))), (IF($B$15=1,(IF(1-$B$19=0, 0, (IF(1-$B$19=1,(VLOOKUP(1,Tablas!$A$979:$G$981,4,TRUE)),0)))),0))))))))))))))))))) -> 6547 | E33: =IF($B$17=1, (IF($B$15=0, 0, (IF($B$19>$B$15, (VLOOKUP($B$15,Tablas!$A$979:$G$981,5,TRUE)), (IF($B$15>4,(IF($B$19=0, (VLOOKUP(3,Tablas!$A$979:$G$981,5,TRUE)), (IF($B$19=1, (VLOOKUP(3,Tablas!$A$979:$G$981,5,TRUE)), (IF($B$19=2, (VLOOKUP(3,Tablas!$A$979:$G$981,5,TRUE)), (VLOOKUP(3,Tablas!$A$979:$G$981,5,TRUE)))))))), (IF($B$15=4,(IF(4-$B$19=0,(VLOOKUP(2,Tablas!$A$979:$G$981,5,TRUE)), (IF(4-$B$19=1,(VLOOKUP(2,Tablas!$A$979:$G$981,5,TRUE)), (IF(4-$B$19=2, (VLOOKUP(2,Tablas!$A$979:$G$981,5,TRUE)), (VLOOKUP(3,Tablas!$A$979:$G$981,5,TRUE)))))))), (IF($B$15=3,(IF(3-$B$19=0,(VLOOKUP(1,Tablas!$A$979:$G$981,5,TRUE)), (IF(3-$B$19=1,(VLOOKUP(1,Tablas!$A$979:$G$981,5,TRUE)), (IF(3-$B$19=2, (VLOOKUP(2,Tablas!$A$979:$G$981,5,TRUE)), (VLOOKUP(3,Tablas!$A$979:$G$981,5,TRUE)))))))), (IF($B$15=2,(IF(2-$B$19=0, 0, (IF(2-$B$19=1,(VLOOKUP(1,Tablas!$A$979:$G$981,5,TRUE)), (IF(2-$B$19=2, (VLOOKUP(2,Tablas!$A$979:$G$981,5,TRUE)), 0)))))), (IF($B$15=1,(IF(1-$B$19=0, 0, (IF(1-$B$19=1,(VLOOKUP(1,Tablas!$A$979:$G$981,5,TRUE)),0)))),0)))))))))))))), (IF($B$15=0, 0, (IF($B$19>$B$15, (VLOOKUP($B$15,Tablas!$A$979:$G$981,5,TRUE)), (IF($B$15=4,(IF(4-$B$19=0, 0, (IF(4-$B$19=1, (VLOOKUP(1,Tablas!$A$979:$G$981,5,TRUE)), (IF(4-$B$19=2, (VLOOKUP(2,Tablas!$A$979:$G$981,5,TRUE)), (IF(4-$B$19=3, (VLOOKUP(3,Tablas!$A$979:$G$981,5,TRUE)), (IF(4-$B$19=4, (VLOOKUP(3,Tablas!$A$979:$G$981,5,TRUE)), 0)))))))))), (IF($B$15=5,(IF(5-$B$19=0, (VLOOKUP(1,Tablas!$A$979:$G$981,5,TRUE)), (IF(5-$B$19=1, (VLOOKUP(1,Tablas!$A$979:$G$981,5,TRUE)), (IF(5-$B$19=2, (VLOOKUP(2,Tablas!$A$979:$G$981,5,TRUE)), (IF(5-$B$19=3, (VLOOKUP(3,Tablas!$A$979:$G$981,5,TRUE)), (IF(5-$B$19=4, (VLOOKUP(3,Tablas!$A$979:$G$981,5,TRUE)), (VLOOKUP(3,Tablas!$A$979:$G$981,5,TRUE)))))))))))), (IF($B$15=6,(IF(6-$B$19=0, (VLOOKUP(2,Tablas!$A$979:$G$981,5,TRUE)), (IF(6-$B$19=1, (VLOOKUP(2,Tablas!$A$979:$G$981,5,TRUE)), (IF(6-$B$19=2, (VLOOKUP(2,Tablas!$A$979:$G$981,5,TRUE)), (IF(6-$B$19=3, (VLOOKUP(3,Tablas!$A$979:$G$981,5,TRUE)), (IF(6-$B$19=4, (VLOOKUP(3,Tablas!$A$979:$G$981,5,TRUE)), (VLOOKUP(3,Tablas!$A$979:$G$981,5,TRUE)))))))))))), (IF($B$15>6,(IF(7-$B$19=0, (VLOOKUP(3,Tablas!$A$979:$G$981,5,TRUE)), (IF(7-$B$19=1, (VLOOKUP(3,Tablas!$A$979:$G$981,5,TRUE)), (IF(7-$B$19=2, (VLOOKUP(3,Tablas!$A$979:$G$981,5,TRUE)), (IF(7-$B$19=3, (VLOOKUP(3,Tablas!$A$979:$G$981,5,TRUE)), (IF(7-$B$19=4, (VLOOKUP(3,Tablas!$A$979:$G$981,5,TRUE)), (VLOOKUP(3,Tablas!$A$979:$G$981,5,TRUE)))))))))))), (IF($B$15=3,(IF(3-$B$19=0,0, (IF(3-$B$19=1,(VLOOKUP(1,Tablas!$A$979:$G$981,5,TRUE)), (IF(3-$B$19=2, (VLOOKUP(2,Tablas!$A$979:$G$981,5,TRUE)), (VLOOKUP(3,Tablas!$A$979:$G$981,5,TRUE)))))))), (IF($B$15=2,(IF(2-$B$19=0, 0, (IF(2-$B$19=1,(VLOOKUP(1,Tablas!$A$979:$G$981,5,TRUE)), (IF(2-$B$19=2, (VLOOKUP(2,Tablas!$A$979:$G$981,5,TRUE)), 0)))))), (IF($B$15=1,(IF(1-$B$19=0, 0, (IF(1-$B$19=1,(VLOOKUP(1,Tablas!$A$979:$G$981,5,TRUE)),0)))),0))))))))))))))))))) -> 0
A34: Total de Prima neta | C34: =SUM(C31:C33) -> 79549 | D34: =SUM(D31:D33) -> 51325 | E34: 0
A35: Tarifa administrativa anual | C35: 75 | D35: 75 | E35: 75
A36: VAT (5%) | E36: =+E34*5% -> 0
A37: ITBMS (7%) | E37: =+E35*7% -> 5.25
A38: TOTAL ANUAL | C38: =SUM(C34:C37) -> 79624 | D38: =SUM(D34:D37) -> 51400 | E38: 80.25
A39: Ahorros en tarifas de prima para Dependientes | C39: =IF($B$17=1,IF($B$15=0,0,IF($B$19=0,0,IF($B$19=1,(VLOOKUP(1,Tablas!$A$979:$G$981,3,TRUE)),(VLOOKUP(2,Tablas!$A$979:$G$981,3,TRUE))))), IF($B$15=0,0,IF($B$19=0,0,IF($B$19=1,(VLOOKUP(1,Tablas!$A$979:$G$981,3,TRUE)),IF($B$19=2,(VLOOKUP(2,Tablas!$A$979:$G$981,3,TRUE)), (VLOOKUP(3,Tablas!$A$979:$G$981,3,TRUE))))))) -> 10149 | D39: =IF($B$17=1,IF($B$15=0,0,IF($B$19=0,0,IF($B$19=1,(VLOOKUP(1,Tablas!$A$979:$G$981,4,TRUE)),(VLOOKUP(2,Tablas!$A$979:$G$981,4,TRUE))))), IF($B$15=0,0,IF($B$19=0,0,IF($B$19=1,(VLOOKUP(1,Tablas!$A$979:$G$981,4,TRUE)),IF($B$19=2,(VLOOKUP(2,Tablas!$A$979:$G$981,4,TRUE)), (VLOOKUP(3,Tablas!$A$979:$G$981,4,TRUE))))))) -> 6547 | E39: =IF($B$17=1,IF($B$15=0,0,IF($B$19=0,0,IF($B$19=1,(VLOOKUP(1,Tablas!$A$979:$G$981,5,TRUE)),(VLOOKUP(2,Tablas!$A$979:$G$981,5,TRUE))))), IF($B$15=0,0,IF($B$19=0,0,IF($B$19=1,(VLOOKUP(1,Tablas!$A$979:$G$981,5,TRUE)),IF($B$19=2,(VLOOKUP(2,Tablas!$A$979:$G$981,5,TRUE)), (VLOOKUP(3,Tablas!$A$979:$G$981,5,TRUE))))))) -> 0
A41: TARIFAS SEMIANUALES
A42: Prima para Asegurado Titular | C42: =VLOOKUP($B$21,Tablas!$A$1439:$G$1505,3,TRUE) -> 15302.16 | D42: =VLOOKUP($B$21,Tablas!$A$1439:$G$1505,4,TRUE) -> 9873.37 | E42: =VLOOKUP($B$21,Tablas!$A$1439:$G$1505,5,TRUE) -> 0
A43: Prima para conyuge | C43: =IF($B$17=1,0,(VLOOKUP($D$21,Tablas!$A$1439:$G$1505,3,TRUE))) -> 21479.84 | D43: =IF($B$17=1,0,(VLOOKUP($D$21,Tablas!$A$1439:$G$1505,4,TRUE))) -> 13858.97 | E43: =IF($B$17=1,0,(VLOOKUP($D$21,Tablas!$A$1439:$G$1505,5,TRUE))) -> 0
A44: Prima para hijo (s) | C44: =IF($B$17=1, (IF($B$15=0, 0, (IF($B$19>$B$15, (VLOOKUP($B$15,Tablas!$A$1506:$G$1508,3,TRUE)), (IF($B$15>4,(IF($B$19=0, (VLOOKUP(3,Tablas!$A$1506:$G$1508,3,TRUE)), (IF($B$19=1, (VLOOKUP(3,Tablas!$A$1506:$G$1508,3,TRUE)), (IF($B$19=2, (VLOOKUP(3,Tablas!$A$1506:$G$1508,3,TRUE)), (VLOOKUP(3,Tablas!$A$1506:$G$1508,3,TRUE)))))))), (IF($B$15=4,(IF(4-$B$19=0,(VLOOKUP(2,Tablas!$A$1506:$G$1508,3,TRUE)), (IF(4-$B$19=1,(VLOOKUP(2,Tablas!$A$1506:$G$1508,3,TRUE)), (IF(4-$B$19=2, (VLOOKUP(2,Tablas!$A$1506:$G$1508,3,TRUE)), (VLOOKUP(3,Tablas!$A$1506:$G$1508,3,TRUE)))))))), (IF($B$15=3,(IF(3-$B$19=0,(VLOOKUP(1,Tablas!$A$1506:$G$1508,3,TRUE)), (IF(3-$B$19=1,(VLOOKUP(1,Tablas!$A$1506:$G$1508,3,TRUE)), (IF(3-$B$19=2, (VLOOKUP(2,Tablas!$A$1506:$G$1508,3,TRUE)), (VLOOKUP(3,Tablas!$A$1506:$G$1508,3,TRUE)))))))), (IF($B$15=2,(IF(2-$B$19=0, 0, (IF(2-$B$19=1,(VLOOKUP(1,Tablas!$A$1506:$G$1508,3,TRUE)), (IF(2-$B$19=2, (VLOOKUP(2,Tablas!$A$1506:$G$1508,3,TRUE)), 0)))))), (IF($B$15=1,(IF(1-$B$19=0, 0, (IF(1-$B$19=1,(VLOOKUP(1,Tablas!$A$1506:$G$1508,3,TRUE)),0)))),0)))))))))))))), (IF($B$15=0, 0, (IF($B$19>$B$15, (VLOOKUP($B$15,Tablas!$A$1506:$G$1508,3,TRUE)), (IF($B$15=4,(IF(4-$B$19=0, 0, (IF(4-$B$19=1, (VLOOKUP(1,Tablas!$A$1506:$G$1508,3,TRUE)), (IF(4-$B$19=2, (VLOOKUP(2,Tablas!$A$1506:$G$1508,3,TRUE)), (IF(4-$B$19=3, (VLOOKUP(3,Tablas!$A$1506:$G$1508,3,TRUE)), (IF(4-$B$19=4, (VLOOKUP(3,Tablas!$A$1506:$G$1508,3,TRUE)), 0)))))))))), (IF($B$15=5,(IF(5-$B$19=0, (VLOOKUP(1,Tablas!$A$1506:$G$1508,3,TRUE)), (IF(5-$B$19=1, (VLOOKUP(1,Tablas!$A$1506:$G$1508,3,TRUE)), (IF(5-$B$19=2, (VLOOKUP(2,Tablas!$A$1506:$G$1508,3,TRUE)), (IF(5-$B$19=3, (VLOOKUP(3,Tablas!$A$1506:$G$1508,3,TRUE)), (IF(5-$B$19=4, (VLOOKUP(3,Tablas!$A$1506:$G$1508,3,TRUE)), (VLOOKUP(3,Tablas!$A$1506:$G$1508,3,TRUE)))))))))))), (IF($B$15=6,(IF(6-$B$19=0, (VLOOKUP(2,Tablas!$A$1506:$G$1508,3,TRUE)), (IF(6-$B$19=1, (VLOOKUP(2,Tablas!$A$1506:$G$1508,3,TRUE)), (IF(6-$B$19=2, (VLOOKUP(2,Tablas!$A$1506:$G$1508,3,TRUE)), (IF(6-$B$19=3, (VLOOKUP(3,Tablas!$A$1506:$G$1508,3,TRUE)), (IF(6-$B$19=4, (VLOOKUP(3,Tablas!$A$1506:$G$1508,3,TRUE)), (VLOOKUP(3,Tablas!$A$1506:$G$1508,3,TRUE)))))))))))), (IF($B$15>6,(IF(7-$B$19=0, (VLOOKUP(3,Tablas!$A$1506:$G$1508,3,TRUE)), (IF(7-$B$19=1, (VLOOKUP(3,Tablas!$A$1506:$G$1508,3,TRUE)), (IF(7-$B$19=2, (VLOOKUP(3,Tablas!$A$1506:$G$1508,3,TRUE)), (IF(7-$B$19=3, (VLOOKUP(3,Tablas!$A$1506:$G$1508,3,TRUE)), (IF(7-$B$19=4, (VLOOKUP(3,Tablas!$A$1506:$G$1508,3,TRUE)), (VLOOKUP(3,Tablas!$A$1506:$G$1508,3,TRUE)))))))))))), (IF($B$15=3,(IF(3-$B$19=0,0, (IF(3-$B$19=1,(VLOOKUP(1,Tablas!$A$1506:$G$1508,3,TRUE)), (IF(3-$B$19=2, (VLOOKUP(2,Tablas!$A$1506:$G$1508,3,TRUE)), (VLOOKUP(3,Tablas!$A$1506:$G$1508,3,TRUE)))))))), (IF($B$15=2,(IF(2-$B$19=0, 0, (IF(2-$B$19=1,(VLOOKUP(1,Tablas!$A$1506:$G$1508,3,TRUE)), (IF(2-$B$19=2, (VLOOKUP(2,Tablas!$A$1506:$G$1508,3,TRUE)), 0)))))), (IF($B$15=1,(IF(1-$B$19=0, 0, (IF(1-$B$19=1,(VLOOKUP(1,Tablas!$A$1506:$G$1508,3,TRUE)),0)))),0))))))))))))))))))) -> 5378.97 | D44: =IF($B$17=1, (IF($B$15=0, 0, (IF($B$19>$B$15, (VLOOKUP($B$15,Tablas!$A$1506:$G$1508,4,TRUE)), (IF($B$15>4,(IF($B$19=0, (VLOOKUP(3,Tablas!$A$1506:$G$1508,4,TRUE)), (IF($B$19=1, (VLOOKUP(3,Tablas!$A$1506:$G$1508,4,TRUE)), (IF($B$19=2, (VLOOKUP(3,Tablas!$A$1506:$G$1508,4,TRUE)), (VLOOKUP(3,Tablas!$A$1506:$G$1508,4,TRUE)))))))), (IF($B$15=4,(IF(4-$B$19=0,(VLOOKUP(2,Tablas!$A$1506:$G$1508,4,TRUE)), (IF(4-$B$19=1,(VLOOKUP(2,Tablas!$A$1506:$G$1508,4,TRUE)), (IF(4-$B$19=2, (VLOOKUP(2,Tablas!$A$1506:$G$1508,4,TRUE)), (VLOOKUP(3,Tablas!$A$1506:$G$1508,4,TRUE)))))))), (IF($B$15=3,(IF(3-$B$19=0,(VLOOKUP(1,Tablas!$A$1506:$G$1508,4,TRUE)), (IF(3-$B$19=1,(VLOOKUP(1,Tablas!$A$1506:$G$1508,4,TRUE)), (IF(3-$B$19=2, (VLOOKUP(2,Tablas!$A$1506:$G$1508,4,TRUE)), (VLOOKUP(3,Tablas!$A$1506:$G$1508,4,TRUE)))))))), (IF($B$15=2,(IF(2-$B$19=0, 0, (IF(2-$B$19=1,(VLOOKUP(1,Tablas!$A$1506:$G$1508,4,TRUE)), (IF(2-$B$19=2, (VLOOKUP(2,Tablas!$A$1506:$G$1508,4,TRUE)), 0)))))), (IF($B$15=1,(IF(1-$B$19=0, 0, (IF(1-$B$19=1,(VLOOKUP(1,Tablas!$A$1506:$G$1508,4,TRUE)),0)))),0)))))))))))))), (IF($B$15=0, 0, (IF($B$19>$B$15, (VLOOKUP($B$15,Tablas!$A$1506:$G$1508,4,TRUE)), (IF($B$15=4,(IF(4-$B$19=0, 0, (IF(4-$B$19=1, (VLOOKUP(1,Tablas!$A$1506:$G$1508,4,TRUE)), (IF(4-$B$19=2, (VLOOKUP(2,Tablas!$A$1506:$G$1508,4,TRUE)), (IF(4-$B$19=3, (VLOOKUP(3,Tablas!$A$1506:$G$1508,4,TRUE)), (IF(4-$B$19=4, (VLOOKUP(3,Tablas!$A$1506:$G$1508,4,TRUE)), 0)))))))))), (IF($B$15=5,(IF(5-$B$19=0, (VLOOKUP(1,Tablas!$A$1506:$G$1508,4,TRUE)), (IF(5-$B$19=1, (VLOOKUP(1,Tablas!$A$1506:$G$1508,4,TRUE)), (IF(5-$B$19=2, (VLOOKUP(2,Tablas!$A$1506:$G$1508,4,TRUE)), (IF(5-$B$19=3, (VLOOKUP(3,Tablas!$A$1506:$G$1508,4,TRUE)), (IF(5-$B$19=4, (VLOOKUP(3,Tablas!$A$1506:$G$1508,4,TRUE)), (VLOOKUP(3,Tablas!$A$1506:$G$1508,4,TRUE)))))))))))), (IF($B$15=6,(IF(6-$B$19=0, (VLOOKUP(2,Tablas!$A$1506:$G$1508,4,TRUE)), (IF(6-$B$19=1, (VLOOKUP(2,Tablas!$A$1506:$G$1508,4,TRUE)), (IF(6-$B$19=2, (VLOOKUP(2,Tablas!$A$1506:$G$1508,4,TRUE)), (IF(6-$B$19=3, (VLOOKUP(3,Tablas!$A$1506:$G$1508,4,TRUE)), (IF(6-$B$19=4, (VLOOKUP(3,Tablas!$A$1506:$G$1508,4,TRUE)), (VLOOKUP(3,Tablas!$A$1506:$G$1508,4,TRUE)))))))))))), (IF($B$15>6,(IF(7-$B$19=0, (VLOOKUP(3,Tablas!$A$1506:$G$1508,4,TRUE)), (IF(7-$B$19=1, (VLOOKUP(3,Tablas!$A$1506:$G$1508,4,TRUE)), (IF(7-$B$19=2, (VLOOKUP(3,Tablas!$A$1506:$G$1508,4,TRUE)), (IF(7-$B$19=3, (VLOOKUP(3,Tablas!$A$1506:$G$1508,4,TRUE)), (IF(7-$B$19=4, (VLOOKUP(3,Tablas!$A$1506:$G$1508,4,TRUE)), (VLOOKUP(3,Tablas!$A$1506:$G$1508,4,TRUE)))))))))))), (IF($B$15=3,(IF(3-$B$19=0,0, (IF(3-$B$19=1,(VLOOKUP(1,Tablas!$A$1506:$G$1508,4,TRUE)), (IF(3-$B$19=2, (VLOOKUP(2,Tablas!$A$1506:$G$1508,4,TRUE)), (VLOOKUP(3,Tablas!$A$1506:$G$1508,4,TRUE)))))))), (IF($B$15=2,(IF(2-$B$19=0, 0, (IF(2-$B$19=1,(VLOOKUP(1,Tablas!$A$1506:$G$1508,4,TRUE)), (IF(2-$B$19=2, (VLOOKUP(2,Tablas!$A$1506:$G$1508,4,TRUE)), 0)))))), (IF($B$15=1,(IF(1-$B$19=0, 0, (IF(1-$B$19=1,(VLOOKUP(1,Tablas!$A$1506:$G$1508,4,TRUE)),0)))),0))))))))))))))))))) -> 3469.91 | E44: =IF($B$17=1, (IF($B$15=0, 0, (IF($B$19>$B$15, (VLOOKUP($B$15,Tablas!$A$1506:$G$1508,5,TRUE)), (IF($B$15>4,(IF($B$19=0, (VLOOKUP(3,Tablas!$A$1506:$G$1508,5,TRUE)), (IF($B$19=1, (VLOOKUP(3,Tablas!$A$1506:$G$1508,5,TRUE)), (IF($B$19=2, (VLOOKUP(3,Tablas!$A$1506:$G$1508,5,TRUE)), (VLOOKUP(3,Tablas!$A$1506:$G$1508,5,TRUE)))))))), (IF($B$15=4,(IF(4-$B$19=0,(VLOOKUP(2,Tablas!$A$1506:$G$1508,5,TRUE)), (IF(4-$B$19=1,(VLOOKUP(2,Tablas!$A$1506:$G$1508,5,TRUE)), (IF(4-$B$19=2, (VLOOKUP(2,Tablas!$A$1506:$G$1508,5,TRUE)), (VLOOKUP(3,Tablas!$A$1506:$G$1508,5,TRUE)))))))), (IF($B$15=3,(IF(3-$B$19=0,(VLOOKUP(1,Tablas!$A$1506:$G$1508,5,TRUE)), (IF(3-$B$19=1,(VLOOKUP(1,Tablas!$A$1506:$G$1508,5,TRUE)), (IF(3-$B$19=2, (VLOOKUP(2,Tablas!$A$1506:$G$1508,5,TRUE)), (VLOOKUP(3,Tablas!$A$1506:$G$1508,5,TRUE)))))))), (IF($B$15=2,(IF(2-$B$19=0, 0, (IF(2-$B$19=1,(VLOOKUP(1,Tablas!$A$1506:$G$1508,5,TRUE)), (IF(2-$B$19=2, (VLOOKUP(2,Tablas!$A$1506:$G$1508,5,TRUE)), 0)))))), (IF($B$15=1,(IF(1-$B$19=0, 0, (IF(1-$B$19=1,(VLOOKUP(1,Tablas!$A$1506:$G$1508,5,TRUE)),0)))),0)))))))))))))), (IF($B$15=0, 0, (IF($B$19>$B$15, (VLOOKUP($B$15,Tablas!$A$1506:$G$1508,5,TRUE)), (IF($B$15=4,(IF(4-$B$19=0, 0, (IF(4-$B$19=1, (VLOOKUP(1,Tablas!$A$1506:$G$1508,5,TRUE)), (IF(4-$B$19=2, (VLOOKUP(2,Tablas!$A$1506:$G$1508,5,TRUE)), (IF(4-$B$19=3, (VLOOKUP(3,Tablas!$A$1506:$G$1508,5,TRUE)), (IF(4-$B$19=4, (VLOOKUP(3,Tablas!$A$1506:$G$1508,5,TRUE)), 0)))))))))), (IF($B$15=5,(IF(5-$B$19=0, (VLOOKUP(1,Tablas!$A$1506:$G$1508,5,TRUE)), (IF(5-$B$19=1, (VLOOKUP(1,Tablas!$A$1506:$G$1508,5,TRUE)), (IF(5-$B$19=2, (VLOOKUP(2,Tablas!$A$1506:$G$1508,5,TRUE)), (IF(5-$B$19=3, (VLOOKUP(3,Tablas!$A$1506:$G$1508,5,TRUE)), (IF(5-$B$19=4, (VLOOKUP(3,Tablas!$A$1506:$G$1508,5,TRUE)), (VLOOKUP(3,Tablas!$A$1506:$G$1508,5,TRUE)))))))))))), (IF($B$15=6,(IF(6-$B$19=0, (VLOOKUP(2,Tablas!$A$1506:$G$1508,5,TRUE)), (IF(6-$B$19=1, (VLOOKUP(2,Tablas!$A$1506:$G$1508,5,TRUE)), (IF(6-$B$19=2, (VLOOKUP(2,Tablas!$A$1506:$G$1508,5,TRUE)), (IF(6-$B$19=3, (VLOOKUP(3,Tablas!$A$1506:$G$1508,5,TRUE)), (IF(6-$B$19=4, (VLOOKUP(3,Tablas!$A$1506:$G$1508,5,TRUE)), (VLOOKUP(3,Tablas!$A$1506:$G$1508,5,TRUE)))))))))))), (IF($B$15>6,(IF(7-$B$19=0, (VLOOKUP(3,Tablas!$A$1506:$G$1508,5,TRUE)), (IF(7-$B$19=1, (VLOOKUP(3,Tablas!$A$1506:$G$1508,5,TRUE)), (IF(7-$B$19=2, (VLOOKUP(3,Tablas!$A$1506:$G$1508,5,TRUE)), (IF(7-$B$19=3, (VLOOKUP(3,Tablas!$A$1506:$G$1508,5,TRUE)), (IF(7-$B$19=4, (VLOOKUP(3,Tablas!$A$1506:$G$1508,5,TRUE)), (VLOOKUP(3,Tablas!$A$1506:$G$1508,5,TRUE)))))))))))), (IF($B$15=3,(IF(3-$B$19=0,0, (IF(3-$B$19=1,(VLOOKUP(1,Tablas!$A$1506:$G$1508,5,TRUE)), (IF(3-$B$19=2, (VLOOKUP(2,Tablas!$A$1506:$G$1508,5,TRUE)), (VLOOKUP(3,Tablas!$A$1506:$G$1508,5,TRUE)))))))), (IF($B$15=2,(IF(2-$B$19=0, 0, (IF(2-$B$19=1,(VLOOKUP(1,Tablas!$A$1506:$G$1508,5,TRUE)), (IF(2-$B$19=2, (VLOOKUP(2,Tablas!$A$1506:$G$1508,5,TRUE)), 0)))))), (IF($B$15=1,(IF(1-$B$19=0, 0, (IF(1-$B$19=1,(VLOOKUP(1,Tablas!$A$1506:$G$1508,5,TRUE)),0)))),0))))))))))))))))))) -> 0
A45: Total de Prima neta | C45: =SUM(C42:C44) -> 42160.97 | D45: =SUM(D42:D44) -> 27202.25 | E45: 0
A46: Tarifa administrativa anual | C46: 75 | D46: 75 | E46: 75
A47: VAT (5%)
A48: ITBMS (7%)
A49: TOTAL de primera cuota | C49: =SUM(C45:C48) -> 42235.97 | D49: =SUM(D45:D48) -> 27277.25 | E49: 75
A50: Costo de segunda cuota | C50: =C49-C46 -> 42160.97 | D50: =D49-D46 -> 27202.25 | E50: 0
A51: TOTAL ANUAL | C51: =C49+C50 -> 84396.94 | D51: =D49+D50 -> 54479.5 | E51: 75
A52: Ahorros en tarifas de prima para Dependientes | C52: =IF($B$17=1,IF($B$15=0,0,IF($B$19=0,0,IF($B$19=1,(VLOOKUP(1,Tablas!$A$1506:$G$1508,3,TRUE)),(VLOOKUP(2,Tablas!$A$1506:$G$1508,3,TRUE))))), IF($B$15=0,0,IF($B$19=0,0,IF($B$19=1,(VLOOKUP(1,Tablas!$A$1506:$G$1508,3,TRUE)),IF($B$19=2,(VLOOKUP(2,Tablas!$A$1506:$G$1508,3,TRUE)), (VLOOKUP(3,Tablas!$A$1506:$G$1508,3,TRUE))))))) -> 5378.97 | D52: =IF($B$17=1,IF($B$15=0,0,IF($B$19=0,0,IF($B$19=1,(VLOOKUP(1,Tablas!$A$1506:$G$1508,4,TRUE)),(VLOOKUP(2,Tablas!$A$1506:$G$1508,4,TRUE))))), IF($B$15=0,0,IF($B$19=0,0,IF($B$19=1,(VLOOKUP(1,Tablas!$A$1506:$G$1508,4,TRUE)),IF($B$19=2,(VLOOKUP(2,Tablas!$A$1506:$G$1508,4,TRUE)), (VLOOKUP(3,Tablas!$A$1506:$G$1508,4,TRUE))))))) -> 3469.91 | E52: =IF($B$17=1,IF($B$15=0,0,IF($B$19=0,0,IF($B$19=1,(VLOOKUP(1,Tablas!$A$1506:$G$1508,5,TRUE)),(VLOOKUP(2,Tablas!$A$1506:$G$1508,5,TRUE))))), IF($B$15=0,0,IF($B$19=0,0,IF($B$19=1,(VLOOKUP(1,Tablas!$A$1506:$G$1508,5,TRUE)),IF($B$19=2,(VLOOKUP(2,Tablas!$A$1506:$G$1508,5,TRUE)), (VLOOKUP(3,Tablas!$A$1506:$G$1508,5,TRUE))))))) -> 0
A54: TARIFAS TRIMESTRALES
A55: Prima para Asegurado Titular | C55: =VLOOKUP($B$21,Tablas!$A$1061:$G$1127,3,TRUE) -> 7939.8 | D55: =VLOOKUP($B$21,Tablas!$A$1061:$G$1127,4,TRUE) -> 5122.975 | E55: =VLOOKUP($B$21,Tablas!$A$1061:$G$1127,5,TRUE) -> 0
A56: Prima para conyuge | C56: =IF($B$17=1,0,(VLOOKUP($D$21,Tablas!$A$1061:$G$1127,3,TRUE))) -> 11145.2 | D56: =IF($B$17=1,0,(VLOOKUP($D$21,Tablas!$A$1061:$G$1127,4,TRUE))) -> 7190.975 | E56: =IF($B$17=1,0,(VLOOKUP($D$21,Tablas!$A$1061:$G$1127,5,TRUE))) -> 0
A57: Prima para hijo (s) | C57: =IF($B$17=1, (IF($B$15=0, 0, (IF($B$19>$B$15, (VLOOKUP($B$15,Tablas!$A$1128:$G$1130,3,TRUE)), (IF($B$15>4,(IF($B$19=0, (VLOOKUP(3,Tablas!$A$1128:$G$1130,3,TRUE)), (IF($B$19=1, (VLOOKUP(3,Tablas!$A$1128:$G$1130,3,TRUE)), (IF($B$19=2, (VLOOKUP(3,Tablas!$A$1128:$G$1130,3,TRUE)), (VLOOKUP(3,Tablas!$A$1128:$G$1130,3,TRUE)))))))), (IF($B$15=4,(IF(4-$B$19=0,(VLOOKUP(2,Tablas!$A$1128:$G$1130,3,TRUE)), (IF(4-$B$19=1,(VLOOKUP(2,Tablas!$A$1128:$G$1130,3,TRUE)), (IF(4-$B$19=2, (VLOOKUP(2,Tablas!$A$1128:$G$1130,3,TRUE)), (VLOOKUP(3,Tablas!$A$1128:$G$1130,3,TRUE)))))))), (IF($B$15=3,(IF(3-$B$19=0,(VLOOKUP(1,Tablas!$A$1128:$G$1130,3,TRUE)), (IF(3-$B$19=1,(VLOOKUP(1,Tablas!$A$1128:$G$1130,3,TRUE)), (IF(3-$B$19=2, (VLOOKUP(2,Tablas!$A$1128:$G$1130,3,TRUE)), (VLOOKUP(3,Tablas!$A$1128:$G$1130,3,TRUE)))))))), (IF($B$15=2,(IF(2-$B$19=0, 0, (IF(2-$B$19=1,(VLOOKUP(1,Tablas!$A$1128:$G$1130,3,TRUE)), (IF(2-$B$19=2, (VLOOKUP(2,Tablas!$A$1128:$G$1130,3,TRUE)), 0)))))), (IF($B$15=1,(IF(1-$B$19=0, 0, (IF(1-$B$19=1,(VLOOKUP(1,Tablas!$A$1128:$G$1130,3,TRUE)),0)))),0)))))))))))))), (IF($B$15=0, 0, (IF($B$19>$B$15, (VLOOKUP($B$15,Tablas!$A$1128:$G$1130,3,TRUE)), (IF($B$15=4,(IF(4-$B$19=0, 0, (IF(4-$B$19=1, (VLOOKUP(1,Tablas!$A$1128:$G$1130,3,TRUE)), (IF(4-$B$19=2, (VLOOKUP(2,Tablas!$A$1128:$G$1130,3,TRUE)), (IF(4-$B$19=3, (VLOOKUP(3,Tablas!$A$1128:$G$1130,3,TRUE)), (IF(4-$B$19=4, (VLOOKUP(3,Tablas!$A$1128:$G$1130,3,TRUE)), 0)))))))))), (IF($B$15=5,(IF(5-$B$19=0, (VLOOKUP(1,Tablas!$A$1128:$G$1130,3,TRUE)), (IF(5-$B$19=1, (VLOOKUP(1,Tablas!$A$1128:$G$1130,3,TRUE)), (IF(5-$B$19=2, (VLOOKUP(2,Tablas!$A$1128:$G$1130,3,TRUE)), (IF(5-$B$19=3, (VLOOKUP(3,Tablas!$A$1128:$G$1130,3,TRUE)), (IF(5-$B$19=4, (VLOOKUP(3,Tablas!$A$1128:$G$1130,3,TRUE)), (VLOOKUP(3,Tablas!$A$1128:$G$1130,3,TRUE)))))))))))), (IF($B$15=6,(IF(6-$B$19=0, (VLOOKUP(2,Tablas!$A$1128:$G$1130,3,TRUE)), (IF(6-$B$19=1, (VLOOKUP(2,Tablas!$A$1128:$G$1130,3,TRUE)), (IF(6-$B$19=2, (VLOOKUP(2,Tablas!$A$1128:$G$1130,3,TRUE)), (IF(6-$B$19=3, (VLOOKUP(3,Tablas!$A$1128:$G$1130,3,TRUE)), (IF(6-$B$19=4, (VLOOKUP(3,Tablas!$A$1128:$G$1130,3,TRUE)), (VLOOKUP(3,Tablas!$A$1128:$G$1130,3,TRUE)))))))))))), (IF($B$15>6,(IF(7-$B$19=0, (VLOOKUP(3,Tablas!$A$1128:$G$1130,3,TRUE)), (IF(7-$B$19=1, (VLOOKUP(3,Tablas!$A$1128:$G$1130,3,TRUE)), (IF(7-$B$19=2, (VLOOKUP(3,Tablas!$A$1128:$G$1130,3,TRUE)), (IF(7-$B$19=3, (VLOOKUP(3,Tablas!$A$1128:$G$1130,3,TRUE)), (IF(7-$B$19=4, (VLOOKUP(3,Tablas!$A$1128:$G$1130,3,TRUE)), (VLOOKUP(3,Tablas!$A$1128:$G$1130,3,TRUE)))))))))))), (IF($B$15=3,(IF(3-$B$19=0,0, (IF(3-$B$19=1,(VLOOKUP(1,Tablas!$A$1128:$G$1130,3,TRUE)), (IF(3-$B$19=2, (VLOOKUP(2,Tablas!$A$1128:$G$1130,3,TRUE)), (VLOOKUP(3,Tablas!$A$1128:$G$1130,3,TRUE)))))))), (IF($B$15=2,(IF(2-$B$19=0, 0, (IF(2-$B$19=1,(VLOOKUP(1,Tablas!$A$1128:$G$1130,3,TRUE)), (IF(2-$B$19=2, (VLOOKUP(2,Tablas!$A$1128:$G$1130,3,TRUE)), 0)))))), (IF($B$15=1,(IF(1-$B$19=0, 0, (IF(1-$B$19=1,(VLOOKUP(1,Tablas!$A$1128:$G$1130,3,TRUE)),0)))),0))))))))))))))))))) -> 2790.975 | D57: =IF($B$17=1, (IF($B$15=0, 0, (IF($B$19>$B$15, (VLOOKUP($B$15,Tablas!$A$1128:$G$1130,4,TRUE)), (IF($B$15>4,(IF($B$19=0, (VLOOKUP(3,Tablas!$A$1128:$G$1130,4,TRUE)), (IF($B$19=1, (VLOOKUP(3,Tablas!$A$1128:$G$1130,4,TRUE)), (IF($B$19=2, (VLOOKUP(3,Tablas!$A$1128:$G$1130,4,TRUE)), (VLOOKUP(3,Tablas!$A$1128:$G$1130,4,TRUE)))))))), (IF($B$15=4,(IF(4-$B$19=0,(VLOOKUP(2,Tablas!$A$1128:$G$1130,4,TRUE)), (IF(4-$B$19=1,(VLOOKUP(2,Tablas!$A$1128:$G$1130,4,TRUE)), (IF(4-$B$19=2, (VLOOKUP(2,Tablas!$A$1128:$G$1130,4,TRUE)), (VLOOKUP(3,Tablas!$A$1128:$G$1130,4,TRUE)))))))), (IF($B$15=3,(IF(3-$B$19=0,(VLOOKUP(1,Tablas!$A$1128:$G$1130,4,TRUE)), (IF(3-$B$19=1,(VLOOKUP(1,Tablas!$A$1128:$G$1130,4,TRUE)), (IF(3-$B$19=2, (VLOOKUP(2,Tablas!$A$1128:$G$1130,4,TRUE)), (VLOOKUP(3,Tablas!$A$1128:$G$1130,4,TRUE)))))))), (IF($B$15=2,(IF(2-$B$19=0, 0, (IF(2-$B$19=1,(VLOOKUP(1,Tablas!$A$1128:$G$1130,4,TRUE)), (IF(2-$B$19=2, (VLOOKUP(2,Tablas!$A$1128:$G$1130,4,TRUE)), 0)))))), (IF($B$15=1,(IF(1-$B$19=0, 0, (IF(1-$B$19=1,(VLOOKUP(1,Tablas!$A$1128:$G$1130,4,TRUE)),0)))),0)))))))))))))), (IF($B$15=0, 0, (IF($B$19>$B$15, (VLOOKUP($B$15,Tablas!$A$1128:$G$1130,4,TRUE)), (IF($B$15=4,(IF(4-$B$19=0, 0, (IF(4-$B$19=1, (VLOOKUP(1,Tablas!$A$1128:$G$1130,4,TRUE)), (IF(4-$B$19=2, (VLOOKUP(2,Tablas!$A$1128:$G$1130,4,TRUE)), (IF(4-$B$19=3, (VLOOKUP(3,Tablas!$A$1128:$G$1130,4,TRUE)), (IF(4-$B$19=4, (VLOOKUP(3,Tablas!$A$1128:$G$1130,4,TRUE)), 0)))))))))), (IF($B$15=5,(IF(5-$B$19=0, (VLOOKUP(1,Tablas!$A$1128:$G$1130,4,TRUE)), (IF(5-$B$19=1, (VLOOKUP(1,Tablas!$A$1128:$G$1130,4,TRUE)), (IF(5-$B$19=2, (VLOOKUP(2,Tablas!$A$1128:$G$1130,4,TRUE)), (IF(5-$B$19=3, (VLOOKUP(3,Tablas!$A$1128:$G$1130,4,TRUE)), (IF(5-$B$19=4, (VLOOKUP(3,Tablas!$A$1128:$G$1130,4,TRUE)), (VLOOKUP(3,Tablas!$A$1128:$G$1130,4,TRUE)))))))))))), (IF($B$15=6,(IF(6-$B$19=0, (VLOOKUP(2,Tablas!$A$1128:$G$1130,4,TRUE)), (IF(6-$B$19=1, (VLOOKUP(2,Tablas!$A$1128:$G$1130,4,TRUE)), (IF(6-$B$19=2, (VLOOKUP(2,Tablas!$A$1128:$G$1130,4,TRUE)), (IF(6-$B$19=3, (VLOOKUP(3,Tablas!$A$1128:$G$1130,4,TRUE)), (IF(6-$B$19=4, (VLOOKUP(3,Tablas!$A$1128:$G$1130,4,TRUE)), (VLOOKUP(3,Tablas!$A$1128:$G$1130,4,TRUE)))))))))))), (IF($B$15>6,(IF(7-$B$19=0, (VLOOKUP(3,Tablas!$A$1128:$G$1130,4,TRUE)), (IF(7-$B$19=1, (VLOOKUP(3,Tablas!$A$1128:$G$1130,4,TRUE)), (IF(7-$B$19=2, (VLOOKUP(3,Tablas!$A$1128:$G$1130,4,TRUE)), (IF(7-$B$19=3, (VLOOKUP(3,Tablas!$A$1128:$G$1130,4,TRUE)), (IF(7-$B$19=4, (VLOOKUP(3,Tablas!$A$1128:$G$1130,4,TRUE)), (VLOOKUP(3,Tablas!$A$1128:$G$1130,4,TRUE)))))))))))), (IF($B$15=3,(IF(3-$B$19=0,0, (IF(3-$B$19=1,(VLOOKUP(1,Tablas!$A$1128:$G$1130,4,TRUE)), (IF(3-$B$19=2, (VLOOKUP(2,Tablas!$A$1128:$G$1130,4,TRUE)), (VLOOKUP(3,Tablas!$A$1128:$G$1130,4,TRUE)))))))), (IF($B$15=2,(IF(2-$B$19=0, 0, (IF(2-$B$19=1,(VLOOKUP(1,Tablas!$A$1128:$G$1130,4,TRUE)), (IF(2-$B$19=2, (VLOOKUP(2,Tablas!$A$1128:$G$1130,4,TRUE)), 0)))))), (IF($B$15=1,(IF(1-$B$19=0, 0, (IF(1-$B$19=1,(VLOOKUP(1,Tablas!$A$1128:$G$1130,4,TRUE)),0)))),0))))))))))))))))))) -> 1800.425 | E57: =IF($B$17=1, (IF($B$15=0, 0, (IF($B$19>$B$15, (VLOOKUP($B$15,Tablas!$A$1128:$G$1130,5,TRUE)), (IF($B$15>4,(IF($B$19=0, (VLOOKUP(3,Tablas!$A$1128:$G$1130,5,TRUE)), (IF($B$19=1, (VLOOKUP(3,Tablas!$A$1128:$G$1130,5,TRUE)), (IF($B$19=2, (VLOOKUP(3,Tablas!$A$1128:$G$1130,5,TRUE)), (VLOOKUP(3,Tablas!$A$1128:$G$1130,5,TRUE)))))))), (IF($B$15=4,(IF(4-$B$19=0,(VLOOKUP(2,Tablas!$A$1128:$G$1130,5,TRUE)), (IF(4-$B$19=1,(VLOOKUP(2,Tablas!$A$1128:$G$1130,5,TRUE)), (IF(4-$B$19=2, (VLOOKUP(2,Tablas!$A$1128:$G$1130,5,TRUE)), (VLOOKUP(3,Tablas!$A$1128:$G$1130,5,TRUE)))))))), (IF($B$15=3,(IF(3-$B$19=0,(VLOOKUP(1,Tablas!$A$1128:$G$1130,5,TRUE)), (IF(3-$B$19=1,(VLOOKUP(1,Tablas!$A$1128:$G$1130,5,TRUE)), (IF(3-$B$19=2, (VLOOKUP(2,Tablas!$A$1128:$G$1130,5,TRUE)), (VLOOKUP(3,Tablas!$A$1128:$G$1130,5,TRUE)))))))), (IF($B$15=2,(IF(2-$B$19=0, 0, (IF(2-$B$19=1,(VLOOKUP(1,Tablas!$A$1128:$G$1130,5,TRUE)), (IF(2-$B$19=2, (VLOOKUP(2,Tablas!$A$1128:$G$1130,5,TRUE)), 0)))))), (IF($B$15=1,(IF(1-$B$19=0, 0, (IF(1-$B$19=1,(VLOOKUP(1,Tablas!$A$1128:$G$1130,5,TRUE)),0)))),0)))))))))))))), (IF($B$15=0, 0, (IF($B$19>$B$15, (VLOOKUP($B$15,Tablas!$A$1128:$G$1130,5,TRUE)), (IF($B$15=4,(IF(4-$B$19=0, 0, (IF(4-$B$19=1, (VLOOKUP(1,Tablas!$A$1128:$G$1130,5,TRUE)), (IF(4-$B$19=2, (VLOOKUP(2,Tablas!$A$1128:$G$1130,5,TRUE)), (IF(4-$B$19=3, (VLOOKUP(3,Tablas!$A$1128:$G$1130,5,TRUE)), (IF(4-$B$19=4, (VLOOKUP(3,Tablas!$A$1128:$G$1130,5,TRUE)), 0)))))))))), (IF($B$15=5,(IF(5-$B$19=0, (VLOOKUP(1,Tablas!$A$1128:$G$1130,5,TRUE)), (IF(5-$B$19=1, (VLOOKUP(1,Tablas!$A$1128:$G$1130,5,TRUE)), (IF(5-$B$19=2, (VLOOKUP(2,Tablas!$A$1128:$G$1130,5,TRUE)), (IF(5-$B$19=3, (VLOOKUP(3,Tablas!$A$1128:$G$1130,5,TRUE)), (IF(5-$B$19=4, (VLOOKUP(3,Tablas!$A$1128:$G$1130,5,TRUE)), (VLOOKUP(3,Tablas!$A$1128:$G$1130,5,TRUE)))))))))))), (IF($B$15=6,(IF(6-$B$19=0, (VLOOKUP(2,Tablas!$A$1128:$G$1130,5,TRUE)), (IF(6-$B$19=1, (VLOOKUP(2,Tablas!$A$1128:$G$1130,5,TRUE)), (IF(6-$B$19=2, (VLOOKUP(2,Tablas!$A$1128:$G$1130,5,TRUE)), (IF(6-$B$19=3, (VLOOKUP(3,Tablas!$A$1128:$G$1130,5,TRUE)), (IF(6-$B$19=4, (VLOOKUP(3,Tablas!$A$1128:$G$1130,5,TRUE)), (VLOOKUP(3,Tablas!$A$1128:$G$1130,5,TRUE)))))))))))), (IF($B$15>6,(IF(7-$B$19=0, (VLOOKUP(3,Tablas!$A$1128:$G$1130,5,TRUE)), (IF(7-$B$19=1, (VLOOKUP(3,Tablas!$A$1128:$G$1130,5,TRUE)), (IF(7-$B$19=2, (VLOOKUP(3,Tablas!$A$1128:$G$1130,5,TRUE)), (IF(7-$B$19=3, (VLOOKUP(3,Tablas!$A$1128:$G$1130,5,TRUE)), (IF(7-$B$19=4, (VLOOKUP(3,Tablas!$A$1128:$G$1130,5,TRUE)), (VLOOKUP(3,Tablas!$A$1128:$G$1130,5,TRUE)))))))))))), (IF($B$15=3,(IF(3-$B$19=0,0, (IF(3-$B$19=1,(VLOOKUP(1,Tablas!$A$1128:$G$1130,5,TRUE)), (IF(3-$B$19=2, (VLOOKUP(2,Tablas!$A$1128:$G$1130,5,TRUE)), (VLOOKUP(3,Tablas!$A$1128:$G$1130,5,TRUE)))))))), (IF($B$15=2,(IF(2-$B$19=0, 0, (IF(2-$B$19=1,(VLOOKUP(1,Tablas!$A$1128:$G$1130,5,TRUE)), (IF(2-$B$19=2, (VLOOKUP(2,Tablas!$A$1128:$G$1130,5,TRUE)), 0)))))), (IF($B$15=1,(IF(1-$B$19=0, 0, (IF(1-$B$19=1,(VLOOKUP(1,Tablas!$A$1128:$G$1130,5,TRUE)),0)))),0))))))))))))))))))) -> 0
A58: Total de Prima neta | C58: =SUM(C55:C57) -> 21875.975 | D58: =SUM(D55:D57) -> 14114.375 | E58: 0
A59: Tarifa administrativa anual | C59: 75 | D59: 75 | E59: 75
A60: VAT (5%)
A61: ITBMS (7%)
A62: TOTAL de primera cuota | C62: =SUM(C58:C61) -> 21950.975 | D62: =SUM(D58:D61) -> 14189.375 | E62: 75
A63: Costo de tarifa trimestral 2 a 4 | C63: =C62-C59 -> 21875.975 | D63: =D62-D59 -> 14114.375 | E63: 0
A64: TOTAL ANUAL | C64: =C62+(C63*3) -> 87578.9 | D64: =D62+(D63*3) -> 56532.5 | E64: 75
A65: Ahorros en tarifas de prima para Dependientes | C65: =IF($B$17=1,IF($B$15=0,0,IF($B$19=0,0,IF($B$19=1,(VLOOKUP(1,Tablas!$A$1128:$G$1130,3,TRUE)),(VLOOKUP(2,Tablas!$A$1128:$G$1130,3,TRUE))))), IF($B$15=0,0,IF($B$19=0,0,IF($B$19=1,(VLOOKUP(1,Tablas!$A$1128:$G$1130,3,TRUE)),IF($B$19=2,(VLOOKUP(2,Tablas!$A$1128:$G$1130,3,TRUE)), (VLOOKUP(3,Tablas!$A$1128:$G$1130,3,TRUE))))))) -> 2790.975 | D65: =IF($B$17=1,IF($B$15=0,0,IF($B$19=0,0,IF($B$19=1,(VLOOKUP(1,Tablas!$A$1128:$G$1130,4,TRUE)),(VLOOKUP(2,Tablas!$A$1128:$G$1130,4,TRUE))))), IF($B$15=0,0,IF($B$19=0,0,IF($B$19=1,(VLOOKUP(1,Tablas!$A$1128:$G$1130,4,TRUE)),IF($B$19=2,(VLOOKUP(2,Tablas!$A$1128:$G$1130,4,TRUE)), (VLOOKUP(3,Tablas!$A$1128:$G$1130,4,TRUE))))))) -> 1800.425 | E65: =IF($B$17=1,IF($B$15=0,0,IF($B$19=0,0,IF($B$19=1,(VLOOKUP(1,Tablas!$A$1128:$G$1130,5,TRUE)),(VLOOKUP(2,Tablas!$A$1128:$G$1130,5,TRUE))))), IF($B$15=0,0,IF($B$19=0,0,IF($B$19=1,(VLOOKUP(1,Tablas!$A$1128:$G$1130,5,TRUE)),IF($B$19=2,(VLOOKUP(2,Tablas!$A$1128:$G$1130,5,TRUE)), (VLOOKUP(3,Tablas!$A$1128:$G$1130,5,TRUE))))))) -> 0
A67: TARIFAS MENSUALES
A68: Prima para Asegurado Titular | C68: =VLOOKUP($B$21,Tablas!$A$986:$G$1052,3,TRUE) -> 2694.72 | D68: =VLOOKUP($B$21,Tablas!$A$986:$G$1052,4,TRUE) -> 1738.706667 | E68: =VLOOKUP($B$21,Tablas!$A$986:$G$1052,5,TRUE) -> 0
A69: Prima para conyuge | C69: =IF($B$17=1,0,(VLOOKUP($D$21,Tablas!$A$986:$G$1052,3,TRUE))) -> 3782.613333 | D69: =IF($B$17=1,0,(VLOOKUP($D$21,Tablas!$A$986:$G$1052,4,TRUE))) -> 2440.573333 | E69: =IF($B$17=1,0,(VLOOKUP($D$21,Tablas!$A$986:$G$1052,5,TRUE))) -> 0
A70: Prima para hijo (s) | C70: =IF($B$17=1, (IF($B$15=0, 0, (IF($B$19>$B$15, (VLOOKUP($B$15,Tablas!$A$1053:$G$1055,3,TRUE)), (IF($B$15>4,(IF($B$19=0, (VLOOKUP(3,Tablas!$A$1053:$G$1055,3,TRUE)), (IF($B$19=1, (VLOOKUP(3,Tablas!$A$1053:$G$1055,3,TRUE)), (IF($B$19=2, (VLOOKUP(3,Tablas!$A$1053:$G$1055,3,TRUE)), (VLOOKUP(3,Tablas!$A$1053:$G$1055,3,TRUE)))))))), (IF($B$15=4,(IF(4-$B$19=0,(VLOOKUP(2,Tablas!$A$1053:$G$1055,3,TRUE)), (IF(4-$B$19=1,(VLOOKUP(2,Tablas!$A$1053:$G$1055,3,TRUE)), (IF(4-$B$19=2, (VLOOKUP(2,Tablas!$A$1053:$G$1055,3,TRUE)), (VLOOKUP(3,Tablas!$A$1053:$G$1055,3,TRUE)))))))), (IF($B$15=3,(IF(3-$B$19=0,(VLOOKUP(1,Tablas!$A$1053:$G$1055,3,TRUE)), (IF(3-$B$19=1,(VLOOKUP(1,Tablas!$A$1053:$G$1055,3,TRUE)), (IF(3-$B$19=2, (VLOOKUP(2,Tablas!$A$1053:$G$1055,3,TRUE)), (VLOOKUP(3,Tablas!$A$1053:$G$1055,3,TRUE)))))))), (IF($B$15=2,(IF(2-$B$19=0, 0, (IF(2-$B$19=1,(VLOOKUP(1,Tablas!$A$1053:$G$1055,3,TRUE)), (IF(2-$B$19=2, (VLOOKUP(2,Tablas!$A$1053:$G$1055,3,TRUE)), 0)))))), (IF($B$15=1,(IF(1-$B$19=0, 0, (IF(1-$B$19=1,(VLOOKUP(1,Tablas!$A$1053:$G$1055,3,TRUE)),0)))),0)))))))))))))), (IF($B$15=0, 0, (IF($B$19>$B$15, (VLOOKUP($B$15,Tablas!$A$1053:$G$1055,3,TRUE)), (IF($B$15=4,(IF(4-$B$19=0, 0, (IF(4-$B$19=1, (VLOOKUP(1,Tablas!$A$1053:$G$1055,3,TRUE)), (IF(4-$B$19=2, (VLOOKUP(2,Tablas!$A$1053:$G$1055,3,TRUE)), (IF(4-$B$19=3, (VLOOKUP(3,Tablas!$A$1053:$G$1055,3,TRUE)), (IF(4-$B$19=4, (VLOOKUP(3,Tablas!$A$1053:$G$1055,3,TRUE)), 0)))))))))), (IF($B$15=5,(IF(5-$B$19=0, (VLOOKUP(1,Tablas!$A$1053:$G$1055,3,TRUE)), (IF(5-$B$19=1, (VLOOKUP(1,Tablas!$A$1053:$G$1055,3,TRUE)), (IF(5-$B$19=2, (VLOOKUP(2,Tablas!$A$1053:$G$1055,3,TRUE)), (IF(5-$B$19=3, (VLOOKUP(3,Tablas!$A$1053:$G$1055,3,TRUE)), (IF(5-$B$19=4, (VLOOKUP(3,Tablas!$A$1053:$G$1055,3,TRUE)), (VLOOKUP(3,Tablas!$A$1053:$G$1055,3,TRUE)))))))))))), (IF($B$15=6,(IF(6-$B$19=0, (VLOOKUP(2,Tablas!$A$1053:$G$1055,3,TRUE)), (IF(6-$B$19=1, (VLOOKUP(2,Tablas!$A$1053:$G$1055,3,TRUE)), (IF(6-$B$19=2, (VLOOKUP(2,Tablas!$A$1053:$G$1055,3,TRUE)), (IF(6-$B$19=3, (VLOOKUP(3,Tablas!$A$1053:$G$1055,3,TRUE)), (IF(6-$B$19=4, (VLOOKUP(3,Tablas!$A$1053:$G$1055,3,TRUE)), (VLOOKUP(3,Tablas!$A$1053:$G$1055,3,TRUE)))))))))))), (IF($B$15>6,(IF(7-$B$19=0, (VLOOKUP(3,Tablas!$A$1053:$G$1055,3,TRUE)), (IF(7-$B$19=1, (VLOOKUP(3,Tablas!$A$1053:$G$1055,3,TRUE)), (IF(7-$B$19=2, (VLOOKUP(3,Tablas!$A$1053:$G$1055,3,TRUE)), (IF(7-$B$19=3, (VLOOKUP(3,Tablas!$A$1053:$G$1055,3,TRUE)), (IF(7-$B$19=4, (VLOOKUP(3,Tablas!$A$1053:$G$1055,3,TRUE)), (VLOOKUP(3,Tablas!$A$1053:$G$1055,3,TRUE)))))))))))), (IF($B$15=3,(IF(3-$B$19=0,0, (IF(3-$B$19=1,(VLOOKUP(1,Tablas!$A$1053:$G$1055,3,TRUE)), (IF(3-$B$19=2, (VLOOKUP(2,Tablas!$A$1053:$G$1055,3,TRUE)), (VLOOKUP(3,Tablas!$A$1053:$G$1055,3,TRUE)))))))), (IF($B$15=2,(IF(2-$B$19=0, 0, (IF(2-$B$19=1,(VLOOKUP(1,Tablas!$A$1053:$G$1055,3,TRUE)), (IF(2-$B$19=2, (VLOOKUP(2,Tablas!$A$1053:$G$1055,3,TRUE)), 0)))))), (IF($B$15=1,(IF(1-$B$19=0, 0, (IF(1-$B$19=1,(VLOOKUP(1,Tablas!$A$1053:$G$1055,3,TRUE)),0)))),0))))))))))))))))))) -> 947.24 | D70: =IF($B$17=1, (IF($B$15=0, 0, (IF($B$19>$B$15, (VLOOKUP($B$15,Tablas!$A$1053:$G$1055,4,TRUE)), (IF($B$15>4,(IF($B$19=0, (VLOOKUP(3,Tablas!$A$1053:$G$1055,4,TRUE)), (IF($B$19=1, (VLOOKUP(3,Tablas!$A$1053:$G$1055,4,TRUE)), (IF($B$19=2, (VLOOKUP(3,Tablas!$A$1053:$G$1055,4,TRUE)), (VLOOKUP(3,Tablas!$A$1053:$G$1055,4,TRUE)))))))), (IF($B$15=4,(IF(4-$B$19=0,(VLOOKUP(2,Tablas!$A$1053:$G$1055,4,TRUE)), (IF(4-$B$19=1,(VLOOKUP(2,Tablas!$A$1053:$G$1055,4,TRUE)), (IF(4-$B$19=2, (VLOOKUP(2,Tablas!$A$1053:$G$1055,4,TRUE)), (VLOOKUP(3,Tablas!$A$1053:$G$1055,4,TRUE)))))))), (IF($B$15=3,(IF(3-$B$19=0,(VLOOKUP(1,Tablas!$A$1053:$G$1055,4,TRUE)), (IF(3-$B$19=1,(VLOOKUP(1,Tablas!$A$1053:$G$1055,4,TRUE)), (IF(3-$B$19=2, (VLOOKUP(2,Tablas!$A$1053:$G$1055,4,TRUE)), (VLOOKUP(3,Tablas!$A$1053:$G$1055,4,TRUE)))))))), (IF($B$15=2,(IF(2-$B$19=0, 0, (IF(2-$B$19=1,(VLOOKUP(1,Tablas!$A$1053:$G$1055,4,TRUE)), (IF(2-$B$19=2, (VLOOKUP(2,Tablas!$A$1053:$G$1055,4,TRUE)), 0)))))), (IF($B$15=1,(IF(1-$B$19=0, 0, (IF(1-$B$19=1,(VLOOKUP(1,Tablas!$A$1053:$G$1055,4,TRUE)),0)))),0)))))))))))))), (IF($B$15=0, 0, (IF($B$19>$B$15, (VLOOKUP($B$15,Tablas!$A$1053:$G$1055,4,TRUE)), (IF($B$15=4,(IF(4-$B$19=0, 0, (IF(4-$B$19=1, (VLOOKUP(1,Tablas!$A$1053:$G$1055,4,TRUE)), (IF(4-$B$19=2, (VLOOKUP(2,Tablas!$A$1053:$G$1055,4,TRUE)), (IF(4-$B$19=3, (VLOOKUP(3,Tablas!$A$1053:$G$1055,4,TRUE)), (IF(4-$B$19=4, (VLOOKUP(3,Tablas!$A$1053:$G$1055,4,TRUE)), 0)))))))))), (IF($B$15=5,(IF(5-$B$19=0, (VLOOKUP(1,Tablas!$A$1053:$G$1055,4,TRUE)), (IF(5-$B$19=1, (VLOOKUP(1,Tablas!$A$1053:$G$1055,4,TRUE)), (IF(5-$B$19=2, (VLOOKUP(2,Tablas!$A$1053:$G$1055,4,TRUE)), (IF(5-$B$19=3, (VLOOKUP(3,Tablas!$A$1053:$G$1055,4,TRUE)), (IF(5-$B$19=4, (VLOOKUP(3,Tablas!$A$1053:$G$1055,4,TRUE)), (VLOOKUP(3,Tablas!$A$1053:$G$1055,4,TRUE)))))))))))), (IF($B$15=6,(IF(6-$B$19=0, (VLOOKUP(2,Tablas!$A$1053:$G$1055,4,TRUE)), (IF(6-$B$19=1, (VLOOKUP(2,Tablas!$A$1053:$G$1055,4,TRUE)), (IF(6-$B$19=2, (VLOOKUP(2,Tablas!$A$1053:$G$1055,4,TRUE)), (IF(6-$B$19=3, (VLOOKUP(3,Tablas!$A$1053:$G$1055,4,TRUE)), (IF(6-$B$19=4, (VLOOKUP(3,Tablas!$A$1053:$G$1055,4,TRUE)), (VLOOKUP(3,Tablas!$A$1053:$G$1055,4,TRUE)))))))))))), (IF($B$15>6,(IF(7-$B$19=0, (VLOOKUP(3,Tablas!$A$1053:$G$1055,4,TRUE)), (IF(7-$B$19=1, (VLOOKUP(3,Tablas!$A$1053:$G$1055,4,TRUE)), (IF(7-$B$19=2, (VLOOKUP(3,Tablas!$A$1053:$G$1055,4,TRUE)), (IF(7-$B$19=3, (VLOOKUP(3,Tablas!$A$1053:$G$1055,4,TRUE)), (IF(7-$B$19=4, (VLOOKUP(3,Tablas!$A$1053:$G$1055,4,TRUE)), (VLOOKUP(3,Tablas!$A$1053:$G$1055,4,TRUE)))))))))))), (IF($B$15=3,(IF(3-$B$19=0,0, (IF(3-$B$19=1,(VLOOKUP(1,Tablas!$A$1053:$G$1055,4,TRUE)), (IF(3-$B$19=2, (VLOOKUP(2,Tablas!$A$1053:$G$1055,4,TRUE)), (VLOOKUP(3,Tablas!$A$1053:$G$1055,4,TRUE)))))))), (IF($B$15=2,(IF(2-$B$19=0, 0, (IF(2-$B$19=1,(VLOOKUP(1,Tablas!$A$1053:$G$1055,4,TRUE)), (IF(2-$B$19=2, (VLOOKUP(2,Tablas!$A$1053:$G$1055,4,TRUE)), 0)))))), (IF($B$15=1,(IF(1-$B$19=0, 0, (IF(1-$B$19=1,(VLOOKUP(1,Tablas!$A$1053:$G$1055,4,TRUE)),0)))),0))))))))))))))))))) -> 611.0533333 | E70: =IF($B$17=1, (IF($B$15=0, 0, (IF($B$19>$B$15, (VLOOKUP($B$15,Tablas!$A$1053:$G$1055,5,TRUE)), (IF($B$15>4,(IF($B$19=0, (VLOOKUP(3,Tablas!$A$1053:$G$1055,5,TRUE)), (IF($B$19=1, (VLOOKUP(3,Tablas!$A$1053:$G$1055,5,TRUE)), (IF($B$19=2, (VLOOKUP(3,Tablas!$A$1053:$G$1055,5,TRUE)), (VLOOKUP(3,Tablas!$A$1053:$G$1055,5,TRUE)))))))), (IF($B$15=4,(IF(4-$B$19=0,(VLOOKUP(2,Tablas!$A$1053:$G$1055,5,TRUE)), (IF(4-$B$19=1,(VLOOKUP(2,Tablas!$A$1053:$G$1055,5,TRUE)), (IF(4-$B$19=2, (VLOOKUP(2,Tablas!$A$1053:$G$1055,5,TRUE)), (VLOOKUP(3,Tablas!$A$1053:$G$1055,5,TRUE)))))))), (IF($B$15=3,(IF(3-$B$19=0,(VLOOKUP(1,Tablas!$A$1053:$G$1055,5,TRUE)), (IF(3-$B$19=1,(VLOOKUP(1,Tablas!$A$1053:$G$1055,5,TRUE)), (IF(3-$B$19=2, (VLOOKUP(2,Tablas!$A$1053:$G$1055,5,TRUE)), (VLOOKUP(3,Tablas!$A$1053:$G$1055,5,TRUE)))))))), (IF($B$15=2,(IF(2-$B$19=0, 0, (IF(2-$B$19=1,(VLOOKUP(1,Tablas!$A$1053:$G$1055,5,TRUE)), (IF(2-$B$19=2, (VLOOKUP(2,Tablas!$A$1053:$G$1055,5,TRUE)), 0)))))), (IF($B$15=1,(IF(1-$B$19=0, 0, (IF(1-$B$19=1,(VLOOKUP(1,Tablas!$A$1053:$G$1055,5,TRUE)),0)))),0)))))))))))))), (IF($B$15=0, 0, (IF($B$19>$B$15, (VLOOKUP($B$15,Tablas!$A$1053:$G$1055,5,TRUE)), (IF($B$15=4,(IF(4-$B$19=0, 0, (IF(4-$B$19=1, (VLOOKUP(1,Tablas!$A$1053:$G$1055,5,TRUE)), (IF(4-$B$19=2, (VLOOKUP(2,Tablas!$A$1053:$G$1055,5,TRUE)), (IF(4-$B$19=3, (VLOOKUP(3,Tablas!$A$1053:$G$1055,5,TRUE)), (IF(4-$B$19=4, (VLOOKUP(3,Tablas!$A$1053:$G$1055,5,TRUE)), 0)))))))))), (IF($B$15=5,(IF(5-$B$19=0, (VLOOKUP(1,Tablas!$A$1053:$G$1055,5,TRUE)), (IF(5-$B$19=1, (VLOOKUP(1,Tablas!$A$1053:$G$1055,5,TRUE)), (IF(5-$B$19=2, (VLOOKUP(2,Tablas!$A$1053:$G$1055,5,TRUE)), (IF(5-$B$19=3, (VLOOKUP(3,Tablas!$A$1053:$G$1055,5,TRUE)), (IF(5-$B$19=4, (VLOOKUP(3,Tablas!$A$1053:$G$1055,5,TRUE)), (VLOOKUP(3,Tablas!$A$1053:$G$1055,5,TRUE)))))))))))), (IF($B$15=6,(IF(6-$B$19=0, (VLOOKUP(2,Tablas!$A$1053:$G$1055,5,TRUE)), (IF(6-$B$19=1, (VLOOKUP(2,Tablas!$A$1053:$G$1055,5,TRUE)), (IF(6-$B$19=2, (VLOOKUP(2,Tablas!$A$1053:$G$1055,5,TRUE)), (IF(6-$B$19=3, (VLOOKUP(3,Tablas!$A$1053:$G$1055,5,TRUE)), (IF(6-$B$19=4, (VLOOKUP(3,Tablas!$A$1053:$G$1055,5,TRUE)), (VLOOKUP(3,Tablas!$A$1053:$G$1055,5,TRUE)))))))))))), (IF($B$15>6,(IF(7-$B$19=0, (VLOOKUP(3,Tablas!$A$1053:$G$1055,5,TRUE)), (IF(7-$B$19=1, (VLOOKUP(3,Tablas!$A$1053:$G$1055,5,TRUE)), (IF(7-$B$19=2, (VLOOKUP(3,Tablas!$A$1053:$G$1055,5,TRUE)), (IF(7-$B$19=3, (VLOOKUP(3,Tablas!$A$1053:$G$1055,5,TRUE)), (IF(7-$B$19=4, (VLOOKUP(3,Tablas!$A$1053:$G$1055,5,TRUE)), (VLOOKUP(3,Tablas!$A$1053:$G$1055,5,TRUE)))))))))))), (IF($B$15=3,(IF(3-$B$19=0,0, (IF(3-$B$19=1,(VLOOKUP(1,Tablas!$A$1053:$G$1055,5,TRUE)), (IF(3-$B$19=2, (VLOOKUP(2,Tablas!$A$1053:$G$1055,5,TRUE)), (VLOOKUP(3,Tablas!$A$1053:$G$1055,5,TRUE)))))))), (IF($B$15=2,(IF(2-$B$19=0, 0, (IF(2-$B$19=1,(VLOOKUP(1,Tablas!$A$1053:$G$1055,5,TRUE)), (IF(2-$B$19=2, (VLOOKUP(2,Tablas!$A$1053:$G$1055,5,TRUE)), 0)))))), (IF($B$15=1,(IF(1-$B$19=0, 0, (IF(1-$B$19=1,(VLOOKUP(1,Tablas!$A$1053:$G$1055,5,TRUE)),0)))),0))))))))))))))))))) -> 0
A71: Total de Prima neta | C71: =SUM(C68:C70) -> 7424.573333 | D71: =SUM(D68:D70) -> 4790.333333 | E71: 0
A72: Tarifa administrativa anual | C72: 75 | D72: 75 | E72: 75
A73: VAT (5%)
A74: ITBMS (7%)
A75: TOTAL de primera cuota | C75: =SUM(C71:C74) -> 7499.573333 | D75: =SUM(D71:D74) -> 4865.333333 | E75: 75
A76: Costo de Tarifa mensual de 2 a 12 | C76: =C75-C72 -> 7424.573333 | D76: =D75-D72 -> 4790.333333 | E76: =E75-E72 -> 0
A77: TOTAL ANUAL | C77: =C75+(C76*11) -> 89169.88 | D77: =D75+(D76*11) -> 57559 | E77: 75
A78: Ahorros en tarifas de prima para Dependientes | C78: =IF($B$17=1,IF($B$15=0,0,IF($B$19=0,0,IF($B$19=1,(VLOOKUP(1,Tablas!$A$1053:$G$1055,3,TRUE)),(VLOOKUP(2,Tablas!$A$1053:$G$1055,3,TRUE))))), IF($B$15=0,0,IF($B$19=0,0,IF($B$19=1,(VLOOKUP(1,Tablas!$A$1053:$G$1055,3,TRUE)),IF($B$19=2,(VLOOKUP(2,Tablas!$A$1053:$G$1055,3,TRUE)), (VLOOKUP(3,Tablas!$A$1053:$G$1055,3,TRUE))))))) -> 947.24 | D78: =IF($B$17=1,IF($B$15=0,0,IF($B$19=0,0,IF($B$19=1,(VLOOKUP(1,Tablas!$A$1053:$G$1055,4,TRUE)),(VLOOKUP(2,Tablas!$A$1053:$G$1055,4,TRUE))))), IF($B$15=0,0,IF($B$19=0,0,IF($B$19=1,(VLOOKUP(1,Tablas!$A$1053:$G$1055,4,TRUE)),IF($B$19=2,(VLOOKUP(2,Tablas!$A$1053:$G$1055,4,TRUE)), (VLOOKUP(3,Tablas!$A$1053:$G$1055,4,TRUE))))))) -> 611.0533333 | E78: =IF($B$17=1,IF($B$15=0,0,IF($B$19=0,0,IF($B$19=1,(VLOOKUP(1,Tablas!$A$1053:$G$1055,5,TRUE)),(VLOOKUP(2,Tablas!$A$1053:$G$1055,5,TRUE))))), IF($B$15=0,0,IF($B$19=0,0,IF($B$19=1,(VLOOKUP(1,Tablas!$A$1053:$G$1055,5,TRUE)),IF($B$19=2,(VLOOKUP(2,Tablas!$A$1053:$G$1055,5,TRUE)), (VLOOKUP(3,Tablas!$A$1053:$G$1055,5,TRUE))))))) -> 0
A80: Este presupuesto solamente tiene carácter informativo y en ningún momento expresa compromiso legal para suministrarle cobertura de seguro. La emisión de una póliza de seguro Bupa está sujeta a todas las evaluaciones de riesgo por parte de Bupa y a la recepción de todos los pagos de prima requeridos.

Sheet Bupa Global Elite
J1: RESUMEN DE BENEFICIOS | Q1: RESUMEN DE BENEFICIOS | X1: RESUMEN DE BENEFICIOS
A5: Cotización de Seguro Médico Internacional Bupa Global Elite Health Plan Tarifas en US$ | Validas: 1 de enero de 2024
A13: Nombre del Asegurado Titular | B13: =+'INGRESO DE DATOS'!$C$37 -> John Doe
A15: Número de adultos en la póliza | B15: =+'INGRESO DE DATOS'!$C$39 -> 2
A17: Número de Dependientes en la póliza | B17: =+'INGRESO DE DATOS'!$C$41 -> 2 | C17: =IF('INGRESO DE DATOS'!$P$2=TRUE, "Cotización para dependiente de 24 años","") -> 
A19: Número de Dependientes menores de 10 años | B19: =+'INGRESO DE DATOS'!$H$42 -> 1
A21: Edad del Asegurado Titular | B21: =+'INGRESO DE DATOS'!$C$43 -> 32 | E21: Edad del/la conyuge | G21: =+'INGRESO DE DATOS'!$C$45 -> 46
A23: Fecha de la cotización | B23: =NOW() -> 2024-01-09T15:15:16.520
A25: =IF('INGRESO DE DATOS'!P3=TRUE,"Variante con coaseguro fuera del país de residencia: SI","Variante con coaseguro fuera del país de residencia: NO") -> Variante con coaseguro fuera del país de residencia: NO
A27: DEDUCIBlES | C27: PLAN 1 | D27: PLAN 2 | E27: PLAN 3 | F27: PLAN 4 | G27: PLAN 5
A28: En el país de residencia | C28: 250 | D28: 2000 | E28: 3500 | F28: 5000 | G28: 10000
A29: Fuera del país de residencia | C29: 5000 | D29: 2000 | E29: 3500 | F29: 5000 | G29: 10000
A31: TARIFAS ANUALES
A32: Prima para Asegurado Titular | C32: =VLOOKUP($B$21,Tablas!$A$6:$G$72,3,TRUE) -> 12285 | D32: =VLOOKUP($B$21,Tablas!$A$6:$G$72,4,TRUE) -> 10768 | E32: =VLOOKUP($B$21,Tablas!$A$6:$G$72,5,TRUE) -> 8933 | F32: =VLOOKUP($B$21,Tablas!$A$6:$G$72,6,TRUE) -> 7745 | G32: =VLOOKUP($B$21,Tablas!$A$6:$G$72,7,TRUE) -> 6008
A33: Prima para conyuge | C33: =IF($B$15=1,0,(VLOOKUP($G$21,Tablas!$A$6:$G$72,3,TRUE))) -> 17193 | D33: =IF($B$15=1,0,(VLOOKUP($G$21,Tablas!$A$6:$G$72,4,TRUE))) -> 15072 | E33: =IF($B$15=1,0,(VLOOKUP($G$21,Tablas!$A$6:$G$72,5,TRUE))) -> 12341 | F33: =IF($B$15=1,0,(VLOOKUP($G$21,Tablas!$A$6:$G$72,6,TRUE))) -> 10701 | G33: =IF($B$15=1,0,(VLOOKUP($G$21,Tablas!$A$6:$G$72,7,TRUE))) -> 8300
A34: Prima para hijo (s) | C34: =IF($B$15=1, (IF($B$17=0, 0, (IF($B$19>$B$17, (VLOOKUP($B$17,Tablas!$A$73:$G$75,3,TRUE)), (IF($B$17>4,(IF($B$19=0, (VLOOKUP(3,Tablas!$A$73:$G$75,3,TRUE)), (IF($B$19=1, (VLOOKUP(3,Tablas!$A$73:$G$75,3,TRUE)), (IF($B$19=2, (VLOOKUP(3,Tablas!$A$73:$G$75,3,TRUE)), (VLOOKUP(3,Tablas!$A$73:$G$75,3,TRUE)))))))), (IF($B$17=4,(IF(4-$B$19=0,(VLOOKUP(2,Tablas!$A$73:$G$75,3,TRUE)), (IF(4-$B$19=1,(VLOOKUP(2,Tablas!$A$73:$G$75,3,TRUE)), (IF(4-$B$19=2, (VLOOKUP(2,Tablas!$A$73:$G$75,3,TRUE)), (VLOOKUP(3,Tablas!$A$73:$G$75,3,TRUE)))))))), (IF($B$17=3,(IF(3-$B$19=0,(VLOOKUP(1,Tablas!$A$73:$G$75,3,TRUE)), (IF(3-$B$19=1,(VLOOKUP(1,Tablas!$A$73:$G$75,3,TRUE)), (IF(3-$B$19=2, (VLOOKUP(2,Tablas!$A$73:$G$75,3,TRUE)), (VLOOKUP(3,Tablas!$A$73:$G$75,3,TRUE)))))))), (IF($B$17=2,(IF(2-$B$19=0, 0, (IF(2-$B$19=1,(VLOOKUP(1,Tablas!$A$73:$G$75,3,TRUE)), (IF(2-$B$19=2, (VLOOKUP(2,Tablas!$A$73:$G$75,3,TRUE)), 0)))))), (IF($B$17=1,(IF(1-$B$19=0, 0, (IF(1-$B$19=1,(VLOOKUP(1,Tablas!$A$73:$G$75,3,TRUE)),0)))),0)))))))))))))), (IF($B$17=0, 0, (IF($B$19>$B$17, (VLOOKUP($B$17,Tablas!$A$73:$G$75,3,TRUE)), (IF($B$17=4,(IF(4-$B$19=0, 0, (IF(4-$B$19=1, (VLOOKUP(1,Tablas!$A$73:$G$75,3,TRUE)), (IF(4-$B$19=2, (VLOOKUP(2,Tablas!$A$73:$G$75,3,TRUE)), (IF(4-$B$19=3, (VLOOKUP(3,Tablas!$A$73:$G$75,3,TRUE)), (IF(4-$B$19=4, (VLOOKUP(3,Tablas!$A$73:$G$75,3,TRUE)), 0)))))))))), (IF($B$17=5,(IF(5-$B$19=0, (VLOOKUP(1,Tablas!$A$73:$G$75,3,TRUE)), (IF(5-$B$19=1, (VLOOKUP(1,Tablas!$A$73:$G$75,3,TRUE)), (IF(5-$B$19=2, (VLOOKUP(2,Tablas!$A$73:$G$75,3,TRUE)), (IF(5-$B$19=3, (VLOOKUP(3,Tablas!$A$73:$G$75,3,TRUE)), (IF(5-$B$19=4, (VLOOKUP(3,Tablas!$A$73:$G$75,3,TRUE)), (VLOOKUP(3,Tablas!$A$73:$G$75,3,TRUE)))))))))))), (IF($B$17=6,(IF(6-$B$19=0, (VLOOKUP(2,Tablas!$A$73:$G$75,3,TRUE)), (IF(6-$B$19=1, (VLOOKUP(2,Tablas!$A$73:$G$75,3,TRUE)), (IF(6-$B$19=2, (VLOOKUP(2,Tablas!$A$73:$G$75,3,TRUE)), (IF(6-$B$19=3, (VLOOKUP(3,Tablas!$A$73:$G$75,3,TRUE)), (IF(6-$B$19=4, (VLOOKUP(3,Tablas!$A$73:$G$75,3,TRUE)), (VLOOKUP(3,Tablas!$A$73:$G$75,3,TRUE)))))))))))), (IF($B$17>6,(IF(7-$B$19=0, (VLOOKUP(3,Tablas!$A$73:$G$75,3,TRUE)), (IF(7-$B$19=1, (VLOOKUP(3,Tablas!$A$73:$G$75,3,TRUE)), (IF(7-$B$19=2, (VLOOKUP(3,Tablas!$A$73:$G$75,3,TRUE)), (IF(7-$B$19=3, (VLOOKUP(3,Tablas!$A$73:$G$75,3,TRUE)), (IF(7-$B$19=4, (VLOOKUP(3,Tablas!$A$73:$G$75,3,TRUE)), (VLOOKUP(3,Tablas!$A$73:$G$75,3,TRUE)))))))))))), (IF($B$17=3,(IF(3-$B$19=0,0, (IF(3-$B$19=1,(VLOOKUP(1,Tablas!$A$73:$G$75,3,TRUE)), (IF(3-$B$19=2, (VLOOKUP(2,Tablas!$A$73:$G$75,3,TRUE)), (VLOOKUP(3,Tablas!$A$73:$G$75,3,TRUE)))))))), (IF($B$17=2,(IF(2-$B$19=0, 0, (IF(2-$B$19=1,(VLOOKUP(1,Tablas!$A$73:$G$75,3,TRUE)), (IF(2-$B$19=2, (VLOOKUP(2,Tablas!$A$73:$G$75,3,TRUE)), 0)))))), (IF($B$17=1,(IF(1-$B$19=0, 0, (IF(1-$B$19=1,(VLOOKUP(1,Tablas!$A$73:$G$75,3,TRUE)),0)))),0))))))))))))))))))) -> 4366 | D34: =IF($B$15=1, (IF($B$17=0, 0, (IF($B$19>$B$17, (VLOOKUP($B$17,Tablas!$A$73:$G$75,4,TRUE)), (IF($B$17>4,(IF($B$19=0, (VLOOKUP(3,Tablas!$A$73:$G$75,4,TRUE)), (IF($B$19=1, (VLOOKUP(3,Tablas!$A$73:$G$75,4,TRUE)), (IF($B$19=2, (VLOOKUP(3,Tablas!$A$73:$G$75,4,TRUE)), (VLOOKUP(3,Tablas!$A$73:$G$75,4,TRUE)))))))), (IF($B$17=4,(IF(4-$B$19=0,(VLOOKUP(2,Tablas!$A$73:$G$75,4,TRUE)), (IF(4-$B$19=1,(VLOOKUP(2,Tablas!$A$73:$G$75,4,TRUE)), (IF(4-$B$19=2, (VLOOKUP(2,Tablas!$A$73:$G$75,4,TRUE)), (VLOOKUP(3,Tablas!$A$73:$G$75,4,TRUE)))))))), (IF($B$17=3,(IF(3-$B$19=0,(VLOOKUP(1,Tablas!$A$73:$G$75,4,TRUE)), (IF(3-$B$19=1,(VLOOKUP(1,Tablas!$A$73:$G$75,4,TRUE)), (IF(3-$B$19=2, (VLOOKUP(2,Tablas!$A$73:$G$75,4,TRUE)), (VLOOKUP(3,Tablas!$A$73:$G$75,4,TRUE)))))))), (IF($B$17=2,(IF(2-$B$19=0, 0, (IF(2-$B$19=1,(VLOOKUP(1,Tablas!$A$73:$G$75,4,TRUE)), (IF(2-$B$19=2, (VLOOKUP(2,Tablas!$A$73:$G$75,4,TRUE)), 0)))))), (IF($B$17=1,(IF(1-$B$19=0, 0, (IF(1-$B$19=1,(VLOOKUP(1,Tablas!$A$73:$G$75,4,TRUE)),0)))),0)))))))))))))), (IF($B$17=0, 0, (IF($B$19>$B$17, (VLOOKUP($B$17,Tablas!$A$73:$G$75,4,TRUE)), (IF($B$17=4,(IF(4-$B$19=0, 0, (IF(4-$B$19=1, (VLOOKUP(1,Tablas!$A$73:$G$75,4,TRUE)), (IF(4-$B$19=2, (VLOOKUP(2,Tablas!$A$73:$G$75,4,TRUE)), (IF(4-$B$19=3, (VLOOKUP(3,Tablas!$A$73:$G$75,4,TRUE)), (IF(4-$B$19=4, (VLOOKUP(3,Tablas!$A$73:$G$75,4,TRUE)), 0)))))))))), (IF($B$17=5,(IF(5-$B$19=0, (VLOOKUP(1,Tablas!$A$73:$G$75,4,TRUE)), (IF(5-$B$19=1, (VLOOKUP(1,Tablas!$A$73:$G$75,4,TRUE)), (IF(5-$B$19=2, (VLOOKUP(2,Tablas!$A$73:$G$75,4,TRUE)), (IF(5-$B$19=3, (VLOOKUP(3,Tablas!$A$73:$G$75,4,TRUE)), (IF(5-$B$19=4, (VLOOKUP(3,Tablas!$A$73:$G$75,4,TRUE)), (VLOOKUP(3,Tablas!$A$73:$G$75,4,TRUE)))))))))))), (IF($B$17=6,(IF(6-$B$19=0, (VLOOKUP(2,Tablas!$A$73:$G$75,4,TRUE)), (IF(6-$B$19=1, (VLOOKUP(2,Tablas!$A$73:$G$75,4,TRUE)), (IF(6-$B$19=2, (VLOOKUP(2,Tablas!$A$73:$G$75,4,TRUE)), (IF(6-$B$19=3, (VLOOKUP(3,Tablas!$A$73:$G$75,4,TRUE)), (IF(6-$B$19=4, (VLOOKUP(3,Tablas!$A$73:$G$75,4,TRUE)), (VLOOKUP(3,Tablas!$A$73:$G$75,4,TRUE)))))))))))), (IF($B$17>6,(IF(7-$B$19=0, (VLOOKUP(3,Tablas!$A$73:$G$75,4,TRUE)), (IF(7-$B$19=1, (VLOOKUP(3,Tablas!$A$73:$G$75,4,TRUE)), (IF(7-$B$19=2, (VLOOKUP(3,Tablas!$A$73:$G$75,4,TRUE)), (IF(7-$B$19=3, (VLOOKUP(3,Tablas!$A$73:$G$75,4,TRUE)), (IF(7-$B$19=4, (VLOOKUP(3,Tablas!$A$73:$G$75,4,TRUE)), (VLOOKUP(3,Tablas!$A$73:$G$75,4,TRUE)))))))))))), (IF($B$17=3,(IF(3-$B$19=0,0, (IF(3-$B$19=1,(VLOOKUP(1,Tablas!$A$73:$G$75,4,TRUE)), (IF(3-$B$19=2, (VLOOKUP(2,Tablas!$A$73:$G$75,4,TRUE)), (VLOOKUP(3,Tablas!$A$73:$G$75,4,TRUE)))))))), (IF($B$17=2,(IF(2-$B$19=0, 0, (IF(2-$B$19=1,(VLOOKUP(1,Tablas!$A$73:$G$75,4,TRUE)), (IF(2-$B$19=2, (VLOOKUP(2,Tablas!$A$73:$G$75,4,TRUE)), 0)))))), (IF($B$17=1,(IF(1-$B$19=0, 0, (IF(1-$B$19=1,(VLOOKUP(1,Tablas!$A$73:$G$75,4,TRUE)),0)))),0))))))))))))))))))) -> 3828 | E34: =IF($B$15=1, (IF($B$17=0, 0, (IF($B$19>$B$17, (VLOOKUP($B$17,Tablas!$A$73:$G$75,5,TRUE)), (IF($B$17>4,(IF($B$19=0, (VLOOKUP(3,Tablas!$A$73:$G$75,5,TRUE)), (IF($B$19=1, (VLOOKUP(3,Tablas!$A$73:$G$75,5,TRUE)), (IF($B$19=2, (VLOOKUP(3,Tablas!$A$73:$G$75,5,TRUE)), (VLOOKUP(3,Tablas!$A$73:$G$75,5,TRUE)))))))), (IF($B$17=4,(IF(4-$B$19=0,(VLOOKUP(2,Tablas!$A$73:$G$75,5,TRUE)), (IF(4-$B$19=1,(VLOOKUP(2,Tablas!$A$73:$G$75,5,TRUE)), (IF(4-$B$19=2, (VLOOKUP(2,Tablas!$A$73:$G$75,5,TRUE)), (VLOOKUP(3,Tablas!$A$73:$G$75,5,TRUE)))))))), (IF($B$17=3,(IF(3-$B$19=0,(VLOOKUP(1,Tablas!$A$73:$G$75,5,TRUE)), (IF(3-$B$19=1,(VLOOKUP(1,Tablas!$A$73:$G$75,5,TRUE)), (IF(3-$B$19=2, (VLOOKUP(2,Tablas!$A$73:$G$75,5,TRUE)), (VLOOKUP(3,Tablas!$A$73:$G$75,5,TRUE)))))))), (IF($B$17=2,(IF(2-$B$19=0, 0, (IF(2-$B$19=1,(VLOOKUP(1,Tablas!$A$73:$G$75,5,TRUE)), (IF(2-$B$19=2, (VLOOKUP(2,Tablas!$A$73:$G$75,5,TRUE)), 0)))))), (IF($B$17=1,(IF(1-$B$19=0, 0, (IF(1-$B$19=1,(VLOOKUP(1,Tablas!$A$73:$G$75,5,TRUE)),0)))),0)))))))))))))), (IF($B$17=0, 0, (IF($B$19>$B$17, (VLOOKUP($B$17,Tablas!$A$73:$G$75,5,TRUE)), (IF($B$17=4,(IF(4-$B$19=0, 0, (IF(4-$B$19=1, (VLOOKUP(1,Tablas!$A$73:$G$75,5,TRUE)), (IF(4-$B$19=2, (VLOOKUP(2,Tablas!$A$73:$G$75,5,TRUE)), (IF(4-$B$19=3, (VLOOKUP(3,Tablas!$A$73:$G$75,5,TRUE)), (IF(4-$B$19=4, (VLOOKUP(3,Tablas!$A$73:$G$75,5,TRUE)), 0)))))))))), (IF($B$17=5,(IF(5-$B$19=0, (VLOOKUP(1,Tablas!$A$73:$G$75,5,TRUE)), (IF(5-$B$19=1, (VLOOKUP(1,Tablas!$A$73:$G$75,5,TRUE)), (IF(5-$B$19=2, (VLOOKUP(2,Tablas!$A$73:$G$75,5,TRUE)), (IF(5-$B$19=3, (VLOOKUP(3,Tablas!$A$73:$G$75,5,TRUE)), (IF(5-$B$19=4, (VLOOKUP(3,Tablas!$A$73:$G$75,5,TRUE)), (VLOOKUP(3,Tablas!$A$73:$G$75,5,TRUE)))))))))))), (IF($B$17=6,(IF(6-$B$19=0, (VLOOKUP(2,Tablas!$A$73:$G$75,5,TRUE)), (IF(6-$B$19=1, (VLOOKUP(2,Tablas!$A$73:$G$75,5,TRUE)), (IF(6-$B$19=2, (VLOOKUP(2,Tablas!$A$73:$G$75,5,TRUE)), (IF(6-$B$19=3, (VLOOKUP(3,Tablas!$A$73:$G$75,5,TRUE)), (IF(6-$B$19=4, (VLOOKUP(3,Tablas!$A$73:$G$75,5,TRUE)), (VLOOKUP(3,Tablas!$A$73:$G$75,5,TRUE)))))))))))), (IF($B$17>6,(IF(7-$B$19=0, (VLOOKUP(3,Tablas!$A$73:$G$75,5,TRUE)), (IF(7-$B$19=1, (VLOOKUP(3,Tablas!$A$73:$G$75,5,TRUE)), (IF(7-$B$19=2, (VLOOKUP(3,Tablas!$A$73:$G$75,5,TRUE)), (IF(7-$B$19=3, (VLOOKUP(3,Tablas!$A$73:$G$75,5,TRUE)), (IF(7-$B$19=4, (VLOOKUP(3,Tablas!$A$73:$G$75,5,TRUE)), (VLOOKUP(3,Tablas!$A$73:$G$75,5,TRUE)))))))))))), (IF($B$17=3,(IF(3-$B$19=0,0, (IF(3-$B$19=1,(VLOOKUP(1,Tablas!$A$73:$G$75,5,TRUE)), (IF(3-$B$19=2, (VLOOKUP(2,Tablas!$A$73:$G$75,5,TRUE)), (VLOOKUP(3,Tablas!$A$73:$G$75,5,TRUE)))))))), (IF($B$17=2,(IF(2-$B$19=0, 0, (IF(2-$B$19=1,(VLOOKUP(1,Tablas!$A$73:$G$75,5,TRUE)), (IF(2-$B$19=2, (VLOOKUP(2,Tablas!$A$73:$G$75,5,TRUE)), 0)))))), (IF($B$17=1,(IF(1-$B$19=0, 0, (IF(1-$B$19=1,(VLOOKUP(1,Tablas!$A$73:$G$75,5,TRUE)),0)))),0))))))))))))))))))) -> 3242 | F34: =IF($B$15=1, (IF($B$17=0, 0, (IF($B$19>$B$17, (VLOOKUP($B$17,Tablas!$A$73:$G$75,6,TRUE)), (IF($B$17>4,(IF($B$19=0, (VLOOKUP(3,Tablas!$A$73:$G$75,6,TRUE)), (IF($B$19=1, (VLOOKUP(3,Tablas!$A$73:$G$75,6,TRUE)), (IF($B$19=2, (VLOOKUP(3,Tablas!$A$73:$G$75,6,TRUE)), (VLOOKUP(3,Tablas!$A$73:$G$75,6,TRUE)))))))), (IF($B$17=4,(IF(4-$B$19=0,(VLOOKUP(2,Tablas!$A$73:$G$75,6,TRUE)), (IF(4-$B$19=1,(VLOOKUP(2,Tablas!$A$73:$G$75,6,TRUE)), (IF(4-$B$19=2, (VLOOKUP(2,Tablas!$A$73:$G$75,6,TRUE)), (VLOOKUP(3,Tablas!$A$73:$G$75,6,TRUE)))))))), (IF($B$17=3,(IF(3-$B$19=0,(VLOOKUP(1,Tablas!$A$73:$G$75,6,TRUE)), (IF(3-$B$19=1,(VLOOKUP(1,Tablas!$A$73:$G$75,6,TRUE)), (IF(3-$B$19=2, (VLOOKUP(2,Tablas!$A$73:$G$75,6,TRUE)), (VLOOKUP(3,Tablas!$A$73:$G$75,6,TRUE)))))))), (IF($B$17=2,(IF(2-$B$19=0, 0, (IF(2-$B$19=1,(VLOOKUP(1,Tablas!$A$73:$G$75,6,TRUE)), (IF(2-$B$19=2, (VLOOKUP(2,Tablas!$A$73:$G$75,6,TRUE)), 0)))))), (IF($B$17=1,(IF(1-$B$19=0, 0, (IF(1-$B$19=1,(VLOOKUP(1,Tablas!$A$73:$G$75,6,TRUE)),0)))),0)))))))))))))), (IF($B$17=0, 0, (IF($B$19>$B$17, (VLOOKUP($B$17,Tablas!$A$73:$G$75,6,TRUE)), (IF($B$17=4,(IF(4-$B$19=0, 0, (IF(4-$B$19=1, (VLOOKUP(1,Tablas!$A$73:$G$75,6,TRUE)), (IF(4-$B$19=2, (VLOOKUP(2,Tablas!$A$73:$G$75,6,TRUE)), (IF(4-$B$19=3, (VLOOKUP(3,Tablas!$A$73:$G$75,6,TRUE)), (IF(4-$B$19=4, (VLOOKUP(3,Tablas!$A$73:$G$75,6,TRUE)), 0)))))))))), (IF($B$17=5,(IF(5-$B$19=0, (VLOOKUP(1,Tablas!$A$73:$G$75,6,TRUE)), (IF(5-$B$19=1, (VLOOKUP(1,Tablas!$A$73:$G$75,6,TRUE)), (IF(5-$B$19=2, (VLOOKUP(2,Tablas!$A$73:$G$75,6,TRUE)), (IF(5-$B$19=3, (VLOOKUP(3,Tablas!$A$73:$G$75,6,TRUE)), (IF(5-$B$19=4, (VLOOKUP(3,Tablas!$A$73:$G$75,6,TRUE)), (VLOOKUP(3,Tablas!$A$73:$G$75,6,TRUE)))))))))))), (IF($B$17=6,(IF(6-$B$19=0, (VLOOKUP(2,Tablas!$A$73:$G$75,6,TRUE)), (IF(6-$B$19=1, (VLOOKUP(2,Tablas!$A$73:$G$75,6,TRUE)), (IF(6-$B$19=2, (VLOOKUP(2,Tablas!$A$73:$G$75,6,TRUE)), (IF(6-$B$19=3, (VLOOKUP(3,Tablas!$A$73:$G$75,6,TRUE)), (IF(6-$B$19=4, (VLOOKUP(3,Tablas!$A$73:$G$75,6,TRUE)), (VLOOKUP(3,Tablas!$A$73:$G$75,6,TRUE)))))))))))), (IF($B$17>6,(IF(7-$B$19=0, (VLOOKUP(3,Tablas!$A$73:$G$75,6,TRUE)), (IF(7-$B$19=1, (VLOOKUP(3,Tablas!$A$73:$G$75,6,TRUE)), (IF(7-$B$19=2, (VLOOKUP(3,Tablas!$A$73:$G$75,6,TRUE)), (IF(7-$B$19=3, (VLOOKUP(3,Tablas!$A$73:$G$75,6,TRUE)), (IF(7-$B$19=4, (VLOOKUP(3,Tablas!$A$73:$G$75,6,TRUE)), (VLOOKUP(3,Tablas!$A$73:$G$75,6,TRUE)))))))))))), (IF($B$17=3,(IF(3-$B$19=0,0, (IF(3-$B$19=1,(VLOOKUP(1,Tablas!$A$73:$G$75,6,TRUE)), (IF(3-$B$19=2, (VLOOKUP(2,Tablas!$A$73:$G$75,6,TRUE)), (VLOOKUP(3,Tablas!$A$73:$G$75,6,TRUE)))))))), (IF($B$17=2,(IF(2-$B$19=0, 0, (IF(2-$B$19=1,(VLOOKUP(1,Tablas!$A$73:$G$75,6,TRUE)), (IF(2-$B$19=2, (VLOOKUP(2,Tablas!$A$73:$G$75,6,TRUE)), 0)))))), (IF($B$17=1,(IF(1-$B$19=0, 0, (IF(1-$B$19=1,(VLOOKUP(1,Tablas!$A$73:$G$75,6,TRUE)),0)))),0))))))))))))))))))) -> 2813 | G34: =IF($B$15=1, (IF($B$17=0, 0, (IF($B$19>$B$17, (VLOOKUP($B$17,Tablas!$A$73:$G$75,7,TRUE)), (IF($B$17>4,(IF($B$19=0, (VLOOKUP(3,Tablas!$A$73:$G$75,7,TRUE)), (IF($B$19=1, (VLOOKUP(3,Tablas!$A$73:$G$75,7,TRUE)), (IF($B$19=2, (VLOOKUP(3,Tablas!$A$73:$G$75,7,TRUE)), (VLOOKUP(3,Tablas!$A$73:$G$75,7,TRUE)))))))), (IF($B$17=4,(IF(4-$B$19=0,(VLOOKUP(2,Tablas!$A$73:$G$75,7,TRUE)), (IF(4-$B$19=1,(VLOOKUP(2,Tablas!$A$73:$G$75,7,TRUE)), (IF(4-$B$19=2, (VLOOKUP(2,Tablas!$A$73:$G$75,7,TRUE)), (VLOOKUP(3,Tablas!$A$73:$G$75,7,TRUE)))))))), (IF($B$17=3,(IF(3-$B$19=0,(VLOOKUP(1,Tablas!$A$73:$G$75,7,TRUE)), (IF(3-$B$19=1,(VLOOKUP(1,Tablas!$A$73:$G$75,7,TRUE)), (IF(3-$B$19=2, (VLOOKUP(2,Tablas!$A$73:$G$75,7,TRUE)), (VLOOKUP(3,Tablas!$A$73:$G$75,7,TRUE)))))))), (IF($B$17=2,(IF(2-$B$19=0, 0, (IF(2-$B$19=1,(VLOOKUP(1,Tablas!$A$73:$G$75,7,TRUE)), (IF(2-$B$19=2, (VLOOKUP(2,Tablas!$A$73:$G$75,7,TRUE)), 0)))))), (IF($B$17=1,(IF(1-$B$19=0, 0, (IF(1-$B$19=1,(VLOOKUP(1,Tablas!$A$73:$G$75,7,TRUE)),0)))),0)))))))))))))), (IF($B$17=0, 0, (IF($B$19>$B$17, (VLOOKUP($B$17,Tablas!$A$73:$G$75,7,TRUE)), (IF($B$17=4,(IF(4-$B$19=0, 0, (IF(4-$B$19=1, (VLOOKUP(1,Tablas!$A$73:$G$75,7,TRUE)), (IF(4-$B$19=2, (VLOOKUP(2,Tablas!$A$73:$G$75,7,TRUE)), (IF(4-$B$19=3, (VLOOKUP(3,Tablas!$A$73:$G$75,7,TRUE)), (IF(4-$B$19=4, (VLOOKUP(3,Tablas!$A$73:$G$75,7,TRUE)), 0)))))))))), (IF($B$17=5,(IF(5-$B$19=0, (VLOOKUP(1,Tablas!$A$73:$G$75,7,TRUE)), (IF(5-$B$19=1, (VLOOKUP(1,Tablas!$A$73:$G$75,7,TRUE)), (IF(5-$B$19=2, (VLOOKUP(2,Tablas!$A$73:$G$75,7,TRUE)), (IF(5-$B$19=3, (VLOOKUP(3,Tablas!$A$73:$G$75,7,TRUE)), (IF(5-$B$19=4, (VLOOKUP(3,Tablas!$A$73:$G$75,7,TRUE)), (VLOOKUP(3,Tablas!$A$73:$G$75,7,TRUE)))))))))))), (IF($B$17=6,(IF(6-$B$19=0, (VLOOKUP(2,Tablas!$A$73:$G$75,7,TRUE)), (IF(6-$B$19=1, (VLOOKUP(2,Tablas!$A$73:$G$75,7,TRUE)), (IF(6-$B$19=2, (VLOOKUP(2,Tablas!$A$73:$G$75,7,TRUE)), (IF(6-$B$19=3, (VLOOKUP(3,Tablas!$A$73:$G$75,7,TRUE)), (IF(6-$B$19=4, (VLOOKUP(3,Tablas!$A$73:$G$75,7,TRUE)), (VLOOKUP(3,Tablas!$A$73:$G$75,7,TRUE)))))))))))), (IF($B$17>6,(IF(7-$B$19=0, (VLOOKUP(3,Tablas!$A$73:$G$75,7,TRUE)), (IF(7-$B$19=1, (VLOOKUP(3,Tablas!$A$73:$G$75,7,TRUE)), (IF(7-$B$19=2, (VLOOKUP(3,Tablas!$A$73:$G$75,7,TRUE)), (IF(7-$B$19=3, (VLOOKUP(3,Tablas!$A$73:$G$75,7,TRUE)), (IF(7-$B$19=4, (VLOOKUP(3,Tablas!$A$73:$G$75,7,TRUE)), (VLOOKUP(3,Tablas!$A$73:$G$75,7,TRUE)))))))))))), (IF($B$17=3,(IF(3-$B$19=0,0, (IF(3-$B$19=1,(VLOOKUP(1,Tablas!$A$73:$G$75,7,TRUE)), (IF(3-$B$19=2, (VLOOKUP(2,Tablas!$A$73:$G$75,7,TRUE)), (VLOOKUP(3,Tablas!$A$73:$G$75,7,TRUE)))))))), (IF($B$17=2,(IF(2-$B$19=0, 0, (IF(2-$B$19=1,(VLOOKUP(1,Tablas!$A$73:$G$75,7,TRUE)), (IF(2-$B$19=2, (VLOOKUP(2,Tablas!$A$73:$G$75,7,TRUE)), 0)))))), (IF($B$17=1,(IF(1-$B$19=0, 0, (IF(1-$B$19=1,(VLOOKUP(1,Tablas!$A$73:$G$75,7,TRUE)),0)))),0))))))))))))))))))) -> 2183
A35: Total de Prima neta | C35: =SUM(C32:C34) -> 33844 | D35: =SUM(D32:D34) -> 29668 | E35: 24516 | F35: 21259 | G35: 16491
A36: Ajuste por la variante con coaseguro fuera del país de residencia | C36: =IF('INGRESO DE DATOS'!$P$3,C35*-25%,0) -> 0 | D36: =IF('INGRESO DE DATOS'!$P$3,D35*-25%,0) -> 0 | E36: =IF('INGRESO DE DATOS'!$P$3,E35*-25%,0) -> 0 | F36: =IF('INGRESO DE DATOS'!$P$3,F35*-25%,0) -> 0 | G36: =IF('INGRESO DE DATOS'!$P$3,G35*-25%,0) -> 0
A37: Tarifa administrativa annual | C37: 75 | D37: 75 | E37: 75 | F37: 75 | G37: 75
A38: VAT (5%) :
A39: ITBMS (7%)
A40: TOTAL ANUAL | C40: =SUM(C35:C39) -> 33919 | D40: =SUM(D35:D39) -> 29743 | E40: 24591 | F40: =SUM(F35:F39) -> 21334 | G40: 16566
A41: Ahorros en tarifas de prima para Dependientes | C41: =IF($B$15=1,IF($B$17=0,0,IF($B$19=0,0,IF($B$19=1,(VLOOKUP(1,Tablas!$A$73:$G$75,3,TRUE)),(VLOOKUP(2,Tablas!$A$73:$G$75,3,TRUE))))), IF($B$17=0,0,IF($B$19=0,0,IF($B$19=1,(VLOOKUP(1,Tablas!$A$73:$G$75,3,TRUE)),IF($B$19=2,(VLOOKUP(2,Tablas!$A$73:$G$75,3,TRUE)), (VLOOKUP(3,Tablas!$A$73:$G$75,3,TRUE))))))) -> 4366 | D41: =IF($B$15=1,IF($B$17=0,0,IF($B$19=0,0,IF($B$19=1,(VLOOKUP(1,Tablas!$A$73:$G$75,4,TRUE)),(VLOOKUP(2,Tablas!$A$73:$G$75,4,TRUE))))), IF($B$17=0,0,IF($B$19=0,0,IF($B$19=1,(VLOOKUP(1,Tablas!$A$73:$G$75,4,TRUE)),IF($B$19=2,(VLOOKUP(2,Tablas!$A$73:$G$75,4,TRUE)), (VLOOKUP(3,Tablas!$A$73:$G$75,4,TRUE))))))) -> 3828 | E41: =IF($B$15=1,IF($B$17=0,0,IF($B$19=0,0,IF($B$19=1,(VLOOKUP(1,Tablas!$A$73:$G$75,5,TRUE)),(VLOOKUP(2,Tablas!$A$73:$G$75,5,TRUE))))), IF($B$17=0,0,IF($B$19=0,0,IF($B$19=1,(VLOOKUP(1,Tablas!$A$73:$G$75,5,TRUE)),IF($B$19=2,(VLOOKUP(2,Tablas!$A$73:$G$75,5,TRUE)), (VLOOKUP(3,Tablas!$A$73:$G$75,5,TRUE))))))) -> 3242 | F41: =IF($B$15=1,IF($B$17=0,0,IF($B$19=0,0,IF($B$19=1,(VLOOKUP(1,Tablas!$A$73:$G$75,6,TRUE)),(VLOOKUP(2,Tablas!$A$73:$G$75,6,TRUE))))), IF($B$17=0,0,IF($B$19=0,0,IF($B$19=1,(VLOOKUP(1,Tablas!$A$73:$G$75,6,TRUE)),IF($B$19=2,(VLOOKUP(2,Tablas!$A$73:$G$75,6,TRUE)), (VLOOKUP(3,Tablas!$A$73:$G$75,6,TRUE))))))) -> 2813 | G41: =IF($B$15=1,IF($B$17=0,0,IF($B$19=0,0,IF($B$19=1,(VLOOKUP(1,Tablas!$A$73:$G$75,7,TRUE)),(VLOOKUP(2,Tablas!$A$73:$G$75,7,TRUE))))), IF($B$17=0,0,IF($B$19=0,0,IF($B$19=1,(VLOOKUP(1,Tablas!$A$73:$G$75,7,TRUE)),IF($B$19=2,(VLOOKUP(2,Tablas!$A$73:$G$75,7,TRUE)), (VLOOKUP(3,Tablas!$A$73:$G$75,7,TRUE))))))) -> 2183
A43: TARIFAS SEMIANUALES
A44: Prima para Asegurado Titular | C44: =VLOOKUP($B$21,Tablas!$A$458:$G$524,3,TRUE) -> 6511.05 | D44: =VLOOKUP($B$21,Tablas!$A$458:$G$524,4,TRUE) -> 5707.04 | E44: =VLOOKUP($B$21,Tablas!$A$458:$G$524,5,TRUE) -> 4734.49 | F44: =VLOOKUP($B$21,Tablas!$A$458:$G$524,6,TRUE) -> 4104.85 | G44: =VLOOKUP($B$21,Tablas!$A$458:$G$524,7,TRUE) -> 3184.24
A45: Prima para conyuge | C45: =IF($B$15=1,0,(VLOOKUP($G$21,Tablas!$A$458:$G$524,3,TRUE))) -> 9112.29 | D45: =IF($B$15=1,0,(VLOOKUP($G$21,Tablas!$A$458:$G$524,4,TRUE))) -> 7988.16 | E45: =IF($B$15=1,0,(VLOOKUP($G$21,Tablas!$A$458:$G$524,5,TRUE))) -> 6540.73 | F45: =IF($B$15=1,0,(VLOOKUP($G$21,Tablas!$A$458:$G$524,6,TRUE))) -> 5671.53 | G45: =IF($B$15=1,0,(VLOOKUP($G$21,Tablas!$A$458:$G$524,7,TRUE))) -> 4399
A46: Prima para hijo (s) | C46: =IF($B$15=1, (IF($B$17=0, 0, (IF($B$19>$B$17, (VLOOKUP($B$17,Tablas!$A$525:$G$527,3,TRUE)), (IF($B$17>4,(IF($B$19=0, (VLOOKUP(3,Tablas!$A$525:$G$527,3,TRUE)), (IF($B$19=1, (VLOOKUP(3,Tablas!$A$525:$G$527,3,TRUE)), (IF($B$19=2, (VLOOKUP(3,Tablas!$A$525:$G$527,3,TRUE)), (VLOOKUP(3,Tablas!$A$525:$G$527,3,TRUE)))))))), (IF($B$17=4,(IF(4-$B$19=0,(VLOOKUP(2,Tablas!$A$525:$G$527,3,TRUE)), (IF(4-$B$19=1,(VLOOKUP(2,Tablas!$A$525:$G$527,3,TRUE)), (IF(4-$B$19=2, (VLOOKUP(2,Tablas!$A$525:$G$527,3,TRUE)), (VLOOKUP(3,Tablas!$A$525:$G$527,3,TRUE)))))))), (IF($B$17=3,(IF(3-$B$19=0,(VLOOKUP(1,Tablas!$A$525:$G$527,3,TRUE)), (IF(3-$B$19=1,(VLOOKUP(1,Tablas!$A$525:$G$527,3,TRUE)), (IF(3-$B$19=2, (VLOOKUP(2,Tablas!$A$525:$G$527,3,TRUE)), (VLOOKUP(3,Tablas!$A$525:$G$527,3,TRUE)))))))), (IF($B$17=2,(IF(2-$B$19=0, 0, (IF(2-$B$19=1,(VLOOKUP(1,Tablas!$A$525:$G$527,3,TRUE)), (IF(2-$B$19=2, (VLOOKUP(2,Tablas!$A$525:$G$527,3,TRUE)), 0)))))), (IF($B$17=1,(IF(1-$B$19=0, 0, (IF(1-$B$19=1,(VLOOKUP(1,Tablas!$A$525:$G$527,3,TRUE)),0)))),0)))))))))))))), (IF($B$17=0, 0, (IF($B$19>$B$17, (VLOOKUP($B$17,Tablas!$A$525:$G$527,3,TRUE)), (IF($B$17=4,(IF(4-$B$19=0, 0, (IF(4-$B$19=1, (VLOOKUP(1,Tablas!$A$525:$G$527,3,TRUE)), (IF(4-$B$19=2, (VLOOKUP(2,Tablas!$A$525:$G$527,3,TRUE)), (IF(4-$B$19=3, (VLOOKUP(3,Tablas!$A$525:$G$527,3,TRUE)), (IF(4-$B$19=4, (VLOOKUP(3,Tablas!$A$525:$G$527,3,TRUE)), 0)))))))))), (IF($B$17=5,(IF(5-$B$19=0, (VLOOKUP(1,Tablas!$A$525:$G$527,3,TRUE)), (IF(5-$B$19=1, (VLOOKUP(1,Tablas!$A$525:$G$527,3,TRUE)), (IF(5-$B$19=2, (VLOOKUP(2,Tablas!$A$525:$G$527,3,TRUE)), (IF(5-$B$19=3, (VLOOKUP(3,Tablas!$A$525:$G$527,3,TRUE)), (IF(5-$B$19=4, (VLOOKUP(3,Tablas!$A$525:$G$527,3,TRUE)), (VLOOKUP(3,Tablas!$A$525:$G$527,3,TRUE)))))))))))), (IF($B$17=6,(IF(6-$B$19=0, (VLOOKUP(2,Tablas!$A$525:$G$527,3,TRUE)), (IF(6-$B$19=1, (VLOOKUP(2,Tablas!$A$525:$G$527,3,TRUE)), (IF(6-$B$19=2, (VLOOKUP(2,Tablas!$A$525:$G$527,3,TRUE)), (IF(6-$B$19=3, (VLOOKUP(3,Tablas!$A$525:$G$527,3,TRUE)), (IF(6-$B$19=4, (VLOOKUP(3,Tablas!$A$525:$G$527,3,TRUE)), (VLOOKUP(3,Tablas!$A$525:$G$527,3,TRUE)))))))))))), (IF($B$17>6,(IF(7-$B$19=0, (VLOOKUP(3,Tablas!$A$525:$G$527,3,TRUE)), (IF(7-$B$19=1, (VLOOKUP(3,Tablas!$A$525:$G$527,3,TRUE)), (IF(7-$B$19=2, (VLOOKUP(3,Tablas!$A$525:$G$527,3,TRUE)), (IF(7-$B$19=3, (VLOOKUP(3,Tablas!$A$525:$G$527,3,TRUE)), (IF(7-$B$19=4, (VLOOKUP(3,Tablas!$A$525:$G$527,3,TRUE)), (VLOOKUP(3,Tablas!$A$525:$G$527,3,TRUE)))))))))))), (IF($B$17=3,(IF(3-$B$19=0,0, (IF(3-$B$19=1,(VLOOKUP(1,Tablas!$A$525:$G$527,3,TRUE)), (IF(3-$B$19=2, (VLOOKUP(2,Tablas!$A$525:$G$527,3,TRUE)), (VLOOKUP(3,Tablas!$A$525:$G$527,3,TRUE)))))))), (IF($B$17=2,(IF(2-$B$19=0, 0, (IF(2-$B$19=1,(VLOOKUP(1,Tablas!$A$525:$G$527,3,TRUE)), (IF(2-$B$19=2, (VLOOKUP(2,Tablas!$A$525:$G$527,3,TRUE)), 0)))))), (IF($B$17=1,(IF(1-$B$19=0, 0, (IF(1-$B$19=1,(VLOOKUP(1,Tablas!$A$525:$G$527,3,TRUE)),0)))),0))))))))))))))))))) -> 2313.98 | D46: =IF($B$15=1, (IF($B$17=0, 0, (IF($B$19>$B$17, (VLOOKUP($B$17,Tablas!$A$525:$G$527,4,TRUE)), (IF($B$17>4,(IF($B$19=0, (VLOOKUP(3,Tablas!$A$525:$G$527,4,TRUE)), (IF($B$19=1, (VLOOKUP(3,Tablas!$A$525:$G$527,4,TRUE)), (IF($B$19=2, (VLOOKUP(3,Tablas!$A$525:$G$527,4,TRUE)), (VLOOKUP(3,Tablas!$A$525:$G$527,4,TRUE)))))))), (IF($B$17=4,(IF(4-$B$19=0,(VLOOKUP(2,Tablas!$A$525:$G$527,4,TRUE)), (IF(4-$B$19=1,(VLOOKUP(2,Tablas!$A$525:$G$527,4,TRUE)), (IF(4-$B$19=2, (VLOOKUP(2,Tablas!$A$525:$G$527,4,TRUE)), (VLOOKUP(3,Tablas!$A$525:$G$527,4,TRUE)))))))), (IF($B$17=3,(IF(3-$B$19=0,(VLOOKUP(1,Tablas!$A$525:$G$527,4,TRUE)), (IF(3-$B$19=1,(VLOOKUP(1,Tablas!$A$525:$G$527,4,TRUE)), (IF(3-$B$19=2, (VLOOKUP(2,Tablas!$A$525:$G$527,4,TRUE)), (VLOOKUP(3,Tablas!$A$525:$G$527,4,TRUE)))))))), (IF($B$17=2,(IF(2-$B$19=0, 0, (IF(2-$B$19=1,(VLOOKUP(1,Tablas!$A$525:$G$527,4,TRUE)), (IF(2-$B$19=2, (VLOOKUP(2,Tablas!$A$525:$G$527,4,TRUE)), 0)))))), (IF($B$17=1,(IF(1-$B$19=0, 0, (IF(1-$B$19=1,(VLOOKUP(1,Tablas!$A$525:$G$527,4,TRUE)),0)))),0)))))))))))))), (IF($B$17=0, 0, (IF($B$19>$B$17, (VLOOKUP($B$17,Tablas!$A$525:$G$527,4,TRUE)), (IF($B$17=4,(IF(4-$B$19=0, 0, (IF(4-$B$19=1, (VLOOKUP(1,Tablas!$A$525:$G$527,4,TRUE)), (IF(4-$B$19=2, (VLOOKUP(2,Tablas!$A$525:$G$527,4,TRUE)), (IF(4-$B$19=3, (VLOOKUP(3,Tablas!$A$525:$G$527,4,TRUE)), (IF(4-$B$19=4, (VLOOKUP(3,Tablas!$A$525:$G$527,4,TRUE)), 0)))))))))), (IF($B$17=5,(IF(5-$B$19=0, (VLOOKUP(1,Tablas!$A$525:$G$527,4,TRUE)), (IF(5-$B$19=1, (VLOOKUP(1,Tablas!$A$525:$G$527,4,TRUE)), (IF(5-$B$19=2, (VLOOKUP(2,Tablas!$A$525:$G$527,4,TRUE)), (IF(5-$B$19=3, (VLOOKUP(3,Tablas!$A$525:$G$527,4,TRUE)), (IF(5-$B$19=4, (VLOOKUP(3,Tablas!$A$525:$G$527,4,TRUE)), (VLOOKUP(3,Tablas!$A$525:$G$527,4,TRUE)))))))))))), (IF($B$17=6,(IF(6-$B$19=0, (VLOOKUP(2,Tablas!$A$525:$G$527,4,TRUE)), (IF(6-$B$19=1, (VLOOKUP(2,Tablas!$A$525:$G$527,4,TRUE)), (IF(6-$B$19=2, (VLOOKUP(2,Tablas!$A$525:$G$527,4,TRUE)), (IF(6-$B$19=3, (VLOOKUP(3,Tablas!$A$525:$G$527,4,TRUE)), (IF(6-$B$19=4, (VLOOKUP(3,Tablas!$A$525:$G$527,4,TRUE)), (VLOOKUP(3,Tablas!$A$525:$G$527,4,TRUE)))))))))))), (IF($B$17>6,(IF(7-$B$19=0, (VLOOKUP(3,Tablas!$A$525:$G$527,4,TRUE)), (IF(7-$B$19=1, (VLOOKUP(3,Tablas!$A$525:$G$527,4,TRUE)), (IF(7-$B$19=2, (VLOOKUP(3,Tablas!$A$525:$G$527,4,TRUE)), (IF(7-$B$19=3, (VLOOKUP(3,Tablas!$A$525:$G$527,4,TRUE)), (IF(7-$B$19=4, (VLOOKUP(3,Tablas!$A$525:$G$527,4,TRUE)), (VLOOKUP(3,Tablas!$A$525:$G$527,4,TRUE)))))))))))), (IF($B$17=3,(IF(3-$B$19=0,0, (IF(3-$B$19=1,(VLOOKUP(1,Tablas!$A$525:$G$527,4,TRUE)), (IF(3-$B$19=2, (VLOOKUP(2,Tablas!$A$525:$G$527,4,TRUE)), (VLOOKUP(3,Tablas!$A$525:$G$527,4,TRUE)))))))), (IF($B$17=2,(IF(2-$B$19=0, 0, (IF(2-$B$19=1,(VLOOKUP(1,Tablas!$A$525:$G$527,4,TRUE)), (IF(2-$B$19=2, (VLOOKUP(2,Tablas!$A$525:$G$527,4,TRUE)), 0)))))), (IF($B$17=1,(IF(1-$B$19=0, 0, (IF(1-$B$19=1,(VLOOKUP(1,Tablas!$A$525:$G$527,4,TRUE)),0)))),0))))))))))))))))))) -> 2028.84 | E46: =IF($B$15=1, (IF($B$17=0, 0, (IF($B$19>$B$17, (VLOOKUP($B$17,Tablas!$A$525:$G$527,5,TRUE)), (IF($B$17>4,(IF($B$19=0, (VLOOKUP(3,Tablas!$A$525:$G$527,5,TRUE)), (IF($B$19=1, (VLOOKUP(3,Tablas!$A$525:$G$527,5,TRUE)), (IF($B$19=2, (VLOOKUP(3,Tablas!$A$525:$G$527,5,TRUE)), (VLOOKUP(3,Tablas!$A$525:$G$527,5,TRUE)))))))), (IF($B$17=4,(IF(4-$B$19=0,(VLOOKUP(2,Tablas!$A$525:$G$527,5,TRUE)), (IF(4-$B$19=1,(VLOOKUP(2,Tablas!$A$525:$G$527,5,TRUE)), (IF(4-$B$19=2, (VLOOKUP(2,Tablas!$A$525:$G$527,5,TRUE)), (VLOOKUP(3,Tablas!$A$525:$G$527,5,TRUE)))))))), (IF($B$17=3,(IF(3-$B$19=0,(VLOOKUP(1,Tablas!$A$525:$G$527,5,TRUE)), (IF(3-$B$19=1,(VLOOKUP(1,Tablas!$A$525:$G$527,5,TRUE)), (IF(3-$B$19=2, (VLOOKUP(2,Tablas!$A$525:$G$527,5,TRUE)), (VLOOKUP(3,Tablas!$A$525:$G$527,5,TRUE)))))))), (IF($B$17=2,(IF(2-$B$19=0, 0, (IF(2-$B$19=1,(VLOOKUP(1,Tablas!$A$525:$G$527,5,TRUE)), (IF(2-$B$19=2, (VLOOKUP(2,Tablas!$A$525:$G$527,5,TRUE)), 0)))))), (IF($B$17=1,(IF(1-$B$19=0, 0, (IF(1-$B$19=1,(VLOOKUP(1,Tablas!$A$525:$G$527,5,TRUE)),0)))),0)))))))))))))), (IF($B$17=0, 0, (IF($B$19>$B$17, (VLOOKUP($B$17,Tablas!$A$525:$G$527,5,TRUE)), (IF($B$17=4,(IF(4-$B$19=0, 0, (IF(4-$B$19=1, (VLOOKUP(1,Tablas!$A$525:$G$527,5,TRUE)), (IF(4-$B$19=2, (VLOOKUP(2,Tablas!$A$525:$G$527,5,TRUE)), (IF(4-$B$19=3, (VLOOKUP(3,Tablas!$A$525:$G$527,5,TRUE)), (IF(4-$B$19=4, (VLOOKUP(3,Tablas!$A$525:$G$527,5,TRUE)), 0)))))))))), (IF($B$17=5,(IF(5-$B$19=0, (VLOOKUP(1,Tablas!$A$525:$G$527,5,TRUE)), (IF(5-$B$19=1, (VLOOKUP(1,Tablas!$A$525:$G$527,5,TRUE)), (IF(5-$B$19=2, (VLOOKUP(2,Tablas!$A$525:$G$527,5,TRUE)), (IF(5-$B$19=3, (VLOOKUP(3,Tablas!$A$525:$G$527,5,TRUE)), (IF(5-$B$19=4, (VLOOKUP(3,Tablas!$A$525:$G$527,5,TRUE)), (VLOOKUP(3,Tablas!$A$525:$G$527,5,TRUE)))))))))))), (IF($B$17=6,(IF(6-$B$19=0, (VLOOKUP(2,Tablas!$A$525:$G$527,5,TRUE)), (IF(6-$B$19=1, (VLOOKUP(2,Tablas!$A$525:$G$527,5,TRUE)), (IF(6-$B$19=2, (VLOOKUP(2,Tablas!$A$525:$G$527,5,TRUE)), (IF(6-$B$19=3, (VLOOKUP(3,Tablas!$A$525:$G$527,5,TRUE)), (IF(6-$B$19=4, (VLOOKUP(3,Tablas!$A$525:$G$527,5,TRUE)), (VLOOKUP(3,Tablas!$A$525:$G$527,5,TRUE)))))))))))), (IF($B$17>6,(IF(7-$B$19=0, (VLOOKUP(3,Tablas!$A$525:$G$527,5,TRUE)), (IF(7-$B$19=1, (VLOOKUP(3,Tablas!$A$525:$G$527,5,TRUE)), (IF(7-$B$19=2, (VLOOKUP(3,Tablas!$A$525:$G$527,5,TRUE)), (IF(7-$B$19=3, (VLOOKUP(3,Tablas!$A$525:$G$527,5,TRUE)), (IF(7-$B$19=4, (VLOOKUP(3,Tablas!$A$525:$G$527,5,TRUE)), (VLOOKUP(3,Tablas!$A$525:$G$527,5,TRUE)))))))))))), (IF($B$17=3,(IF(3-$B$19=0,0, (IF(3-$B$19=1,(VLOOKUP(1,Tablas!$A$525:$G$527,5,TRUE)), (IF(3-$B$19=2, (VLOOKUP(2,Tablas!$A$525:$G$527,5,TRUE)), (VLOOKUP(3,Tablas!$A$525:$G$527,5,TRUE)))))))), (IF($B$17=2,(IF(2-$B$19=0, 0, (IF(2-$B$19=1,(VLOOKUP(1,Tablas!$A$525:$G$527,5,TRUE)), (IF(2-$B$19=2, (VLOOKUP(2,Tablas!$A$525:$G$527,5,TRUE)), 0)))))), (IF($B$17=1,(IF(1-$B$19=0, 0, (IF(1-$B$19=1,(VLOOKUP(1,Tablas!$A$525:$G$527,5,TRUE)),0)))),0))))))))))))))))))) -> 1718.26 | F46: =IF($B$15=1, (IF($B$17=0, 0, (IF($B$19>$B$17, (VLOOKUP($B$17,Tablas!$A$525:$G$527,6,TRUE)), (IF($B$17>4,(IF($B$19=0, (VLOOKUP(3,Tablas!$A$525:$G$527,6,TRUE)), (IF($B$19=1, (VLOOKUP(3,Tablas!$A$525:$G$527,6,TRUE)), (IF($B$19=2, (VLOOKUP(3,Tablas!$A$525:$G$527,6,TRUE)), (VLOOKUP(3,Tablas!$A$525:$G$527,7,TRUE)))))))), (IF($B$17=4,(IF(4-$B$19=0,(VLOOKUP(2,Tablas!$A$525:$G$527,6,TRUE)), (IF(4-$B$19=1,(VLOOKUP(2,Tablas!$A$525:$G$527,6,TRUE)), (IF(4-$B$19=2, (VLOOKUP(2,Tablas!$A$525:$G$527,6,TRUE)), (VLOOKUP(3,Tablas!$A$525:$G$527,6,TRUE)))))))), (IF($B$17=3,(IF(3-$B$19=0,(VLOOKUP(1,Tablas!$A$525:$G$527,6,TRUE)), (IF(3-$B$19=1,(VLOOKUP(1,Tablas!$A$525:$G$527,6,TRUE)), (IF(3-$B$19=2, (VLOOKUP(2,Tablas!$A$525:$G$527,6,TRUE)), (VLOOKUP(3,Tablas!$A$525:$G$527,6,TRUE)))))))), (IF($B$17=2,(IF(2-$B$19=0, 0, (IF(2-$B$19=1,(VLOOKUP(1,Tablas!$A$525:$G$527,6,TRUE)), (IF(2-$B$19=2, (VLOOKUP(2,Tablas!$A$525:$G$527,6,TRUE)), 0)))))), (IF($B$17=1,(IF(1-$B$19=0, 0, (IF(1-$B$19=1,(VLOOKUP(1,Tablas!$A$525:$G$527,6,TRUE)),0)))),0)))))))))))))), (IF($B$17=0, 0, (IF($B$19>$B$17, (VLOOKUP($B$17,Tablas!$A$525:$G$527,6,TRUE)), (IF($B$17=4,(IF(4-$B$19=0, 0, (IF(4-$B$19=1, (VLOOKUP(1,Tablas!$A$525:$G$527,6,TRUE)), (IF(4-$B$19=2, (VLOOKUP(2,Tablas!$A$525:$G$527,6,TRUE)), (IF(4-$B$19=3, (VLOOKUP(3,Tablas!$A$525:$G$527,6,TRUE)), (IF(4-$B$19=4, (VLOOKUP(3,Tablas!$A$525:$G$527,6,TRUE)), 0)))))))))), (IF($B$17=5,(IF(5-$B$19=0, (VLOOKUP(1,Tablas!$A$525:$G$527,6,TRUE)), (IF(5-$B$19=1, (VLOOKUP(1,Tablas!$A$525:$G$527,6,TRUE)), (IF(5-$B$19=2, (VLOOKUP(2,Tablas!$A$525:$G$527,6,TRUE)), (IF(5-$B$19=3, (VLOOKUP(3,Tablas!$A$525:$G$527,6,TRUE)), (IF(5-$B$19=4, (VLOOKUP(3,Tablas!$A$525:$G$527,6,TRUE)), (VLOOKUP(3,Tablas!$A$525:$G$527,7,TRUE)))))))))))), (IF($B$17=6,(IF(6-$B$19=0, (VLOOKUP(2,Tablas!$A$525:$G$527,6,TRUE)), (IF(6-$B$19=1, (VLOOKUP(2,Tablas!$A$525:$G$527,6,TRUE)), (IF(6-$B$19=2, (VLOOKUP(2,Tablas!$A$525:$G$527,6,TRUE)), (IF(6-$B$19=3, (VLOOKUP(3,Tablas!$A$525:$G$527,6,TRUE)), (IF(6-$B$19=4, (VLOOKUP(3,Tablas!$A$525:$G$527,6,TRUE)), (VLOOKUP(3,Tablas!$A$525:$G$527,7,TRUE)))))))))))), (IF($B$17>6,(IF(7-$B$19=0, (VLOOKUP(3,Tablas!$A$525:$G$527,6,TRUE)), (IF(7-$B$19=1, (VLOOKUP(3,Tablas!$A$525:$G$527,6,TRUE)), (IF(7-$B$19=2, (VLOOKUP(3,Tablas!$A$525:$G$527,6,TRUE)), (IF(7-$B$19=3, (VLOOKUP(3,Tablas!$A$525:$G$527,6,TRUE)), (IF(7-$B$19=4, (VLOOKUP(3,Tablas!$A$525:$G$527,6,TRUE)), (VLOOKUP(3,Tablas!$A$525:$G$527,6,TRUE)))))))))))), (IF($B$17=3,(IF(3-$B$19=0,0, (IF(3-$B$19=1,(VLOOKUP(1,Tablas!$A$525:$G$527,6,TRUE)), (IF(3-$B$19=2, (VLOOKUP(2,Tablas!$A$525:$G$527,6,TRUE)), (VLOOKUP(3,Tablas!$A$525:$G$527,7,TRUE)))))))), (IF($B$17=2,(IF(2-$B$19=0, 0, (IF(2-$B$19=1,(VLOOKUP(1,Tablas!$A$525:$G$527,6,TRUE)), (IF(2-$B$19=2, (VLOOKUP(2,Tablas!$A$525:$G$527,6,TRUE)), 0)))))), (IF($B$17=1,(IF(1-$B$19=0, 0, (IF(1-$B$19=1,(VLOOKUP(1,Tablas!$A$525:$G$527,6,TRUE)),0)))),0))))))))))))))))))) -> 1490.89 | G46: =IF($B$15=1, (IF($B$17=0, 0, (IF($B$19>$B$17, (VLOOKUP($B$17,Tablas!$A$525:$G$527,7,TRUE)), (IF($B$17>4,(IF($B$19=0, (VLOOKUP(3,Tablas!$A$525:$G$527,7,TRUE)), (IF($B$19=1, (VLOOKUP(3,Tablas!$A$525:$G$527,7,TRUE)), (IF($B$19=2, (VLOOKUP(3,Tablas!$A$525:$G$527,7,TRUE)), (VLOOKUP(3,Tablas!$A$525:$G$527,7,TRUE)))))))), (IF($B$17=4,(IF(4-$B$19=0,(VLOOKUP(2,Tablas!$A$525:$G$527,7,TRUE)), (IF(4-$B$19=1,(VLOOKUP(2,Tablas!$A$525:$G$527,7,TRUE)), (IF(4-$B$19=2, (VLOOKUP(2,Tablas!$A$525:$G$527,7,TRUE)), (VLOOKUP(3,Tablas!$A$525:$G$527,7,TRUE)))))))), (IF($B$17=3,(IF(3-$B$19=0,(VLOOKUP(1,Tablas!$A$525:$G$527,7,TRUE)), (IF(3-$B$19=1,(VLOOKUP(1,Tablas!$A$525:$G$527,7,TRUE)), (IF(3-$B$19=2, (VLOOKUP(2,Tablas!$A$525:$G$527,7,TRUE)), (VLOOKUP(3,Tablas!$A$525:$G$527,7,TRUE)))))))), (IF($B$17=2,(IF(2-$B$19=0, 0, (IF(2-$B$19=1,(VLOOKUP(1,Tablas!$A$525:$G$527,7,TRUE)), (IF(2-$B$19=2, (VLOOKUP(2,Tablas!$A$525:$G$527,7,TRUE)), 0)))))), (IF($B$17=1,(IF(1-$B$19=0, 0, (IF(1-$B$19=1,(VLOOKUP(1,Tablas!$A$525:$G$527,7,TRUE)),0)))),0)))))))))))))), (IF($B$17=0, 0, (IF($B$19>$B$17, (VLOOKUP($B$17,Tablas!$A$525:$G$527,7,TRUE)), (IF($B$17=4,(IF(4-$B$19=0, 0, (IF(4-$B$19=1, (VLOOKUP(1,Tablas!$A$525:$G$527,7,TRUE)), (IF(4-$B$19=2, (VLOOKUP(2,Tablas!$A$525:$G$527,7,TRUE)), (IF(4-$B$19=3, (VLOOKUP(3,Tablas!$A$525:$G$527,7,TRUE)), (IF(4-$B$19=4, (VLOOKUP(3,Tablas!$A$525:$G$527,7,TRUE)), 0)))))))))), (IF($B$17=5,(IF(5-$B$19=0, (VLOOKUP(1,Tablas!$A$525:$G$527,7,TRUE)), (IF(5-$B$19=1, (VLOOKUP(1,Tablas!$A$525:$G$527,7,TRUE)), (IF(5-$B$19=2, (VLOOKUP(2,Tablas!$A$525:$G$527,7,TRUE)), (IF(5-$B$19=3, (VLOOKUP(3,Tablas!$A$525:$G$527,7,TRUE)), (IF(5-$B$19=4, (VLOOKUP(3,Tablas!$A$525:$G$527,7,TRUE)), (VLOOKUP(3,Tablas!$A$525:$G$527,7,TRUE)))))))))))), (IF($B$17=6,(IF(6-$B$19=0, (VLOOKUP(2,Tablas!$A$525:$G$527,7,TRUE)), (IF(6-$B$19=1, (VLOOKUP(2,Tablas!$A$525:$G$527,7,TRUE)), (IF(6-$B$19=2, (VLOOKUP(2,Tablas!$A$525:$G$527,7,TRUE)), (IF(6-$B$19=3, (VLOOKUP(3,Tablas!$A$525:$G$527,7,TRUE)), (IF(6-$B$19=4, (VLOOKUP(3,Tablas!$A$525:$G$527,7,TRUE)), (VLOOKUP(3,Tablas!$A$525:$G$527,7,TRUE)))))))))))), (IF($B$17>6,(IF(7-$B$19=0, (VLOOKUP(3,Tablas!$A$525:$G$527,7,TRUE)), (IF(7-$B$19=1, (VLOOKUP(3,Tablas!$A$525:$G$527,7,TRUE)), (IF(7-$B$19=2, (VLOOKUP(3,Tablas!$A$525:$G$527,7,TRUE)), (IF(7-$B$19=3, (VLOOKUP(3,Tablas!$A$525:$G$527,7,TRUE)), (IF(7-$B$19=4, (VLOOKUP(3,Tablas!$A$525:$G$527,7,TRUE)), (VLOOKUP(3,Tablas!$A$525:$G$527,7,TRUE)))))))))))), (IF($B$17=3,(IF(3-$B$19=0,0, (IF(3-$B$19=1,(VLOOKUP(1,Tablas!$A$525:$G$527,7,TRUE)), (IF(3-$B$19=2, (VLOOKUP(2,Tablas!$A$525:$G$527,7,TRUE)), (VLOOKUP(3,Tablas!$A$525:$G$527,7,TRUE)))))))), (IF($B$17=2,(IF(2-$B$19=0, 0, (IF(2-$B$19=1,(VLOOKUP(1,Tablas!$A$525:$G$527,7,TRUE)), (IF(2-$B$19=2, (VLOOKUP(2,Tablas!$A$525:$G$527,7,TRUE)), 0)))))), (IF($B$17=1,(IF(1-$B$19=0, 0, (IF(1-$B$19=1,(VLOOKUP(1,Tablas!$A$525:$G$527,7,TRUE)),0)))),0))))))))))))))))))) -> 1156.99
A47: Total de Prima neta | C47: =SUM(C44:C46) -> 17937.32 | D47: =SUM(D44:D46) -> 15724.04 | E47: 12993.48 | F47: 11267.27 | G47: 8740.23
A48: Ajuste por la variante con coaseguro fuera del país de residencia | C48: =IF('INGRESO DE DATOS'!$P$3,C47*-25%,0) -> 0 | D48: =IF('INGRESO DE DATOS'!$P$3,D47*25%,0) -> 0 | E48: =IF('INGRESO DE DATOS'!$P$3,E47*-25%,0) -> 0 | F48: =IF('INGRESO DE DATOS'!$P$3,F47*-25%,0) -> 0 | G48: =IF('INGRESO DE DATOS'!$P$3,G47*-25%,0) -> 0
A49: Tarifa administrativa anual | C49: 75 | D49: 75 | E49: 75 | F49: 75 | G49: 75
A50: VAT (5%) :
A51: ITBMS (7%)
A52: TOTAL de primera cuota | C52: =SUM(C47:C51) -> 18012.32 | D52: =SUM(D47:D51) -> 15799.04 | E52: 13068.48 | F52: 11342.27 | G52: 8815.23
A53: Costo de segunda cuota | C53: =C52-C49 -> 17937.32 | D53: =D52-D49 -> 15724.04 | E53: 12993.48 | F53: 11267.27 | G53: 8740.23
A54: TOTAL ANUAL | C54: =C52+C53 -> 35949.64 | D54: =D52+D53 -> 31523.08 | E54: 26061.96 | F54: =F52+F53 -> 22609.54 | G54: 17555.46
A55: Ahorros en tarifas de prima para Dependientes | C55: =IF($B$15=1,IF($B$17=0,0,IF($B$19=0,0,IF($B$19=1,(VLOOKUP(1,Tablas!$A$525:$G$527,3,TRUE)),(VLOOKUP(2,Tablas!$A$525:$G$527,3,TRUE))))), IF($B$17=0,0,IF($B$19=0,0,IF($B$19=1,(VLOOKUP(1,Tablas!$A$525:$G$527,3,TRUE)),IF($B$19=2,(VLOOKUP(2,Tablas!$A$525:$G$527,3,TRUE)), (VLOOKUP(3,Tablas!$A$525:$G$527,3,TRUE))))))) -> 2313.98 | D55: =IF($B$15=1,IF($B$17=0,0,IF($B$19=0,0,IF($B$19=1,(VLOOKUP(1,Tablas!$A$525:$G$527,4,TRUE)),(VLOOKUP(2,Tablas!$A$525:$G$527,4,TRUE))))), IF($B$17=0,0,IF($B$19=0,0,IF($B$19=1,(VLOOKUP(1,Tablas!$A$525:$G$527,4,TRUE)),IF($B$19=2,(VLOOKUP(2,Tablas!$A$525:$G$527,4,TRUE)), (VLOOKUP(3,Tablas!$A$525:$G$527,4,TRUE))))))) -> 2028.84 | E55: =IF($B$15=1,IF($B$17=0,0,IF($B$19=0,0,IF($B$19=1,(VLOOKUP(1,Tablas!$A$525:$G$527,5,TRUE)),(VLOOKUP(2,Tablas!$A$525:$G$527,5,TRUE))))), IF($B$17=0,0,IF($B$19=0,0,IF($B$19=1,(VLOOKUP(1,Tablas!$A$525:$G$527,5,TRUE)),IF($B$19=2,(VLOOKUP(2,Tablas!$A$525:$G$527,5,TRUE)), (VLOOKUP(3,Tablas!$A$525:$G$527,5,TRUE))))))) -> 1718.26 | F55: =IF($B$15=1,IF($B$17=0,0,IF($B$19=0,0,IF($B$19=1,(VLOOKUP(1,Tablas!$A$525:$G$527,7,TRUE)),(VLOOKUP(2,Tablas!$A$525:$G$527,7,TRUE))))), IF($B$17=0,0,IF($B$19=0,0,IF($B$19=1,(VLOOKUP(1,Tablas!$A$525:$G$527,7,TRUE)),IF($B$19=2,(VLOOKUP(2,Tablas!$A$525:$G$527,7,TRUE)), (VLOOKUP(3,Tablas!$A$525:$G$527,7,TRUE))))))) -> 1156.99 | G55: =IF($B$15=1,IF($B$17=0,0,IF($B$19=0,0,IF($B$19=1,(VLOOKUP(1,Tablas!$A$525:$G$527,7,TRUE)),(VLOOKUP(2,Tablas!$A$525:$G$527,7,TRUE))))), IF($B$17=0,0,IF($B$19=0,0,IF($B$19=1,(VLOOKUP(1,Tablas!$A$525:$G$527,7,TRUE)),IF($B$19=2,(VLOOKUP(2,Tablas!$A$525:$G$527,7,TRUE)), (VLOOKUP(3,Tablas!$A$525:$G$527,7,TRUE))))))) -> 1156.99
A57: TARIFAS TRIMESTRALES
A58: Prima para Asegurado Titular | C58: =VLOOKUP($B$21,Tablas!$A$685:$G$751,3,TRUE) -> 3378.375 | D58: =VLOOKUP($B$21,Tablas!$A$685:$G$751,4,TRUE) -> 2961.2 | E58: =VLOOKUP($B$21,Tablas!$A$685:$G$751,5,TRUE) -> 2456.575 | F58: =VLOOKUP($B$21,Tablas!$A$685:$G$751,6,TRUE) -> 2129.875 | G58: =VLOOKUP($B$21,Tablas!$A$685:$G$751,7,TRUE) -> 1652.2
A59: Prima para conyuge | C59: =IF($B$15=1,0,(VLOOKUP($G$21,Tablas!$A$685:$G$751,3,TRUE))) -> 4728.075 | D59: =IF($B$15=1,0,(VLOOKUP($G$21,Tablas!$A$685:$G$751,4,TRUE))) -> 4144.8 | E59: =IF($B$15=1,0,(VLOOKUP($G$21,Tablas!$A$685:$G$751,5,TRUE))) -> 3393.775 | F59: =IF($B$15=1,0,(VLOOKUP($G$21,Tablas!$A$685:$G$751,6,TRUE))) -> 2942.775 | G59: =IF($B$15=1,0,(VLOOKUP($G$21,Tablas!$A$685:$G$751,7,TRUE))) -> 2282.5
A60: Prima para hijo (s) | C60: =IF($B$15=1, (IF($B$17=0, 0, (IF($B$19>$B$17, (VLOOKUP($B$17,Tablas!$A$752:$G$754,3,TRUE)), (IF($B$17>4,(IF($B$19=0, (VLOOKUP(3,Tablas!$A$752:$G$754,3,TRUE)), (IF($B$19=1, (VLOOKUP(3,Tablas!$A$752:$G$754,3,TRUE)), (IF($B$19=2, (VLOOKUP(3,Tablas!$A$752:$G$754,3,TRUE)), (VLOOKUP(3,Tablas!$A$752:$G$754,3,TRUE)))))))), (IF($B$17=4,(IF(4-$B$19=0,(VLOOKUP(2,Tablas!$A$752:$G$754,3,TRUE)), (IF(4-$B$19=1,(VLOOKUP(2,Tablas!$A$752:$G$754,3,TRUE)), (IF(4-$B$19=2, (VLOOKUP(2,Tablas!$A$752:$G$754,3,TRUE)), (VLOOKUP(3,Tablas!$A$752:$G$754,3,TRUE)))))))), (IF($B$17=3,(IF(3-$B$19=0,(VLOOKUP(1,Tablas!$A$752:$G$754,3,TRUE)), (IF(3-$B$19=1,(VLOOKUP(1,Tablas!$A$752:$G$754,3,TRUE)), (IF(3-$B$19=2, (VLOOKUP(2,Tablas!$A$752:$G$754,3,TRUE)), (VLOOKUP(3,Tablas!$A$752:$G$754,3,TRUE)))))))), (IF($B$17=2,(IF(2-$B$19=0, 0, (IF(2-$B$19=1,(VLOOKUP(1,Tablas!$A$752:$G$754,3,TRUE)), (IF(2-$B$19=2, (VLOOKUP(2,Tablas!$A$752:$G$754,3,TRUE)), 0)))))), (IF($B$17=1,(IF(1-$B$19=0, 0, (IF(1-$B$19=1,(VLOOKUP(1,Tablas!$A$752:$G$754,3,TRUE)),0)))),0)))))))))))))), (IF($B$17=0, 0, (IF($B$19>$B$17, (VLOOKUP($B$17,Tablas!$A$752:$G$754,3,TRUE)), (IF($B$17=4,(IF(4-$B$19=0, 0, (IF(4-$B$19=1, (VLOOKUP(1,Tablas!$A$752:$G$754,3,TRUE)), (IF(4-$B$19=2, (VLOOKUP(2,Tablas!$A$752:$G$754,3,TRUE)), (IF(4-$B$19=3, (VLOOKUP(3,Tablas!$A$752:$G$754,3,TRUE)), (IF(4-$B$19=4, (VLOOKUP(3,Tablas!$A$752:$G$754,3,TRUE)), 0)))))))))), (IF($B$17=5,(IF(5-$B$19=0, (VLOOKUP(1,Tablas!$A$752:$G$754,3,TRUE)), (IF(5-$B$19=1, (VLOOKUP(1,Tablas!$A$752:$G$754,3,TRUE)), (IF(5-$B$19=2, (VLOOKUP(2,Tablas!$A$752:$G$754,3,TRUE)), (IF(5-$B$19=3, (VLOOKUP(3,Tablas!$A$752:$G$754,3,TRUE)), (IF(5-$B$19=4, (VLOOKUP(3,Tablas!$A$752:$G$754,3,TRUE)), (VLOOKUP(3,Tablas!$A$752:$G$754,3,TRUE)))))))))))), (IF($B$17=6,(IF(6-$B$19=0, (VLOOKUP(2,Tablas!$A$752:$G$754,3,TRUE)), (IF(6-$B$19=1, (VLOOKUP(2,Tablas!$A$752:$G$754,3,TRUE)), (IF(6-$B$19=2, (VLOOKUP(2,Tablas!$A$752:$G$754,3,TRUE)), (IF(6-$B$19=3, (VLOOKUP(3,Tablas!$A$752:$G$754,3,TRUE)), (IF(6-$B$19=4, (VLOOKUP(3,Tablas!$A$752:$G$754,3,TRUE)), (VLOOKUP(3,Tablas!$A$752:$G$754,3,TRUE)))))))))))), (IF($B$17>6,(IF(7-$B$19=0, (VLOOKUP(3,Tablas!$A$752:$G$754,3,TRUE)), (IF(7-$B$19=1, (VLOOKUP(3,Tablas!$A$752:$G$754,3,TRUE)), (IF(7-$B$19=2, (VLOOKUP(3,Tablas!$A$752:$G$754,3,TRUE)), (IF(7-$B$19=3, (VLOOKUP(3,Tablas!$A$752:$G$754,3,TRUE)), (IF(7-$B$19=4, (VLOOKUP(3,Tablas!$A$752:$G$754,3,TRUE)), (VLOOKUP(3,Tablas!$A$752:$G$754,3,TRUE)))))))))))), (IF($B$17=3,(IF(3-$B$19=0,0, (IF(3-$B$19=1,(VLOOKUP(1,Tablas!$A$752:$G$754,3,TRUE)), (IF(3-$B$19=2, (VLOOKUP(2,Tablas!$A$752:$G$754,3,TRUE)), (VLOOKUP(3,Tablas!$A$752:$G$754,3,TRUE)))))))), (IF($B$17=2,(IF(2-$B$19=0, 0, (IF(2-$B$19=1,(VLOOKUP(1,Tablas!$A$752:$G$754,3,TRUE)), (IF(2-$B$19=2, (VLOOKUP(2,Tablas!$A$752:$G$754,3,TRUE)), 0)))))), (IF($B$17=1,(IF(1-$B$19=0, 0, (IF(1-$B$19=1,(VLOOKUP(1,Tablas!$A$752:$G$754,3,TRUE)),0)))),0))))))))))))))))))) -> 1200.65 | D60: =IF($B$15=1, (IF($B$17=0, 0, (IF($B$19>$B$17, (VLOOKUP($B$17,Tablas!$A$752:$G$754,4,TRUE)), (IF($B$17>4,(IF($B$19=0, (VLOOKUP(3,Tablas!$A$752:$G$754,4,TRUE)), (IF($B$19=1, (VLOOKUP(3,Tablas!$A$752:$G$754,4,TRUE)), (IF($B$19=2, (VLOOKUP(3,Tablas!$A$752:$G$754,4,TRUE)), (VLOOKUP(3,Tablas!$A$752:$G$754,4,TRUE)))))))), (IF($B$17=4,(IF(4-$B$19=0,(VLOOKUP(2,Tablas!$A$752:$G$754,4,TRUE)), (IF(4-$B$19=1,(VLOOKUP(2,Tablas!$A$752:$G$754,4,TRUE)), (IF(4-$B$19=2, (VLOOKUP(2,Tablas!$A$752:$G$754,4,TRUE)), (VLOOKUP(3,Tablas!$A$752:$G$754,4,TRUE)))))))), (IF($B$17=3,(IF(3-$B$19=0,(VLOOKUP(1,Tablas!$A$752:$G$754,4,TRUE)), (IF(3-$B$19=1,(VLOOKUP(1,Tablas!$A$752:$G$754,4,TRUE)), (IF(3-$B$19=2, (VLOOKUP(2,Tablas!$A$752:$G$754,4,TRUE)), (VLOOKUP(3,Tablas!$A$752:$G$754,4,TRUE)))))))), (IF($B$17=2,(IF(2-$B$19=0, 0, (IF(2-$B$19=1,(VLOOKUP(1,Tablas!$A$752:$G$754,4,TRUE)), (IF(2-$B$19=2, (VLOOKUP(2,Tablas!$A$752:$G$754,4,TRUE)), 0)))))), (IF($B$17=1,(IF(1-$B$19=0, 0, (IF(1-$B$19=1,(VLOOKUP(1,Tablas!$A$752:$G$754,4,TRUE)),0)))),0)))))))))))))), (IF($B$17=0, 0, (IF($B$19>$B$17, (VLOOKUP($B$17,Tablas!$A$752:$G$754,4,TRUE)), (IF($B$17=4,(IF(4-$B$19=0, 0, (IF(4-$B$19=1, (VLOOKUP(1,Tablas!$A$752:$G$754,4,TRUE)), (IF(4-$B$19=2, (VLOOKUP(2,Tablas!$A$752:$G$754,4,TRUE)), (IF(4-$B$19=3, (VLOOKUP(3,Tablas!$A$752:$G$754,4,TRUE)), (IF(4-$B$19=4, (VLOOKUP(3,Tablas!$A$752:$G$754,4,TRUE)), 0)))))))))), (IF($B$17=5,(IF(5-$B$19=0, (VLOOKUP(1,Tablas!$A$752:$G$754,4,TRUE)), (IF(5-$B$19=1, (VLOOKUP(1,Tablas!$A$752:$G$754,4,TRUE)), (IF(5-$B$19=2, (VLOOKUP(2,Tablas!$A$752:$G$754,4,TRUE)), (IF(5-$B$19=3, (VLOOKUP(3,Tablas!$A$752:$G$754,4,TRUE)), (IF(5-$B$19=4, (VLOOKUP(3,Tablas!$A$752:$G$754,4,TRUE)), (VLOOKUP(3,Tablas!$A$752:$G$754,4,TRUE)))))))))))), (IF($B$17=6,(IF(6-$B$19=0, (VLOOKUP(2,Tablas!$A$752:$G$754,4,TRUE)), (IF(6-$B$19=1, (VLOOKUP(2,Tablas!$A$752:$G$754,4,TRUE)), (IF(6-$B$19=2, (VLOOKUP(2,Tablas!$A$752:$G$754,4,TRUE)), (IF(6-$B$19=3, (VLOOKUP(3,Tablas!$A$752:$G$754,4,TRUE)), (IF(6-$B$19=4, (VLOOKUP(3,Tablas!$A$752:$G$754,4,TRUE)), (VLOOKUP(3,Tablas!$A$752:$G$754,4,TRUE)))))))))))), (IF($B$17>6,(IF(7-$B$19=0, (VLOOKUP(3,Tablas!$A$752:$G$754,4,TRUE)), (IF(7-$B$19=1, (VLOOKUP(3,Tablas!$A$752:$G$754,4,TRUE)), (IF(7-$B$19=2, (VLOOKUP(3,Tablas!$A$752:$G$754,4,TRUE)), (IF(7-$B$19=3, (VLOOKUP(3,Tablas!$A$752:$G$754,4,TRUE)), (IF(7-$B$19=4, (VLOOKUP(3,Tablas!$A$752:$G$754,4,TRUE)), (VLOOKUP(3,Tablas!$A$752:$G$754,4,TRUE)))))))))))), (IF($B$17=3,(IF(3-$B$19=0,0, (IF(3-$B$19=1,(VLOOKUP(1,Tablas!$A$752:$G$754,4,TRUE)), (IF(3-$B$19=2, (VLOOKUP(2,Tablas!$A$752:$G$754,4,TRUE)), (VLOOKUP(3,Tablas!$A$752:$G$754,4,TRUE)))))))), (IF($B$17=2,(IF(2-$B$19=0, 0, (IF(2-$B$19=1,(VLOOKUP(1,Tablas!$A$752:$G$754,4,TRUE)), (IF(2-$B$19=2, (VLOOKUP(2,Tablas!$A$752:$G$754,4,TRUE)), 0)))))), (IF($B$17=1,(IF(1-$B$19=0, 0, (IF(1-$B$19=1,(VLOOKUP(1,Tablas!$A$752:$G$754,4,TRUE)),0)))),0))))))))))))))))))) -> 1052.7 | E60: =IF($B$15=1, (IF($B$17=0, 0, (IF($B$19>$B$17, (VLOOKUP($B$17,Tablas!$A$752:$G$754,5,TRUE)), (IF($B$17>4,(IF($B$19=0, (VLOOKUP(3,Tablas!$A$752:$G$754,5,TRUE)), (IF($B$19=1, (VLOOKUP(3,Tablas!$A$752:$G$754,5,TRUE)), (IF($B$19=2, (VLOOKUP(3,Tablas!$A$752:$G$754,5,TRUE)), (VLOOKUP(3,Tablas!$A$752:$G$754,5,TRUE)))))))), (IF($B$17=4,(IF(4-$B$19=0,(VLOOKUP(2,Tablas!$A$752:$G$754,5,TRUE)), (IF(4-$B$19=1,(VLOOKUP(2,Tablas!$A$752:$G$754,5,TRUE)), (IF(4-$B$19=2, (VLOOKUP(2,Tablas!$A$752:$G$754,5,TRUE)), (VLOOKUP(3,Tablas!$A$752:$G$754,5,TRUE)))))))), (IF($B$17=3,(IF(3-$B$19=0,(VLOOKUP(1,Tablas!$A$752:$G$754,5,TRUE)), (IF(3-$B$19=1,(VLOOKUP(1,Tablas!$A$752:$G$754,5,TRUE)), (IF(3-$B$19=2, (VLOOKUP(2,Tablas!$A$752:$G$754,5,TRUE)), (VLOOKUP(3,Tablas!$A$752:$G$754,5,TRUE)))))))), (IF($B$17=2,(IF(2-$B$19=0, 0, (IF(2-$B$19=1,(VLOOKUP(1,Tablas!$A$752:$G$754,5,TRUE)), (IF(2-$B$19=2, (VLOOKUP(2,Tablas!$A$752:$G$754,5,TRUE)), 0)))))), (IF($B$17=1,(IF(1-$B$19=0, 0, (IF(1-$B$19=1,(VLOOKUP(1,Tablas!$A$752:$G$754,5,TRUE)),0)))),0)))))))))))))), (IF($B$17=0, 0, (IF($B$19>$B$17, (VLOOKUP($B$17,Tablas!$A$752:$G$754,5,TRUE)), (IF($B$17=4,(IF(4-$B$19=0, 0, (IF(4-$B$19=1, (VLOOKUP(1,Tablas!$A$752:$G$754,5,TRUE)), (IF(4-$B$19=2, (VLOOKUP(2,Tablas!$A$752:$G$754,5,TRUE)), (IF(4-$B$19=3, (VLOOKUP(3,Tablas!$A$752:$G$754,5,TRUE)), (IF(4-$B$19=4, (VLOOKUP(3,Tablas!$A$752:$G$754,5,TRUE)), 0)))))))))), (IF($B$17=5,(IF(5-$B$19=0, (VLOOKUP(1,Tablas!$A$752:$G$754,5,TRUE)), (IF(5-$B$19=1, (VLOOKUP(1,Tablas!$A$752:$G$754,5,TRUE)), (IF(5-$B$19=2, (VLOOKUP(2,Tablas!$A$752:$G$754,5,TRUE)), (IF(5-$B$19=3, (VLOOKUP(3,Tablas!$A$752:$G$754,5,TRUE)), (IF(5-$B$19=4, (VLOOKUP(3,Tablas!$A$752:$G$754,5,TRUE)), (VLOOKUP(3,Tablas!$A$752:$G$754,5,TRUE)))))))))))), (IF($B$17=6,(IF(6-$B$19=0, (VLOOKUP(2,Tablas!$A$752:$G$754,5,TRUE)), (IF(6-$B$19=1, (VLOOKUP(2,Tablas!$A$752:$G$754,5,TRUE)), (IF(6-$B$19=2, (VLOOKUP(2,Tablas!$A$752:$G$754,5,TRUE)), (IF(6-$B$19=3, (VLOOKUP(3,Tablas!$A$752:$G$754,5,TRUE)), (IF(6-$B$19=4, (VLOOKUP(3,Tablas!$A$752:$G$754,5,TRUE)), (VLOOKUP(3,Tablas!$A$752:$G$754,5,TRUE)))))))))))), (IF($B$17>6,(IF(7-$B$19=0, (VLOOKUP(3,Tablas!$A$752:$G$754,5,TRUE)), (IF(7-$B$19=1, (VLOOKUP(3,Tablas!$A$752:$G$754,5,TRUE)), (IF(7-$B$19=2, (VLOOKUP(3,Tablas!$A$752:$G$754,5,TRUE)), (IF(7-$B$19=3, (VLOOKUP(3,Tablas!$A$752:$G$754,5,TRUE)), (IF(7-$B$19=4, (VLOOKUP(3,Tablas!$A$752:$G$754,5,TRUE)), (VLOOKUP(3,Tablas!$A$752:$G$754,5,TRUE)))))))))))), (IF($B$17=3,(IF(3-$B$19=0,0, (IF(3-$B$19=1,(VLOOKUP(1,Tablas!$A$752:$G$754,5,TRUE)), (IF(3-$B$19=2, (VLOOKUP(2,Tablas!$A$752:$G$754,5,TRUE)), (VLOOKUP(3,Tablas!$A$752:$G$754,5,TRUE)))))))), (IF($B$17=2,(IF(2-$B$19=0, 0, (IF(2-$B$19=1,(VLOOKUP(1,Tablas!$A$752:$G$754,5,TRUE)), (IF(2-$B$19=2, (VLOOKUP(2,Tablas!$A$752:$G$754,5,TRUE)), 0)))))), (IF($B$17=1,(IF(1-$B$19=0, 0, (IF(1-$B$19=1,(VLOOKUP(1,Tablas!$A$752:$G$754,5,TRUE)),0)))),0))))))))))))))))))) -> 891.55 | F60: =IF($B$15=1, (IF($B$17=0, 0, (IF($B$19>$B$17, (VLOOKUP($B$17,Tablas!$A$752:$G$754,6,TRUE)), (IF($B$17>4,(IF($B$19=0, (VLOOKUP(3,Tablas!$A$752:$G$754,6,TRUE)), (IF($B$19=1, (VLOOKUP(3,Tablas!$A$752:$G$754,6,TRUE)), (IF($B$19=2, (VLOOKUP(3,Tablas!$A$752:$G$754,6,TRUE)), (VLOOKUP(3,Tablas!$A$752:$G$754,6,TRUE)))))))), (IF($B$17=4,(IF(4-$B$19=0,(VLOOKUP(2,Tablas!$A$752:$G$754,6,TRUE)), (IF(4-$B$19=1,(VLOOKUP(2,Tablas!$A$752:$G$754,6,TRUE)), (IF(4-$B$19=2, (VLOOKUP(2,Tablas!$A$752:$G$754,6,TRUE)), (VLOOKUP(3,Tablas!$A$752:$G$754,6,TRUE)))))))), (IF($B$17=3,(IF(3-$B$19=0,(VLOOKUP(1,Tablas!$A$752:$G$754,6,TRUE)), (IF(3-$B$19=1,(VLOOKUP(1,Tablas!$A$752:$G$754,6,TRUE)), (IF(3-$B$19=2, (VLOOKUP(2,Tablas!$A$752:$G$754,6,TRUE)), (VLOOKUP(3,Tablas!$A$752:$G$754,6,TRUE)))))))), (IF($B$17=2,(IF(2-$B$19=0, 0, (IF(2-$B$19=1,(VLOOKUP(1,Tablas!$A$752:$G$754,6,TRUE)), (IF(2-$B$19=2, (VLOOKUP(2,Tablas!$A$752:$G$754,6,TRUE)), 0)))))), (IF($B$17=1,(IF(1-$B$19=0, 0, (IF(1-$B$19=1,(VLOOKUP(1,Tablas!$A$752:$G$754,6,TRUE)),0)))),0)))))))))))))), (IF($B$17=0, 0, (IF($B$19>$B$17, (VLOOKUP($B$17,Tablas!$A$752:$G$754,6,TRUE)), (IF($B$17=4,(IF(4-$B$19=0, 0, (IF(4-$B$19=1, (VLOOKUP(1,Tablas!$A$752:$G$754,6,TRUE)), (IF(4-$B$19=2, (VLOOKUP(2,Tablas!$A$752:$G$754,6,TRUE)), (IF(4-$B$19=3, (VLOOKUP(3,Tablas!$A$752:$G$754,6,TRUE)), (IF(4-$B$19=4, (VLOOKUP(3,Tablas!$A$752:$G$754,6,TRUE)), 0)))))))))), (IF($B$17=5,(IF(5-$B$19=0, (VLOOKUP(1,Tablas!$A$752:$G$754,6,TRUE)), (IF(5-$B$19=1, (VLOOKUP(1,Tablas!$A$752:$G$754,6,TRUE)), (IF(5-$B$19=2, (VLOOKUP(2,Tablas!$A$752:$G$754,6,TRUE)), (IF(5-$B$19=3, (VLOOKUP(3,Tablas!$A$752:$G$754,6,TRUE)), (IF(5-$B$19=4, (VLOOKUP(3,Tablas!$A$752:$G$754,6,TRUE)), (VLOOKUP(3,Tablas!$A$752:$G$754,6,TRUE)))))))))))), (IF($B$17=6,(IF(6-$B$19=0, (VLOOKUP(2,Tablas!$A$752:$G$754,6,TRUE)), (IF(6-$B$19=1, (VLOOKUP(2,Tablas!$A$752:$G$754,6,TRUE)), (IF(6-$B$19=2, (VLOOKUP(2,Tablas!$A$752:$G$754,6,TRUE)), (IF(6-$B$19=3, (VLOOKUP(3,Tablas!$A$752:$G$754,6,TRUE)), (IF(6-$B$19=4, (VLOOKUP(3,Tablas!$A$752:$G$754,6,TRUE)), (VLOOKUP(3,Tablas!$A$752:$G$754,6,TRUE)))))))))))), (IF($B$17>6,(IF(7-$B$19=0, (VLOOKUP(3,Tablas!$A$752:$G$754,6,TRUE)), (IF(7-$B$19=1, (VLOOKUP(3,Tablas!$A$752:$G$754,6,TRUE)), (IF(7-$B$19=2, (VLOOKUP(3,Tablas!$A$752:$G$754,6,TRUE)), (IF(7-$B$19=3, (VLOOKUP(3,Tablas!$A$752:$G$754,6,TRUE)), (IF(7-$B$19=4, (VLOOKUP(3,Tablas!$A$752:$G$754,6,TRUE)), (VLOOKUP(3,Tablas!$A$752:$G$754,6,TRUE)))))))))))), (IF($B$17=3,(IF(3-$B$19=0,0, (IF(3-$B$19=1,(VLOOKUP(1,Tablas!$A$752:$G$754,6,TRUE)), (IF(3-$B$19=2, (VLOOKUP(2,Tablas!$A$752:$G$754,6,TRUE)), (VLOOKUP(3,Tablas!$A$752:$G$754,6,TRUE)))))))), (IF($B$17=2,(IF(2-$B$19=0, 0, (IF(2-$B$19=1,(VLOOKUP(1,Tablas!$A$752:$G$754,6,TRUE)), (IF(2-$B$19=2, (VLOOKUP(2,Tablas!$A$752:$G$754,6,TRUE)), 0)))))), (IF($B$17=1,(IF(1-$B$19=0, 0, (IF(1-$B$19=1,(VLOOKUP(1,Tablas!$A$752:$G$754,6,TRUE)),0)))),0))))))))))))))))))) -> 773.575 | G60: =IF($B$15=1, (IF($B$17=0, 0, (IF($B$19>$B$17, (VLOOKUP($B$17,Tablas!$A$752:$G$754,7,TRUE)), (IF($B$17>4,(IF($B$19=0, (VLOOKUP(3,Tablas!$A$752:$G$754,7,TRUE)), (IF($B$19=1, (VLOOKUP(3,Tablas!$A$752:$G$754,7,TRUE)), (IF($B$19=2, (VLOOKUP(3,Tablas!$A$752:$G$754,7,TRUE)), (VLOOKUP(3,Tablas!$A$752:$G$754,7,TRUE)))))))), (IF($B$17=4,(IF(4-$B$19=0,(VLOOKUP(2,Tablas!$A$752:$G$754,7,TRUE)), (IF(4-$B$19=1,(VLOOKUP(2,Tablas!$A$752:$G$754,7,TRUE)), (IF(4-$B$19=2, (VLOOKUP(2,Tablas!$A$752:$G$754,7,TRUE)), (VLOOKUP(3,Tablas!$A$752:$G$754,7,TRUE)))))))), (IF($B$17=3,(IF(3-$B$19=0,(VLOOKUP(1,Tablas!$A$752:$G$754,7,TRUE)), (IF(3-$B$19=1,(VLOOKUP(1,Tablas!$A$752:$G$754,7,TRUE)), (IF(3-$B$19=2, (VLOOKUP(2,Tablas!$A$752:$G$754,7,TRUE)), (VLOOKUP(3,Tablas!$A$752:$G$754,7,TRUE)))))))), (IF($B$17=2,(IF(2-$B$19=0, 0, (IF(2-$B$19=1,(VLOOKUP(1,Tablas!$A$752:$G$754,7,TRUE)), (IF(2-$B$19=2, (VLOOKUP(2,Tablas!$A$752:$G$754,7,TRUE)), 0)))))), (IF($B$17=1,(IF(1-$B$19=0, 0, (IF(1-$B$19=1,(VLOOKUP(1,Tablas!$A$752:$G$754,7,TRUE)),0)))),0)))))))))))))), (IF($B$17=0, 0, (IF($B$19>$B$17, (VLOOKUP($B$17,Tablas!$A$752:$G$754,7,TRUE)), (IF($B$17=4,(IF(4-$B$19=0, 0, (IF(4-$B$19=1, (VLOOKUP(1,Tablas!$A$752:$G$754,7,TRUE)), (IF(4-$B$19=2, (VLOOKUP(2,Tablas!$A$752:$G$754,7,TRUE)), (IF(4-$B$19=3, (VLOOKUP(3,Tablas!$A$752:$G$754,7,TRUE)), (IF(4-$B$19=4, (VLOOKUP(3,Tablas!$A$752:$G$754,7,TRUE)), 0)))))))))), (IF($B$17=5,(IF(5-$B$19=0, (VLOOKUP(1,Tablas!$A$752:$G$754,7,TRUE)), (IF(5-$B$19=1, (VLOOKUP(1,Tablas!$A$752:$G$754,7,TRUE)), (IF(5-$B$19=2, (VLOOKUP(2,Tablas!$A$752:$G$754,7,TRUE)), (IF(5-$B$19=3, (VLOOKUP(3,Tablas!$A$752:$G$754,7,TRUE)), (IF(5-$B$19=4, (VLOOKUP(3,Tablas!$A$752:$G$754,7,TRUE)), (VLOOKUP(3,Tablas!$A$752:$G$754,7,TRUE)))))))))))), (IF($B$17=6,(IF(6-$B$19=0, (VLOOKUP(2,Tablas!$A$752:$G$754,7,TRUE)), (IF(6-$B$19=1, (VLOOKUP(2,Tablas!$A$752:$G$754,7,TRUE)), (IF(6-$B$19=2, (VLOOKUP(2,Tablas!$A$752:$G$754,7,TRUE)), (IF(6-$B$19=3, (VLOOKUP(3,Tablas!$A$752:$G$754,7,TRUE)), (IF(6-$B$19=4, (VLOOKUP(3,Tablas!$A$752:$G$754,7,TRUE)), (VLOOKUP(3,Tablas!$A$752:$G$754,7,TRUE)))))))))))), (IF($B$17>6,(IF(7-$B$19=0, (VLOOKUP(3,Tablas!$A$752:$G$754,7,TRUE)), (IF(7-$B$19=1, (VLOOKUP(3,Tablas!$A$752:$G$754,7,TRUE)), (IF(7-$B$19=2, (VLOOKUP(3,Tablas!$A$752:$G$754,7,TRUE)), (IF(7-$B$19=3, (VLOOKUP(3,Tablas!$A$752:$G$754,7,TRUE)), (IF(7-$B$19=4, (VLOOKUP(3,Tablas!$A$752:$G$754,7,TRUE)), (VLOOKUP(3,Tablas!$A$752:$G$754,7,TRUE)))))))))))), (IF($B$17=3,(IF(3-$B$19=0,0, (IF(3-$B$19=1,(VLOOKUP(1,Tablas!$A$752:$G$754,7,TRUE)), (IF(3-$B$19=2, (VLOOKUP(2,Tablas!$A$752:$G$754,7,TRUE)), (VLOOKUP(3,Tablas!$A$752:$G$754,7,TRUE)))))))), (IF($B$17=2,(IF(2-$B$19=0, 0, (IF(2-$B$19=1,(VLOOKUP(1,Tablas!$A$752:$G$754,7,TRUE)), (IF(2-$B$19=2, (VLOOKUP(2,Tablas!$A$752:$G$754,7,TRUE)), 0)))))), (IF($B$17=1,(IF(1-$B$19=0, 0, (IF(1-$B$19=1,(VLOOKUP(1,Tablas!$A$752:$G$754,7,TRUE)),0)))),0))))))))))))))))))) -> 600.325
A61: Total de Prima neta | C61: =SUM(C58:C60) -> 9307.1 | D61: =SUM(D58:D60) -> 8158.7 | E61: 6741.9 | F61: 5846.225 | G61: 4535.025
A62: Ajuste por la variante con coaseguro fuera del país de residencia | C62: =IF('INGRESO DE DATOS'!$P$3,C61*-25%,0) -> 0 | D62: =IF('INGRESO DE DATOS'!$P$3,D61*-25%,0) -> 0 | E62: =IF('INGRESO DE DATOS'!$P$3,E61*-25%,0) -> 0 | F62: =IF('INGRESO DE DATOS'!$P$3,F61*-25%,0) -> 0 | G62: =IF('INGRESO DE DATOS'!$P$3,G61*-25%,0) -> 0
A63: Tarifa administrativa anual | C63: 75 | D63: 75 | E63: 75 | F63: 75 | G63: 75
A64: VAT (5%) :
A65: ITBMS (7%)
A66: TOTAL de primera cuota | C66: =SUM(C61:C65) -> 9382.1 | D66: =SUM(D61:D65) -> 8233.7 | E66: 6816.9 | F66: 5921.225 | G66: 4610.025
A67: Costo de tarifa trimestral 2 a 4 | C67: =C66-C63 -> 9307.1 | D67: =D66-D63 -> 8158.7 | E67: 6741.9 | F67: 5846.225 | G67: 4535.025
A68: TOTAL ANUAL | C68: =C66+(C67*3) -> 37303.4 | D68: =D66+(D67*3) -> 32709.8 | E68: 27042.6 | F68: =F66+(F67*3) -> 23459.9 | G68: 18215.1
A69: Ahorros en tarifas de prima para Dependientes | C69: =IF($B$15=1,IF($B$17=0,0,IF($B$19=0,0,IF($B$19=1,(VLOOKUP(1,Tablas!$A$752:$G$754,3,TRUE)),(VLOOKUP(2,Tablas!$A$752:$G$754,3,TRUE))))), IF($B$17=0,0,IF($B$19=0,0,IF($B$19=1,(VLOOKUP(1,Tablas!$A$752:$G$754,3,TRUE)),IF($B$19=2,(VLOOKUP(2,Tablas!$A$752:$G$754,3,TRUE)), (VLOOKUP(3,Tablas!$A$752:$G$754,3,TRUE))))))) -> 1200.65 | D69: =IF($B$15=1,IF($B$17=0,0,IF($B$19=0,0,IF($B$19=1,(VLOOKUP(1,Tablas!$A$752:$G$754,4,TRUE)),(VLOOKUP(2,Tablas!$A$752:$G$754,4,TRUE))))), IF($B$17=0,0,IF($B$19=0,0,IF($B$19=1,(VLOOKUP(1,Tablas!$A$752:$G$754,4,TRUE)),IF($B$19=2,(VLOOKUP(2,Tablas!$A$752:$G$754,4,TRUE)), (VLOOKUP(3,Tablas!$A$752:$G$754,4,TRUE))))))) -> 1052.7 | E69: =IF($B$15=1,IF($B$17=0,0,IF($B$19=0,0,IF($B$19=1,(VLOOKUP(1,Tablas!$A$752:$G$754,5,TRUE)),(VLOOKUP(2,Tablas!$A$752:$G$754,5,TRUE))))), IF($B$17=0,0,IF($B$19=0,0,IF($B$19=1,(VLOOKUP(1,Tablas!$A$752:$G$754,5,TRUE)),IF($B$19=2,(VLOOKUP(2,Tablas!$A$752:$G$754,5,TRUE)), (VLOOKUP(3,Tablas!$A$752:$G$754,5,TRUE))))))) -> 891.55 | F69: =IF($B$15=1,IF($B$17=0,0,IF($B$19=0,0,IF($B$19=1,(VLOOKUP(1,Tablas!$A$752:$G$754,6,TRUE)),(VLOOKUP(2,Tablas!$A$752:$G$754,6,TRUE))))), IF($B$17=0,0,IF($B$19=0,0,IF($B$19=1,(VLOOKUP(1,Tablas!$A$752:$G$754,6,TRUE)),IF($B$19=2,(VLOOKUP(2,Tablas!$A$752:$G$754,6,TRUE)), (VLOOKUP(3,Tablas!$A$752:$G$754,6,TRUE))))))) -> 773.575 | G69: =IF($B$15=1,IF($B$17=0,0,IF($B$19=0,0,IF($B$19=1,(VLOOKUP(1,Tablas!$A$752:$G$754,7,TRUE)),(VLOOKUP(2,Tablas!$A$752:$G$754,7,TRUE))))), IF($B$17=0,0,IF($B$19=0,0,IF($B$19=1,(VLOOKUP(1,Tablas!$A$752:$G$754,7,TRUE)),IF($B$19=2,(VLOOKUP(2,Tablas!$A$752:$G$754,7,TRUE)), (VLOOKUP(3,Tablas!$A$752:$G$754,7,TRUE))))))) -> 600.325
A71: TARIFAS MENSUALES
A72: Prima para Asegurado Titular | C72: =VLOOKUP($B$21,Tablas!$A$80:$G$146,3,TRUE) -> 1146.6 | D72: =VLOOKUP($B$21,Tablas!$A$80:$G$146,4,TRUE) -> 1005.013333 | E72: =VLOOKUP($B$21,Tablas!$A$80:$G$146,5,TRUE) -> 833.7466667 | F72: =VLOOKUP($B$21,Tablas!$A$80:$G$146,6,TRUE) -> 722.8666667 | G72: =VLOOKUP($B$21,Tablas!$A$80:$G$146,7,TRUE) -> 560.7466667
A73: Prima para conyuge | C73: =IF($B$15=1,0,(VLOOKUP($G$21,Tablas!$A$80:$G$146,3,TRUE))) -> 1604.68 | D73: =IF($B$15=1,0,(VLOOKUP($G$21,Tablas!$A$80:$G$146,4,TRUE))) -> 1406.72 | E73: =IF($B$15=1,0,(VLOOKUP($G$21,Tablas!$A$80:$G$146,5,TRUE))) -> 1151.826667 | F73: =IF($B$15=1,0,(VLOOKUP($G$21,Tablas!$A$80:$G$146,6,TRUE))) -> 998.76 | G73: =IF($B$15=1,0,(VLOOKUP($G$21,Tablas!$A$80:$G$146,7,TRUE))) -> 774.6666667
A74: Prima para hijo (s) | C74: =IF($B$15=1, (IF($B$17=0, 0, (IF($B$19>$B$17, (VLOOKUP($B$17,Tablas!$A$147:$G$149,3,TRUE)), (IF($B$17>4,(IF($B$19=0, (VLOOKUP(3,Tablas!$A$147:$G$149,3,TRUE)), (IF($B$19=1, (VLOOKUP(3,Tablas!$A$147:$G$149,3,TRUE)), (IF($B$19=2, (VLOOKUP(3,Tablas!$A$147:$G$149,3,TRUE)), (VLOOKUP(3,Tablas!$A$147:$G$149,3,TRUE)))))))), (IF($B$17=4,(IF(4-$B$19=0,(VLOOKUP(2,Tablas!$A$147:$G$149,3,TRUE)), (IF(4-$B$19=1,(VLOOKUP(2,Tablas!$A$147:$G$149,3,TRUE)), (IF(4-$B$19=2, (VLOOKUP(2,Tablas!$A$147:$G$149,3,TRUE)), (VLOOKUP(3,Tablas!$A$147:$G$149,3,TRUE)))))))), (IF($B$17=3,(IF(3-$B$19=0,(VLOOKUP(1,Tablas!$A$147:$G$149,3,TRUE)), (IF(3-$B$19=1,(VLOOKUP(1,Tablas!$A$147:$G$149,3,TRUE)), (IF(3-$B$19=2, (VLOOKUP(2,Tablas!$A$147:$G$149,3,TRUE)), (VLOOKUP(3,Tablas!$A$147:$G$149,3,TRUE)))))))), (IF($B$17=2,(IF(2-$B$19=0, 0, (IF(2-$B$19=1,(VLOOKUP(1,Tablas!$A$147:$G$149,3,TRUE)), (IF(2-$B$19=2, (VLOOKUP(2,Tablas!$A$147:$G$149,3,TRUE)), 0)))))), (IF($B$17=1,(IF(1-$B$19=0, 0, (IF(1-$B$19=1,(VLOOKUP(1,Tablas!$A$147:$G$149,3,TRUE)),0)))),0)))))))))))))), (IF($B$17=0, 0, (IF($B$19>$B$17, (VLOOKUP($B$17,Tablas!$A$147:$G$149,3,TRUE)), (IF($B$17=4,(IF(4-$B$19=0, 0, (IF(4-$B$19=1, (VLOOKUP(1,Tablas!$A$147:$G$149,3,TRUE)), (IF(4-$B$19=2, (VLOOKUP(2,Tablas!$A$147:$G$149,3,TRUE)), (IF(4-$B$19=3, (VLOOKUP(3,Tablas!$A$147:$G$149,3,TRUE)), (IF(4-$B$19=4, (VLOOKUP(3,Tablas!$A$147:$G$149,3,TRUE)), 0)))))))))), (IF($B$17=5,(IF(5-$B$19=0, (VLOOKUP(1,Tablas!$A$147:$G$149,3,TRUE)), (IF(5-$B$19=1, (VLOOKUP(1,Tablas!$A$147:$G$149,3,TRUE)), (IF(5-$B$19=2, (VLOOKUP(2,Tablas!$A$147:$G$149,3,TRUE)), (IF(5-$B$19=3, (VLOOKUP(3,Tablas!$A$147:$G$149,3,TRUE)), (IF(5-$B$19=4, (VLOOKUP(3,Tablas!$A$147:$G$149,3,TRUE)), (VLOOKUP(3,Tablas!$A$147:$G$149,3,TRUE)))))))))))), (IF($B$17=6,(IF(6-$B$19=0, (VLOOKUP(2,Tablas!$A$147:$G$149,3,TRUE)), (IF(6-$B$19=1, (VLOOKUP(2,Tablas!$A$147:$G$149,3,TRUE)), (IF(6-$B$19=2, (VLOOKUP(2,Tablas!$A$147:$G$149,3,TRUE)), (IF(6-$B$19=3, (VLOOKUP(3,Tablas!$A$147:$G$149,3,TRUE)), (IF(6-$B$19=4, (VLOOKUP(3,Tablas!$A$147:$G$149,3,TRUE)), (VLOOKUP(3,Tablas!$A$147:$G$149,3,TRUE)))))))))))), (IF($B$17>6,(IF(7-$B$19=0, (VLOOKUP(3,Tablas!$A$147:$G$149,3,TRUE)), (IF(7-$B$19=1, (VLOOKUP(3,Tablas!$A$147:$G$149,3,TRUE)), (IF(7-$B$19=2, (VLOOKUP(3,Tablas!$A$147:$G$149,3,TRUE)), (IF(7-$B$19=3, (VLOOKUP(3,Tablas!$A$147:$G$149,3,TRUE)), (IF(7-$B$19=4, (VLOOKUP(3,Tablas!$A$147:$G$149,3,TRUE)), (VLOOKUP(3,Tablas!$A$147:$G$149,3,TRUE)))))))))))), (IF($B$17=3,(IF(3-$B$19=0,0, (IF(3-$B$19=1,(VLOOKUP(1,Tablas!$A$147:$G$149,3,TRUE)), (IF(3-$B$19=2, (VLOOKUP(2,Tablas!$A$147:$G$149,3,TRUE)), (VLOOKUP(3,Tablas!$A$147:$G$149,3,TRUE)))))))), (IF($B$17=2,(IF(2-$B$19=0, 0, (IF(2-$B$19=1,(VLOOKUP(1,Tablas!$A$147:$G$149,3,TRUE)), (IF(2-$B$19=2, (VLOOKUP(2,Tablas!$A$147:$G$149,3,TRUE)), 0)))))), (IF($B$17=1,(IF(1-$B$19=0, 0, (IF(1-$B$19=1,(VLOOKUP(1,Tablas!$A$147:$G$149,3,TRUE)),0)))),0))))))))))))))))))) -> 407.4933333 | D74: =IF($B$15=1, (IF($B$17=0, 0, (IF($B$19>$B$17, (VLOOKUP($B$17,Tablas!$A$147:$G$149,4,TRUE)), (IF($B$17>4,(IF($B$19=0, (VLOOKUP(3,Tablas!$A$147:$G$149,4,TRUE)), (IF($B$19=1, (VLOOKUP(3,Tablas!$A$147:$G$149,4,TRUE)), (IF($B$19=2, (VLOOKUP(3,Tablas!$A$147:$G$149,4,TRUE)), (VLOOKUP(3,Tablas!$A$147:$G$149,4,TRUE)))))))), (IF($B$17=4,(IF(4-$B$19=0,(VLOOKUP(2,Tablas!$A$147:$G$149,4,TRUE)), (IF(4-$B$19=1,(VLOOKUP(2,Tablas!$A$147:$G$149,4,TRUE)), (IF(4-$B$19=2, (VLOOKUP(2,Tablas!$A$147:$G$149,4,TRUE)), (VLOOKUP(3,Tablas!$A$147:$G$149,4,TRUE)))))))), (IF($B$17=3,(IF(3-$B$19=0,(VLOOKUP(1,Tablas!$A$147:$G$149,4,TRUE)), (IF(3-$B$19=1,(VLOOKUP(1,Tablas!$A$147:$G$149,4,TRUE)), (IF(3-$B$19=2, (VLOOKUP(2,Tablas!$A$147:$G$149,4,TRUE)), (VLOOKUP(3,Tablas!$A$147:$G$149,4,TRUE)))))))), (IF($B$17=2,(IF(2-$B$19=0, 0, (IF(2-$B$19=1,(VLOOKUP(1,Tablas!$A$147:$G$149,4,TRUE)), (IF(2-$B$19=2, (VLOOKUP(2,Tablas!$A$147:$G$149,4,TRUE)), 0)))))), (IF($B$17=1,(IF(1-$B$19=0, 0, (IF(1-$B$19=1,(VLOOKUP(1,Tablas!$A$147:$G$149,4,TRUE)),0)))),0)))))))))))))), (IF($B$17=0, 0, (IF($B$19>$B$17, (VLOOKUP($B$17,Tablas!$A$147:$G$149,4,TRUE)), (IF($B$17=4,(IF(4-$B$19=0, 0, (IF(4-$B$19=1, (VLOOKUP(1,Tablas!$A$147:$G$149,4,TRUE)), (IF(4-$B$19=2, (VLOOKUP(2,Tablas!$A$147:$G$149,4,TRUE)), (IF(4-$B$19=3, (VLOOKUP(3,Tablas!$A$147:$G$149,4,TRUE)), (IF(4-$B$19=4, (VLOOKUP(3,Tablas!$A$147:$G$149,4,TRUE)), 0)))))))))), (IF($B$17=5,(IF(5-$B$19=0, (VLOOKUP(1,Tablas!$A$147:$G$149,4,TRUE)), (IF(5-$B$19=1, (VLOOKUP(1,Tablas!$A$147:$G$149,4,TRUE)), (IF(5-$B$19=2, (VLOOKUP(2,Tablas!$A$147:$G$149,4,TRUE)), (IF(5-$B$19=3, (VLOOKUP(3,Tablas!$A$147:$G$149,4,TRUE)), (IF(5-$B$19=4, (VLOOKUP(3,Tablas!$A$147:$G$149,4,TRUE)), (VLOOKUP(3,Tablas!$A$147:$G$149,4,TRUE)))))))))))), (IF($B$17=6,(IF(6-$B$19=0, (VLOOKUP(2,Tablas!$A$147:$G$149,4,TRUE)), (IF(6-$B$19=1, (VLOOKUP(2,Tablas!$A$147:$G$149,4,TRUE)), (IF(6-$B$19=2, (VLOOKUP(2,Tablas!$A$147:$G$149,4,TRUE)), (IF(6-$B$19=3, (VLOOKUP(3,Tablas!$A$147:$G$149,4,TRUE)), (IF(6-$B$19=4, (VLOOKUP(3,Tablas!$A$147:$G$149,4,TRUE)), (VLOOKUP(3,Tablas!$A$147:$G$149,4,TRUE)))))))))))), (IF($B$17>6,(IF(7-$B$19=0, (VLOOKUP(3,Tablas!$A$147:$G$149,4,TRUE)), (IF(7-$B$19=1, (VLOOKUP(3,Tablas!$A$147:$G$149,4,TRUE)), (IF(7-$B$19=2, (VLOOKUP(3,Tablas!$A$147:$G$149,4,TRUE)), (IF(7-$B$19=3, (VLOOKUP(3,Tablas!$A$147:$G$149,4,TRUE)), (IF(7-$B$19=4, (VLOOKUP(3,Tablas!$A$147:$G$149,4,TRUE)), (VLOOKUP(3,Tablas!$A$147:$G$149,4,TRUE)))))))))))), (IF($B$17=3,(IF(3-$B$19=0,0, (IF(3-$B$19=1,(VLOOKUP(1,Tablas!$A$147:$G$149,4,TRUE)), (IF(3-$B$19=2, (VLOOKUP(2,Tablas!$A$147:$G$149,4,TRUE)), (VLOOKUP(3,Tablas!$A$147:$G$149,4,TRUE)))))))), (IF($B$17=2,(IF(2-$B$19=0, 0, (IF(2-$B$19=1,(VLOOKUP(1,Tablas!$A$147:$G$149,4,TRUE)), (IF(2-$B$19=2, (VLOOKUP(2,Tablas!$A$147:$G$149,4,TRUE)), 0)))))), (IF($B$17=1,(IF(1-$B$19=0, 0, (IF(1-$B$19=1,(VLOOKUP(1,Tablas!$A$147:$G$149,4,TRUE)),0)))),0))))))))))))))))))) -> 357.28 | E74: =IF($B$15=1, (IF($B$17=0, 0, (IF($B$19>$B$17, (VLOOKUP($B$17,Tablas!$A$147:$G$149,5,TRUE)), (IF($B$17>4,(IF($B$19=0, (VLOOKUP(3,Tablas!$A$147:$G$149,5,TRUE)), (IF($B$19=1, (VLOOKUP(3,Tablas!$A$147:$G$149,5,TRUE)), (IF($B$19=2, (VLOOKUP(3,Tablas!$A$147:$G$149,5,TRUE)), (VLOOKUP(3,Tablas!$A$147:$G$149,5,TRUE)))))))), (IF($B$17=4,(IF(4-$B$19=0,(VLOOKUP(2,Tablas!$A$147:$G$149,5,TRUE)), (IF(4-$B$19=1,(VLOOKUP(2,Tablas!$A$147:$G$149,5,TRUE)), (IF(4-$B$19=2, (VLOOKUP(2,Tablas!$A$147:$G$149,5,TRUE)), (VLOOKUP(3,Tablas!$A$147:$G$149,5,TRUE)))))))), (IF($B$17=3,(IF(3-$B$19=0,(VLOOKUP(1,Tablas!$A$147:$G$149,5,TRUE)), (IF(3-$B$19=1,(VLOOKUP(1,Tablas!$A$147:$G$149,5,TRUE)), (IF(3-$B$19=2, (VLOOKUP(2,Tablas!$A$147:$G$149,5,TRUE)), (VLOOKUP(3,Tablas!$A$147:$G$149,5,TRUE)))))))), (IF($B$17=2,(IF(2-$B$19=0, 0, (IF(2-$B$19=1,(VLOOKUP(1,Tablas!$A$147:$G$149,5,TRUE)), (IF(2-$B$19=2, (VLOOKUP(2,Tablas!$A$147:$G$149,5,TRUE)), 0)))))), (IF($B$17=1,(IF(1-$B$19=0, 0, (IF(1-$B$19=1,(VLOOKUP(1,Tablas!$A$147:$G$149,5,TRUE)),0)))),0)))))))))))))), (IF($B$17=0, 0, (IF($B$19>$B$17, (VLOOKUP($B$17,Tablas!$A$147:$G$149,5,TRUE)), (IF($B$17=4,(IF(4-$B$19=0, 0, (IF(4-$B$19=1, (VLOOKUP(1,Tablas!$A$147:$G$149,5,TRUE)), (IF(4-$B$19=2, (VLOOKUP(2,Tablas!$A$147:$G$149,5,TRUE)), (IF(4-$B$19=3, (VLOOKUP(3,Tablas!$A$147:$G$149,5,TRUE)), (IF(4-$B$19=4, (VLOOKUP(3,Tablas!$A$147:$G$149,5,TRUE)), 0)))))))))), (IF($B$17=5,(IF(5-$B$19=0, (VLOOKUP(1,Tablas!$A$147:$G$149,5,TRUE)), (IF(5-$B$19=1, (VLOOKUP(1,Tablas!$A$147:$G$149,5,TRUE)), (IF(5-$B$19=2, (VLOOKUP(2,Tablas!$A$147:$G$149,5,TRUE)), (IF(5-$B$19=3, (VLOOKUP(3,Tablas!$A$147:$G$149,5,TRUE)), (IF(5-$B$19=4, (VLOOKUP(3,Tablas!$A$147:$G$149,5,TRUE)), (VLOOKUP(3,Tablas!$A$147:$G$149,5,TRUE)))))))))))), (IF($B$17=6,(IF(6-$B$19=0, (VLOOKUP(2,Tablas!$A$147:$G$149,5,TRUE)), (IF(6-$B$19=1, (VLOOKUP(2,Tablas!$A$147:$G$149,5,TRUE)), (IF(6-$B$19=2, (VLOOKUP(2,Tablas!$A$147:$G$149,5,TRUE)), (IF(6-$B$19=3, (VLOOKUP(3,Tablas!$A$147:$G$149,5,TRUE)), (IF(6-$B$19=4, (VLOOKUP(3,Tablas!$A$147:$G$149,5,TRUE)), (VLOOKUP(3,Tablas!$A$147:$G$149,5,TRUE)))))))))))), (IF($B$17>6,(IF(7-$B$19=0, (VLOOKUP(3,Tablas!$A$147:$G$149,5,TRUE)), (IF(7-$B$19=1, (VLOOKUP(3,Tablas!$A$147:$G$149,5,TRUE)), (IF(7-$B$19=2, (VLOOKUP(3,Tablas!$A$147:$G$149,5,TRUE)), (IF(7-$B$19=3, (VLOOKUP(3,Tablas!$A$147:$G$149,5,TRUE)), (IF(7-$B$19=4, (VLOOKUP(3,Tablas!$A$147:$G$149,5,TRUE)), (VLOOKUP(3,Tablas!$A$147:$G$149,5,TRUE)))))))))))), (IF($B$17=3,(IF(3-$B$19=0,0, (IF(3-$B$19=1,(VLOOKUP(1,Tablas!$A$147:$G$149,5,TRUE)), (IF(3-$B$19=2, (VLOOKUP(2,Tablas!$A$147:$G$149,5,TRUE)), (VLOOKUP(3,Tablas!$A$147:$G$149,5,TRUE)))))))), (IF($B$17=2,(IF(2-$B$19=0, 0, (IF(2-$B$19=1,(VLOOKUP(1,Tablas!$A$147:$G$149,5,TRUE)), (IF(2-$B$19=2, (VLOOKUP(2,Tablas!$A$147:$G$149,5,TRUE)), 0)))))), (IF($B$17=1,(IF(1-$B$19=0, 0, (IF(1-$B$19=1,(VLOOKUP(1,Tablas!$A$147:$G$149,5,TRUE)),0)))),0))))))))))))))))))) -> 302.5866667 | F74: =IF($B$15=1, (IF($B$17=0, 0, (IF($B$19>$B$17, (VLOOKUP($B$17,Tablas!$A$147:$G$149,6,TRUE)), (IF($B$17>4,(IF($B$19=0, (VLOOKUP(3,Tablas!$A$147:$G$149,6,TRUE)), (IF($B$19=1, (VLOOKUP(3,Tablas!$A$147:$G$149,6,TRUE)), (IF($B$19=2, (VLOOKUP(3,Tablas!$A$147:$G$149,6,TRUE)), (VLOOKUP(3,Tablas!$A$147:$G$149,6,TRUE)))))))), (IF($B$17=4,(IF(4-$B$19=0,(VLOOKUP(2,Tablas!$A$147:$G$149,6,TRUE)), (IF(4-$B$19=1,(VLOOKUP(2,Tablas!$A$147:$G$149,6,TRUE)), (IF(4-$B$19=2, (VLOOKUP(2,Tablas!$A$147:$G$149,6,TRUE)), (VLOOKUP(3,Tablas!$A$147:$G$149,6,TRUE)))))))), (IF($B$17=3,(IF(3-$B$19=0,(VLOOKUP(1,Tablas!$A$147:$G$149,6,TRUE)), (IF(3-$B$19=1,(VLOOKUP(1,Tablas!$A$147:$G$149,6,TRUE)), (IF(3-$B$19=2, (VLOOKUP(2,Tablas!$A$147:$G$149,6,TRUE)), (VLOOKUP(3,Tablas!$A$147:$G$149,6,TRUE)))))))), (IF($B$17=2,(IF(2-$B$19=0, 0, (IF(2-$B$19=1,(VLOOKUP(1,Tablas!$A$147:$G$149,6,TRUE)), (IF(2-$B$19=2, (VLOOKUP(2,Tablas!$A$147:$G$149,6,TRUE)), 0)))))), (IF($B$17=1,(IF(1-$B$19=0, 0, (IF(1-$B$19=1,(VLOOKUP(1,Tablas!$A$147:$G$149,6,TRUE)),0)))),0)))))))))))))), (IF($B$17=0, 0, (IF($B$19>$B$17, (VLOOKUP($B$17,Tablas!$A$147:$G$149,6,TRUE)), (IF($B$17=4,(IF(4-$B$19=0, 0, (IF(4-$B$19=1, (VLOOKUP(1,Tablas!$A$147:$G$149,6,TRUE)), (IF(4-$B$19=2, (VLOOKUP(2,Tablas!$A$147:$G$149,6,TRUE)), (IF(4-$B$19=3, (VLOOKUP(3,Tablas!$A$147:$G$149,6,TRUE)), (IF(4-$B$19=4, (VLOOKUP(3,Tablas!$A$147:$G$149,6,TRUE)), 0)))))))))), (IF($B$17=5,(IF(5-$B$19=0, (VLOOKUP(1,Tablas!$A$147:$G$149,6,TRUE)), (IF(5-$B$19=1, (VLOOKUP(1,Tablas!$A$147:$G$149,6,TRUE)), (IF(5-$B$19=2, (VLOOKUP(2,Tablas!$A$147:$G$149,6,TRUE)), (IF(5-$B$19=3, (VLOOKUP(3,Tablas!$A$147:$G$149,6,TRUE)), (IF(5-$B$19=4, (VLOOKUP(3,Tablas!$A$147:$G$149,6,TRUE)), (VLOOKUP(3,Tablas!$A$147:$G$149,6,TRUE)))))))))))), (IF($B$17=6,(IF(6-$B$19=0, (VLOOKUP(2,Tablas!$A$147:$G$149,6,TRUE)), (IF(6-$B$19=1, (VLOOKUP(2,Tablas!$A$147:$G$149,6,TRUE)), (IF(6-$B$19=2, (VLOOKUP(2,Tablas!$A$147:$G$149,6,TRUE)), (IF(6-$B$19=3, (VLOOKUP(3,Tablas!$A$147:$G$149,6,TRUE)), (IF(6-$B$19=4, (VLOOKUP(3,Tablas!$A$147:$G$149,6,TRUE)), (VLOOKUP(3,Tablas!$A$147:$G$149,6,TRUE)))))))))))), (IF($B$17>6,(IF(7-$B$19=0, (VLOOKUP(3,Tablas!$A$147:$G$149,6,TRUE)), (IF(7-$B$19=1, (VLOOKUP(3,Tablas!$A$147:$G$149,6,TRUE)), (IF(7-$B$19=2, (VLOOKUP(3,Tablas!$A$147:$G$149,6,TRUE)), (IF(7-$B$19=3, (VLOOKUP(3,Tablas!$A$147:$G$149,6,TRUE)), (IF(7-$B$19=4, (VLOOKUP(3,Tablas!$A$147:$G$149,6,TRUE)), (VLOOKUP(3,Tablas!$A$147:$G$149,6,TRUE)))))))))))), (IF($B$17=3,(IF(3-$B$19=0,0, (IF(3-$B$19=1,(VLOOKUP(1,Tablas!$A$147:$G$149,6,TRUE)), (IF(3-$B$19=2, (VLOOKUP(2,Tablas!$A$147:$G$149,6,TRUE)), (VLOOKUP(3,Tablas!$A$147:$G$149,6,TRUE)))))))), (IF($B$17=2,(IF(2-$B$19=0, 0, (IF(2-$B$19=1,(VLOOKUP(1,Tablas!$A$147:$G$149,6,TRUE)), (IF(2-$B$19=2, (VLOOKUP(2,Tablas!$A$147:$G$149,6,TRUE)), 0)))))), (IF($B$17=1,(IF(1-$B$19=0, 0, (IF(1-$B$19=1,(VLOOKUP(1,Tablas!$A$147:$G$149,6,TRUE)),0)))),0))))))))))))))))))) -> 262.5466667 | G74: =IF($B$15=1, (IF($B$17=0, 0, (IF($B$19>$B$17, (VLOOKUP($B$17,Tablas!$A$147:$G$149,7,TRUE)), (IF($B$17>4,(IF($B$19=0, (VLOOKUP(3,Tablas!$A$147:$G$149,7,TRUE)), (IF($B$19=1, (VLOOKUP(3,Tablas!$A$147:$G$149,7,TRUE)), (IF($B$19=2, (VLOOKUP(3,Tablas!$A$147:$G$149,7,TRUE)), (VLOOKUP(3,Tablas!$A$147:$G$149,7,TRUE)))))))), (IF($B$17=4,(IF(4-$B$19=0,(VLOOKUP(2,Tablas!$A$147:$G$149,7,TRUE)), (IF(4-$B$19=1,(VLOOKUP(2,Tablas!$A$147:$G$149,7,TRUE)), (IF(4-$B$19=2, (VLOOKUP(2,Tablas!$A$147:$G$149,7,TRUE)), (VLOOKUP(3,Tablas!$A$147:$G$149,7,TRUE)))))))), (IF($B$17=3,(IF(3-$B$19=0,(VLOOKUP(1,Tablas!$A$147:$G$149,7,TRUE)), (IF(3-$B$19=1,(VLOOKUP(1,Tablas!$A$147:$G$149,7,TRUE)), (IF(3-$B$19=2, (VLOOKUP(2,Tablas!$A$147:$G$149,7,TRUE)), (VLOOKUP(3,Tablas!$A$147:$G$149,7,TRUE)))))))), (IF($B$17=2,(IF(2-$B$19=0, 0, (IF(2-$B$19=1,(VLOOKUP(1,Tablas!$A$147:$G$149,7,TRUE)), (IF(2-$B$19=2, (VLOOKUP(2,Tablas!$A$147:$G$149,7,TRUE)), 0)))))), (IF($B$17=1,(IF(1-$B$19=0, 0, (IF(1-$B$19=1,(VLOOKUP(1,Tablas!$A$147:$G$149,7,TRUE)),0)))),0)))))))))))))), (IF($B$17=0, 0, (IF($B$19>$B$17, (VLOOKUP($B$17,Tablas!$A$147:$G$149,7,TRUE)), (IF($B$17=4,(IF(4-$B$19=0, 0, (IF(4-$B$19=1, (VLOOKUP(1,Tablas!$A$147:$G$149,7,TRUE)), (IF(4-$B$19=2, (VLOOKUP(2,Tablas!$A$147:$G$149,7,TRUE)), (IF(4-$B$19=3, (VLOOKUP(3,Tablas!$A$147:$G$149,7,TRUE)), (IF(4-$B$19=4, (VLOOKUP(3,Tablas!$A$147:$G$149,7,TRUE)), 0)))))))))), (IF($B$17=5,(IF(5-$B$19=0, (VLOOKUP(1,Tablas!$A$147:$G$149,7,TRUE)), (IF(5-$B$19=1, (VLOOKUP(1,Tablas!$A$147:$G$149,7,TRUE)), (IF(5-$B$19=2, (VLOOKUP(2,Tablas!$A$147:$G$149,7,TRUE)), (IF(5-$B$19=3, (VLOOKUP(3,Tablas!$A$147:$G$149,7,TRUE)), (IF(5-$B$19=4, (VLOOKUP(3,Tablas!$A$147:$G$149,7,TRUE)), (VLOOKUP(3,Tablas!$A$147:$G$149,7,TRUE)))))))))))), (IF($B$17=6,(IF(6-$B$19=0, (VLOOKUP(2,Tablas!$A$147:$G$149,7,TRUE)), (IF(6-$B$19=1, (VLOOKUP(2,Tablas!$A$147:$G$149,7,TRUE)), (IF(6-$B$19=2, (VLOOKUP(2,Tablas!$A$147:$G$149,7,TRUE)), (IF(6-$B$19=3, (VLOOKUP(3,Tablas!$A$147:$G$149,7,TRUE)), (IF(6-$B$19=4, (VLOOKUP(3,Tablas!$A$147:$G$149,7,TRUE)), (VLOOKUP(3,Tablas!$A$147:$G$149,7,TRUE)))))))))))), (IF($B$17>6,(IF(7-$B$19=0, (VLOOKUP(3,Tablas!$A$147:$G$149,7,TRUE)), (IF(7-$B$19=1, (VLOOKUP(3,Tablas!$A$147:$G$149,7,TRUE)), (IF(7-$B$19=2, (VLOOKUP(3,Tablas!$A$147:$G$149,7,TRUE)), (IF(7-$B$19=3, (VLOOKUP(3,Tablas!$A$147:$G$149,7,TRUE)), (IF(7-$B$19=4, (VLOOKUP(3,Tablas!$A$147:$G$149,7,TRUE)), (VLOOKUP(3,Tablas!$A$147:$G$149,7,TRUE)))))))))))), (IF($B$17=3,(IF(3-$B$19=0,0, (IF(3-$B$19=1,(VLOOKUP(1,Tablas!$A$147:$G$149,7,TRUE)), (IF(3-$B$19=2, (VLOOKUP(2,Tablas!$A$147:$G$149,7,TRUE)), (VLOOKUP(3,Tablas!$A$147:$G$149,7,TRUE)))))))), (IF($B$17=2,(IF(2-$B$19=0, 0, (IF(2-$B$19=1,(VLOOKUP(1,Tablas!$A$147:$G$149,7,TRUE)), (IF(2-$B$19=2, (VLOOKUP(2,Tablas!$A$147:$G$149,7,TRUE)), 0)))))), (IF($B$17=1,(IF(1-$B$19=0, 0, (IF(1-$B$19=1,(VLOOKUP(1,Tablas!$A$147:$G$149,7,TRUE)),0)))),0))))))))))))))))))) -> 203.7466667
A75: Total de Prima neta | C75: =SUM(C72:C74) -> 3158.773333 | D75: =SUM(D72:D74) -> 2769.013333 | E75: 2288.16 | F75: 1984.173333 | G75: 1539.16
A76: Ajuste por la variante con coaseguro fuera del país de residencia | C76: =IF('INGRESO DE DATOS'!$P$3,C75*-25%,0) -> 0 | D76: =IF('INGRESO DE DATOS'!$P$3,D75*-25%,0) -> 0 | E76: =IF('INGRESO DE DATOS'!$P$3,E75*-25%,0) -> 0 | F76: =IF('INGRESO DE DATOS'!$P$3,F75*-25%,0) -> 0 | G76: =IF('INGRESO DE DATOS'!$P$3,G75*-25%,0) -> 0
A77: Tarifa administrativa anual | C77: 75 | D77: 75 | E77: 75 | F77: 75 | G77: 75
A78: VAT (5%) :
A79: ITBMS (7%)
A80: TOTAL de primera cuota | C80: =SUM(C75:C79) -> 3233.773333 | D80: =SUM(D75:D79) -> 2844.013333 | E80: 2363.16 | F80: 2059.173333 | G80: 1614.16
A81: Costo de Tarifa mensual de 2 a 12 | C81: =C80-C77 -> 3158.773333 | D81: =D80-D77 -> 2769.013333 | E81: 2288.16 | F81: 1984.173333 | G81: 1539.16
A82: TOTAL ANUAL | C82: =C80+(C81*11) -> 37980.28 | D82: =D80+(D81*11) -> 33303.16 | E82: 27532.92 | F82: =F80+(F81*11) -> 23885.08 | G82: 18544.92
A83: Ahorros en tarifas de prima para Dependientes | C83: =IF($B$15=1,IF($B$17=0,0,IF($B$19=0,0,IF($B$19=1,(VLOOKUP(1,Tablas!$A$147:$G$149,3,TRUE)),(VLOOKUP(2,Tablas!$A$147:$G$149,3,TRUE))))), IF($B$17=0,0,IF($B$19=0,0,IF($B$19=1,(VLOOKUP(1,Tablas!$A$147:$G$149,3,TRUE)),IF($B$19=2,(VLOOKUP(2,Tablas!$A$147:$G$149,3,TRUE)), (VLOOKUP(3,Tablas!$A$147:$G$149,3,TRUE))))))) -> 407.4933333 | D83: =IF($B$15=1,IF($B$17=0,0,IF($B$19=0,0,IF($B$19=1,(VLOOKUP(1,Tablas!$A$147:$G$149,4,TRUE)),(VLOOKUP(2,Tablas!$A$147:$G$149,4,TRUE))))), IF($B$17=0,0,IF($B$19=0,0,IF($B$19=1,(VLOOKUP(1,Tablas!$A$147:$G$149,4,TRUE)),IF($B$19=2,(VLOOKUP(2,Tablas!$A$147:$G$149,4,TRUE)), (VLOOKUP(3,Tablas!$A$147:$G$149,4,TRUE))))))) -> 357.28 | E83: =IF($B$15=1,IF($B$17=0,0,IF($B$19=0,0,IF($B$19=1,(VLOOKUP(1,Tablas!$A$147:$G$149,5,TRUE)),(VLOOKUP(2,Tablas!$A$147:$G$149,5,TRUE))))), IF($B$17=0,0,IF($B$19=0,0,IF($B$19=1,(VLOOKUP(1,Tablas!$A$147:$G$149,5,TRUE)),IF($B$19=2,(VLOOKUP(2,Tablas!$A$147:$G$149,5,TRUE)), (VLOOKUP(3,Tablas!$A$147:$G$149,5,TRUE))))))) -> 302.5866667 | F83: =IF($B$15=1,IF($B$17=0,0,IF($B$19=0,0,IF($B$19=1,(VLOOKUP(1,Tablas!$A$147:$G$149,6,TRUE)),(VLOOKUP(2,Tablas!$A$147:$G$149,6,TRUE))))), IF($B$17=0,0,IF($B$19=0,0,IF($B$19=1,(VLOOKUP(1,Tablas!$A$147:$G$149,6,TRUE)),IF($B$19=2,(VLOOKUP(2,Tablas!$A$147:$G$149,6,TRUE)), (VLOOKUP(3,Tablas!$A$147:$G$149,6,TRUE))))))) -> 262.5466667 | G83: =IF($B$15=1,IF($B$17=0,0,IF($B$19=0,0,IF($B$19=1,(VLOOKUP(1,Tablas!$A$147:$G$149,7,TRUE)),(VLOOKUP(2,Tablas!$A$147:$G$149,7,TRUE))))), IF($B$17=0,0,IF($B$19=0,0,IF($B$19=1,(VLOOKUP(1,Tablas!$A$147:$G$149,7,TRUE)),IF($B$19=2,(VLOOKUP(2,Tablas!$A$147:$G$149,7,TRUE)), (VLOOKUP(3,Tablas!$A$147:$G$149,7,TRUE))))))) -> 203.7466667
A85: Este presupuesto solamente tiene carácter informativo y en ningún momento expresa compromiso legal para suministrarle cobertura de seguro. La emisión de una póliza de seguro Bupa está sujeta a todas las evaluaciones de riesgo por parte de Bupa y a la recepción de todos los pagos de prima requeridos.

Sheet Bupa Global Premier
I1: RESUMEN DE BENEFICIOS | P1: RESUMEN DE BENEFICIOS | W1: RESUMEN DE BENEFICIOS
A5: Cotización de Seguro Médico Internacional Bupa Global Premier Health Plan Tarifas en US$ | Validas: 1 de enero de 2024
A13: Nombre del Asegurado Titular | B13: =+'INGRESO DE DATOS'!$C$37 -> John Doe
A15: Número de adultos en la póliza | B15: =+'INGRESO DE DATOS'!$C$39 -> 2
A17: Número de Dependientes en la póliza | B17: =+'INGRESO DE DATOS'!$C$41 -> 2 | C17: =IF('INGRESO DE DATOS'!$P$2=TRUE, "Cotización para dependiente de 24 años","") -> 
A19: Edad del Asegurado Titular | B19: =+'INGRESO DE DATOS'!$C$43 -> 32 | D19: Edad del/la conyuge | F19: =+'INGRESO DE DATOS'!$C$45 -> 46
A21: Fecha de la cotización | B21: =NOW() -> 2024-01-09T15:15:16.520
A23: =IF('INGRESO DE DATOS'!P3=TRUE,"Variante con coaseguro fuera del país de residencia: SI","Variante con coaseguro fuera del país de residencia: NO") -> Variante con coaseguro fuera del país de residencia: NO
A25: Deducibles | C25: PLAN 1 | D25: PLAN 2 | E25: PLAN 3 | F25: PLAN 4
A26: En el país de residencia | C26: 250 | D26: 2000 | E26: 5000 | F26: 10000
A27: Fuera del país de residencia | C27: 5000 | D27: 2000 | E27: 5000 | F27: 10000
A29: TARIFAS ANUALES
A30: Prima para Asegurado Titular | C30: =VLOOKUP($B$19,Tablas!$A$156:$G$222,3,TRUE) -> 8031 | D30: =VLOOKUP($B$19,Tablas!$A$156:$G$222,4,TRUE) -> 7286 | E30: =VLOOKUP($B$19,Tablas!$A$156:$G$222,5,TRUE) -> 5401 | F30: =VLOOKUP($B$19,Tablas!$A$156:$G$222,6,TRUE) -> 4019
A31: Prima para conyuge | C31: =IF($B$15=1,0,(VLOOKUP($F$19,Tablas!$A$156:$G$222,3,TRUE))) -> 11241 | D31: =IF($B$15=1,0,(VLOOKUP($F$19,Tablas!$A$156:$G$222,4,TRUE))) -> 10203 | E31: =IF($B$15=1,0,(VLOOKUP($F$19,Tablas!$A$156:$G$222,5,TRUE))) -> 7387 | F31: =IF($B$15=1,0,(VLOOKUP($F$19,Tablas!$A$156:$G$222,6,TRUE))) -> 5495
A32: Prima para hijo (s) | C32: =IF($B$17=0,0,(VLOOKUP($B$17,Tablas!$A$223:$G$225,3,TRUE))) -> 4853 | D32: =IF($B$17=0,0,(VLOOKUP($B$17,Tablas!$A$223:$G$225,4,TRUE))) -> 4403 | E32: =IF($B$17=0,0,(VLOOKUP($B$17,Tablas!$A$223:$G$225,5,TRUE))) -> 3380 | F32: =IF($B$17=0,0,(VLOOKUP($B$17,Tablas!$A$223:$G$225,6,TRUE))) -> 2516
A33: Total de Prima neta | C33: =SUM(C30:C32) -> 24125 | D33: =SUM(D30:D32) -> 21892 | E33: 16168 | F33: 12030
A34: Ajuste por la variante con coaseguro fuera del país de residencia | C34: =IF('INGRESO DE DATOS'!$P$3,C33*-25%,0) -> 0 | D34: =IF('INGRESO DE DATOS'!$P$3,D33*-25%,0) -> 0 | E34: =IF('INGRESO DE DATOS'!$P$3,E33*-25%,0) -> 0 | F34: =IF('INGRESO DE DATOS'!$P$3,F33*-25%,0) -> 0
A35: Tarifa administrativa anual | C35: 75 | D35: 75 | E35: 75 | F35: 75
A36: VAT (5%) :
A37: ITBMS (7%)
A38: TOTAL ANUAL | C38: =SUM(C33:C37) -> 24200 | D38: =SUM(D33:D37) -> 21967 | E38: 16243 | F38: =SUM(F33:F37) -> 12105
A40: TARIFAS SEMESTRALES
A41: Prima para Asegurado Titular | C41: =VLOOKUP($B$19,Tablas!$A$533:$G$599,3,TRUE) -> 4256.43 | D41: =VLOOKUP($B$19,Tablas!$A$533:$G$599,4,TRUE) -> 3861.58 | E41: =VLOOKUP($B$19,Tablas!$A$533:$G$599,5,TRUE) -> 2862.53 | F41: =VLOOKUP($B$19,Tablas!$A$533:$G$599,6,TRUE) -> 2130.07
A42: Prima para conyuge | C42: =IF($B$15=1,0,(VLOOKUP($F$19,Tablas!$A$533:$G$599,3,TRUE))) -> 5957.73 | D42: =IF($B$15=1,0,(VLOOKUP($F$19,Tablas!$A$533:$G$599,4,TRUE))) -> 5407.59 | E42: =IF($B$15=1,0,(VLOOKUP($F$19,Tablas!$A$533:$G$599,5,TRUE))) -> 3915.11 | F42: =IF($B$15=1,0,(VLOOKUP($F$19,Tablas!$A$533:$G$599,6,TRUE))) -> 2912.35
A43: Prima para hijo (s) | C43: =IF($B$17=0,0,(VLOOKUP($B$17,Tablas!$A$600:$G$602,3,TRUE))) -> 2572.09 | D43: =IF($B$17=0,0,(VLOOKUP($B$17,Tablas!$A$600:$G$602,4,TRUE))) -> 2333.59 | E43: =IF($B$17=0,0,(VLOOKUP($B$17,Tablas!$A$600:$G$602,5,TRUE))) -> 1791.4 | F43: =IF($B$17=0,0,(VLOOKUP($B$17,Tablas!$A$600:$G$602,6,TRUE))) -> 1333.48
A44: Total de Prima neta | C44: =SUM(C41:C43) -> 12786.25 | D44: =SUM(D41:D43) -> 11602.76 | E44: 8569.04 | F44: 6375.9
A45: Ajuste por la variante con coaseguro fuera del país de residencia | C45: =IF('INGRESO DE DATOS'!$P$3,C44*-25%,0) -> 0 | D45: =IF('INGRESO DE DATOS'!$P$3,D44*-25%,0) -> 0 | E45: =IF('INGRESO DE DATOS'!$P$3,E44*-25%,0) -> 0 | F45: =IF('INGRESO DE DATOS'!$P$3,F44*-25%,0) -> 0
A46: Tarifa administrativa anual | C46: 75 | D46: 75 | E46: 75 | F46: 75
A47: VAT (5%) :
A48: ITBMS (7%)
A49: TOTAL de primera cuota | C49: =SUM(C44:C48) -> 12861.25 | D49: =SUM(D44:D48) -> 11677.76 | E49: 8644.04 | F49: 6450.9
A50: Costo de segunda cuota | C50: =C49-C46 -> 12786.25 | D50: =D49-D46 -> 11602.76 | E50: 8569.04 | F50: 6375.9
A51: TOTAL ANUAL | C51: =C49+C50 -> 25647.5 | D51: =D49+D50 -> 23280.52 | E51: 17213.08 | F51: =F49+F50 -> 12826.8
A53: TARIFAS TRIMESTRALES
A54: Prima para Asegurado Titular | C54: =VLOOKUP($B$19,Tablas!$A$760:$G$826,3,TRUE) -> 2208.525 | D54: =VLOOKUP($B$19,Tablas!$A$760:$G$826,4,TRUE) -> 2003.65 | E54: =VLOOKUP($B$19,Tablas!$A$760:$G$826,5,TRUE) -> 1485.275 | F54: =VLOOKUP($B$19,Tablas!$A$760:$G$826,6,TRUE) -> 1105.225
A55: Prima para conyuge | C55: =IF($B$15=1,0,(VLOOKUP($F$19,Tablas!$A$760:$G$826,3,TRUE))) -> 3091.275 | D55: =IF($B$15=1,0,(VLOOKUP($F$19,Tablas!$A$760:$G$826,4,TRUE))) -> 2805.825 | E55: =IF($B$15=1,0,(VLOOKUP($F$19,Tablas!$A$760:$G$826,5,TRUE))) -> 2031.425 | F55: =IF($B$15=1,0,(VLOOKUP($F$19,Tablas!$A$760:$G$826,6,TRUE))) -> 1511.125
A56: Prima para hijo (s) | C56: =IF($B$17=0,0,(VLOOKUP($B$17,Tablas!$A$827:$G$829,3,TRUE))) -> 1334.575 | D56: =IF($B$17=0,0,(VLOOKUP($B$17,Tablas!$A$827:$G$829,4,TRUE))) -> 1210.825 | E56: =IF($B$17=0,0,(VLOOKUP($B$17,Tablas!$A$827:$G$829,5,TRUE))) -> 929.5 | F56: =IF($B$17=0,0,(VLOOKUP($B$17,Tablas!$A$827:$G$829,6,TRUE))) -> 691.9
A57: Total de Prima neta | C57: =SUM(C54:C56) -> 6634.375 | D57: =SUM(D54:D56) -> 6020.3 | E57: 4446.2 | F57: 3308.25
A58: Ajuste por la variante con coaseguro fuera del país de residencia | C58: =IF('INGRESO DE DATOS'!$P$3,C57*-25%,0) -> 0 | D58: =IF('INGRESO DE DATOS'!$P$3,D57*-25%,0) -> 0 | E58: =IF('INGRESO DE DATOS'!$P$3,E57*-25%,0) -> 0 | F58: =IF('INGRESO DE DATOS'!$P$3,F57*-25%,0) -> 0
A59: Tarifa administrativa anual | C59: 75 | D59: 75 | E59: 75 | F59: 75
A60: VAT (5%) :
A61: ITBMS (7%)
A62: TOTAL de primera cuota | C62: =SUM(C57:C61) -> 6709.375 | D62: =SUM(D57:D61) -> 6095.3 | E62: 4521.2 | F62: 3383.25
A63: Costo de tarifa trimestral 2 a 4 | C63: =C62-C59 -> 6634.375 | D63: =D62-D59 -> 6020.3 | E63: 4446.2 | F63: 3308.25
A64: TOTAL ANUAL | C64: =C62+(C63*3) -> 26612.5 | D64: =D62+(D63*3) -> 24156.2 | E64: 17859.8 | F64: =F62+(F63*3) -> 13308
A66: TARIFAS MENSUALES
A67: Prima para Asegurado Titular | C67: =VLOOKUP($B$19,Tablas!$A$230:$G$296,3,TRUE) -> 749.56 | D67: =VLOOKUP($B$19,Tablas!$A$230:$G$296,4,TRUE) -> 680.0266667 | E67: =VLOOKUP($B$19,Tablas!$A$230:$G$296,5,TRUE) -> 504.0933333 | F67: =VLOOKUP($B$19,Tablas!$A$230:$G$296,6,TRUE) -> 375.1066667
A68: Prima para conyuge | C68: =IF($B$15=1,0,(VLOOKUP($F$19,Tablas!$A$230:$G$296,3,TRUE))) -> 1049.16 | D68: =IF($B$15=1,0,(VLOOKUP($F$19,Tablas!$A$230:$G$296,4,TRUE))) -> 952.28 | E68: =IF($B$15=1,0,(VLOOKUP($F$19,Tablas!$A$230:$G$296,5,TRUE))) -> 689.4533333 | F68: =IF($B$15=1,0,(VLOOKUP($F$19,Tablas!$A$230:$G$296,6,TRUE))) -> 512.8666667
A69: Prima para hijo (s) | C69: =IF($B$17=0,0,(VLOOKUP($B$17,Tablas!$A$297:$G$299,3,TRUE))) -> 452.9466667 | D69: =IF($B$17=0,0,(VLOOKUP($B$17,Tablas!$A$297:$G$299,4,TRUE))) -> 410.9466667 | E69: =IF($B$17=0,0,(VLOOKUP($B$17,Tablas!$A$297:$G$299,5,TRUE))) -> 315.4666667 | F69: =IF($B$17=0,0,(VLOOKUP($B$17,Tablas!$A$297:$G$299,6,TRUE))) -> 234.8266667
A70: Total de Prima neta | C70: =SUM(C67:C69) -> 2251.666667 | D70: =SUM(D67:D69) -> 2043.253333 | E70: 1509.013333 | F70: 1122.8
A71: Ajuste por la variante con coaseguro fuera del país de residencia | C71: =IF('INGRESO DE DATOS'!$P$3,C70*-25%,0) -> 0 | D71: =IF('INGRESO DE DATOS'!$P$3,D70*-25%,0) -> 0 | E71: =IF('INGRESO DE DATOS'!$P$3,E70*-25%,0) -> 0 | F71: =IF('INGRESO DE DATOS'!$P$3,F70*-25%,0) -> 0
A72: Tarifa administrativa anual | C72: 75 | D72: 75 | E72: 75 | F72: 75
A73: VAT (5%) :
A74: ITBMS (7%)
A75: TOTAL de primera cuota | C75: =SUM(C70:C74) -> 2326.666667 | D75: =SUM(D70:D74) -> 2118.253333 | E75: 1584.013333 | F75: 1197.8
A76: Costo de Tarifa mensual de 2 a 12 | C76: =C75-C72 -> 2251.666667 | D76: =D75-D72 -> 2043.253333 | E76: 1509.013333 | F76: 1122.8
A77: TOTAL ANUAL | C77: =C75+(C76*11) -> 27095 | D77: =D75+(D76*11) -> 24594.04 | E77: 18183.16 | F77: =F75+(F76*11) -> 13548.6
A79: Este presupuesto solamente tiene carácter informativo y en ningún momento expresa compromiso legal para suministrarle cobertura de seguro. La emisión de una póliza de seguro Bupa está sujeta a todas las evaluaciones de riesgo por parte de Bupa y a la recepción de todos los pagos de prima requeridos.

Sheet Bupa Global Select
H1: RESUMEN DE BENEFICIOS | O1: RESUMEN DE BENEFICIOS | V1: RESUMEN DE BENEFICIOS
A5: Cotización de Seguro Médico Internacional Bupa Global Select Health Plan Tarifas en US$ | Validas: 1 de enero de 2024
A13: Nombre del Asegurado Titular | B13: =+'INGRESO DE DATOS'!$C$37 -> John Doe
A15: Número de adultos en la póliza | B15: =+'INGRESO DE DATOS'!$C$39 -> 2
A17: Número de Dependientes en la póliza | B17: =+'INGRESO DE DATOS'!$C$41 -> 2 | C17: =IF('INGRESO DE DATOS'!$P$2=TRUE, "Cotización para dependiente de 24 años","") -> 
A19: Edad del Asegurado Titular | B19: =+'INGRESO DE DATOS'!$C$43 -> 32 | D19: Edad del/la conyuge | F19: =+'INGRESO DE DATOS'!$C$45 -> 46
A21: Fecha de la cotización | B21: =NOW() -> 2024-01-09T15:15:16.520
A23: =IF('INGRESO DE DATOS'!P3=TRUE,"Variante con coaseguro fuera del país de residencia: SI","Variante con coaseguro fuera del país de residencia: NO") -> Variante con coaseguro fuera del país de residencia: NO
A25: DEDUCIBLES | C25: PLAN 1 | D25: PLAN 2 | E25: PLAN 3 | F25: PLAN 4
A26: En el país de residencia | C26: 250 | D26: 2000 | E26: 5000 | F26: 10000
A27: Fuera del país de residencia | C27: 5000 | D27: 2000 | E27: 5000 | F27: 10000
A29: TARIFAS ANUALES
A30: Prima para Asegurado Titular | C30: =VLOOKUP($B$19,Tablas!$A$307:$G$373,3,TRUE) -> 5599 | D30: =VLOOKUP($B$19,Tablas!$A$307:$G$373,4,TRUE) -> 5373 | E30: =VLOOKUP($B$19,Tablas!$A$307:$G$373,5,TRUE) -> 3992 | F30: =VLOOKUP($B$19,Tablas!$A$307:$G$373,6,TRUE) -> 2971
A31: Prima para conyuge | C31: =IF($B$15=1,0,(VLOOKUP($F$19,Tablas!$A$307:$G$373,3,TRUE))) -> 8138 | D31: =IF($B$15=1,0,(VLOOKUP($F$19,Tablas!$A$307:$G$373,4,TRUE))) -> 7809 | E31: =IF($B$15=1,0,(VLOOKUP($F$19,Tablas!$A$307:$G$373,5,TRUE))) -> 5663 | F31: =IF($B$15=1,0,(VLOOKUP($F$19,Tablas!$A$307:$G$373,6,TRUE))) -> 4215
A32: Prima para hijo (s) | C32: =IF($B$17=0,0,(VLOOKUP($B$17,Tablas!$A$374:$G$376,3,TRUE))) -> 3654 | D32: =IF($B$17=0,0,(VLOOKUP($B$17,Tablas!$A$374:$G$376,4,TRUE))) -> 3506 | E32: =IF($B$17=0,0,(VLOOKUP($B$17,Tablas!$A$374:$G$376,5,TRUE))) -> 2712 | F32: =IF($B$17=0,0,(VLOOKUP($B$17,Tablas!$A$374:$G$376,6,TRUE))) -> 2019
A33: Total de Prima neta | C33: =SUM(C30:C32) -> 17391 | D33: =SUM(D30:D32) -> 16688 | E33: 12367 | F33: 9205
A34: Ajuste por la variante con coaseguro fuera del país de residencia | C34: =IF('INGRESO DE DATOS'!$P$3,C33*-25%,0) -> 0 | D34: =IF('INGRESO DE DATOS'!$P$3,D33*-25%,0) -> 0 | E34: =IF('INGRESO DE DATOS'!$P$3,E33*-25%,0) -> 0 | F34: =IF('INGRESO DE DATOS'!$P$3,F33*-25%,0) -> 0
A35: Tarifa administrativa anual | C35: 75 | D35: 75 | E35: 75 | F35: 75
A36: VAT (5%) :
A37: ITBMS (7%)
A38: TOTAL ANUAL | C38: =SUM(C33:C37) -> 17466 | D38: =SUM(D33:D37) -> 16763 | E38: 12442 | F38: =SUM(F33:F37) -> 9280
A40: TARIFAS SEMESTRALES
A41: Prima para Asegurado Titular | C41: =VLOOKUP($B$19,Tablas!$A$608:$G$674,3,TRUE) -> 2967.47 | D41: =VLOOKUP($B$19,Tablas!$A$608:$G$674,4,TRUE) -> 2847.69 | E41: =VLOOKUP($B$19,Tablas!$A$608:$G$674,5,TRUE) -> 2115.76 | F41: =VLOOKUP($B$19,Tablas!$A$608:$G$674,6,TRUE) -> 1574.63
A42: Prima para conyuge | C42: =IF($B$15=1,0,(VLOOKUP($F$19,Tablas!$A$608:$G$674,3,TRUE))) -> 4313.14 | D42: =IF($B$15=1,0,(VLOOKUP($F$19,Tablas!$A$608:$G$674,4,TRUE))) -> 4138.77 | E42: =IF($B$15=1,0,(VLOOKUP($F$19,Tablas!$A$608:$G$674,5,TRUE))) -> 3001.39 | F42: =IF($B$15=1,0,(VLOOKUP($F$19,Tablas!$A$608:$G$674,6,TRUE))) -> 2233.95
A43: Prima para hijo (s) | C43: =IF($B$17=0,0,(VLOOKUP($B$17,Tablas!$A$675:$G$677,3,TRUE))) -> 1936.62 | D43: =IF($B$17=0,0,(VLOOKUP($B$17,Tablas!$A$675:$G$677,4,TRUE))) -> 1858.18 | E43: =IF($B$17=0,0,(VLOOKUP($B$17,Tablas!$A$675:$G$677,5,TRUE))) -> 1437.36 | F43: =IF($B$17=0,0,(VLOOKUP($B$17,Tablas!$A$675:$G$677,6,TRUE))) -> 1070.07
A44: Total de Prima neta | C44: =SUM(C41:C43) -> 9217.23 | D44: =SUM(D41:D43) -> 8844.64 | E44: 6554.51 | F44: 4878.65
A45: Ajuste por la variante con coaseguro fuera del país de residencia | C45: =IF('INGRESO DE DATOS'!$P$3,C44*-25%,0) -> 0 | D45: =IF('INGRESO DE DATOS'!$P$3,D44*-25%,0) -> 0 | E45: =IF('INGRESO DE DATOS'!$P$3,E44*-25%,0) -> 0 | F45: =IF('INGRESO DE DATOS'!$P$3,F44*-25%,0) -> 0
A46: Tarifa administrativa anual | C46: 75 | D46: 75 | E46: 75 | F46: 75
A47: VAT (5%) :
A48: ITBMS (7%)
A49: TOTAL de primera cuota | C49: =SUM(C44:C48) -> 9292.23 | D49: =SUM(D44:D48) -> 8919.64 | E49: 6629.51 | F49: 4953.65
A50: Costo de segunda cuota | C50: =C49-C46 -> 9217.23 | D50: =D49-D46 -> 8844.64 | E50: 6554.51 | F50: 4878.65
A51: TOTAL ANUAL | C51: =C49+C50 -> 18509.46 | D51: =D49+D50 -> 17764.28 | E51: 13184.02 | F51: =F49+F50 -> 9832.3
A53: TARIFAS TRIMESTRALES
A54: Prima para Asegurado Titular | C54: =VLOOKUP($B$19,Tablas!$A$835:$G$901,3,TRUE) -> 1539.725 | D54: =VLOOKUP($B$19,Tablas!$A$835:$G$901,4,TRUE) -> 1477.575 | E54: =VLOOKUP($B$19,Tablas!$A$835:$G$901,5,TRUE) -> 1097.8 | F54: =VLOOKUP($B$19,Tablas!$A$835:$G$901,6,TRUE) -> 817.025
A55: Prima para conyuge | C55: =IF($B$15=1,0,(VLOOKUP($F$19,Tablas!$A$835:$G$901,3,TRUE))) -> 2237.95 | D55: =IF($B$15=1,0,(VLOOKUP($F$19,Tablas!$A$835:$G$901,4,TRUE))) -> 2147.475 | E55: =IF($B$15=1,0,(VLOOKUP($F$19,Tablas!$A$835:$G$901,5,TRUE))) -> 1557.325 | F55: =IF($B$15=1,0,(VLOOKUP($F$19,Tablas!$A$835:$G$901,6,TRUE))) -> 1159.125
A56: Prima para hijo (s) | C56: =IF($B$17=0,0,(VLOOKUP($B$17,Tablas!$A$902:$G$904,3,TRUE))) -> 1004.85 | D56: =IF($B$17=0,0,(VLOOKUP($B$17,Tablas!$A$902:$G$904,4,TRUE))) -> 964.15 | E56: =IF($B$17=0,0,(VLOOKUP($B$17,Tablas!$A$902:$G$904,5,TRUE))) -> 745.8 | F56: =IF($B$17=0,0,(VLOOKUP($B$17,Tablas!$A$902:$G$904,6,TRUE))) -> 555.225
A57: Total de Prima neta | C57: =SUM(C54:C56) -> 4782.525 | D57: =SUM(D54:D56) -> 4589.2 | E57: 3400.925 | F57: 2531.375
A58: Ajuste por la variante con coaseguro fuera del país de residencia | C58: =IF('INGRESO DE DATOS'!$P$3,C57*-25%,0) -> 0 | D58: =IF('INGRESO DE DATOS'!$P$3,D57*-25%,0) -> 0 | E58: =IF('INGRESO DE DATOS'!$P$3,E57*-25%,0) -> 0 | F58: =IF('INGRESO DE DATOS'!$P$3,F57*-25%,0) -> 0
A59: Tarifa administrativa anual | C59: 75 | D59: 75 | E59: 75 | F59: 75
A60: VAT (5%) :
A61: ITBMS (7%)
A62: TOTAL de primera cuota | C62: =SUM(C57:C61) -> 4857.525 | D62: =SUM(D57:D61) -> 4664.2 | E62: 3475.925 | F62: 2606.375
A63: Costo de tarifa trimestral 2 a 4 | C63: =C62-C59 -> 4782.525 | D63: =D62-D59 -> 4589.2 | E63: 3400.925 | F63: 2531.375
A64: TOTAL ANUAL | C64: =C62+(C63*3) -> 19205.1 | D64: =D62+(D63*3) -> 18431.8 | E64: 13678.7 | F64: =F62+(F63*3) -> 10200.5
A66: TARIFAS MENSUALES
A67: Prima para Asegurado Titular | C67: =VLOOKUP($B$19,Tablas!$A$381:$G$447,3,TRUE) -> 522.5733333 | D67: =VLOOKUP($B$19,Tablas!$A$381:$G$447,4,TRUE) -> 501.48 | E67: =VLOOKUP($B$19,Tablas!$A$381:$G$447,5,TRUE) -> 372.5866667 | F67: =VLOOKUP($B$19,Tablas!$A$381:$G$447,6,TRUE) -> 277.2933333
A68: Prima para conyuge | C68: =IF($B$15=1,0,(VLOOKUP($F$19,Tablas!$A$381:$G$447,3,TRUE))) -> 759.5466667 | D68: =IF($B$15=1,0,(VLOOKUP($F$19,Tablas!$A$381:$G$447,4,TRUE))) -> 728.84 | E68: =IF($B$15=1,0,(VLOOKUP($F$19,Tablas!$A$381:$G$447,5,TRUE))) -> 528.5466667 | F68: =IF($B$15=1,0,(VLOOKUP($F$19,Tablas!$A$381:$G$447,6,TRUE))) -> 393.4
A69: Prima para hijo (s) | C69: =IF($B$17=0,0,(VLOOKUP($B$17,Tablas!$A$448:$G$450,3,TRUE))) -> 341.04 | D69: =IF($B$17=0,0,(VLOOKUP($B$17,Tablas!$A$448:$G$450,4,TRUE))) -> 327.2266667 | E69: =IF($B$17=0,0,(VLOOKUP($B$17,Tablas!$A$448:$G$450,5,TRUE))) -> 253.12 | F69: =IF($B$17=0,0,(VLOOKUP($B$17,Tablas!$A$448:$G$450,6,TRUE))) -> 188.44
A70: Total de Prima neta | C70: =SUM(C67:C69) -> 1623.16 | D70: =SUM(D67:D69) -> 1557.546667 | E70: 1154.253333 | F70: 859.1333333
A71: Ajuste por la variante con coaseguro fuera del país de residencia | C71: =IF('INGRESO DE DATOS'!$P$3,C70*-25%,0) -> 0 | D71: =IF('INGRESO DE DATOS'!$P$3,D70*-25%,0) -> 0 | E71: =IF('INGRESO DE DATOS'!$P$3,E70*-25%,0) -> 0 | F71: =IF('INGRESO DE DATOS'!$P$3,F70*-25%,0) -> 0
A72: Tarifa administrativa anual | C72: 75 | D72: 75 | E72: 75 | F72: 75
A73: VAT (5%) :
A74: ITBMS (7%)
A75: TOTAL de primera cuota | C75: =SUM(C70:C74) -> 1698.16 | D75: =SUM(D70:D74) -> 1632.546667 | E75: 1229.253333 | F75: 934.1333333
A76: Costo de Tarifa mensual de 2 a 12 | C76: =C75-C72 -> 1623.16 | D76: =D75-D72 -> 1557.546667 | E76: 1154.253333 | F76: 859.1333333
A77: TOTAL ANUAL | C77: =C75+(C76*11) -> 19552.92 | D77: =D75+(D76*11) -> 18765.56 | E77: 13926.04 | F77: =F75+(F76*11) -> 10384.6
A79: Este presupuesto solamente tiene carácter informativo y en ningún momento expresa compromiso legal para suministrarle cobertura de seguro. La emisión de una póliza de seguro Bupa está sujeta a todas las evaluaciones de riesgo por parte de Bupa y a la recepción de todos los pagos de prima requeridos.

Sheet Bupa Global Major Medical
G1: RESUMEN DE BENEFICIOS | N1: RESUMEN DE BENEFICIOS
A5: Cotización de Seguro Médico Internacional Bupa Global Major Medical Health Plan Tarifas en US$ | Validas: 1 de enero de 2024
A13: Nombre del Asegurado Titular | B13: =+'INGRESO DE DATOS'!$C$37 -> John Doe
A15: Número de adultos en la póliza | B15: =+'INGRESO DE DATOS'!$C$39 -> 2
A17: Número de Dependientes en la póliza | B17: =+'INGRESO DE DATOS'!$C$41 -> 2 | C17: =IF('INGRESO DE DATOS'!$P$2=TRUE, "Cotización para dependiente de 24 años","") -> 
A19: Edad del Asegurado Titular | B19: =+'INGRESO DE DATOS'!$C$43 -> 32 | C19: Edad del/la conyuge | E19: =+'INGRESO DE DATOS'!$C$45 -> 46
A21: Fecha de la cotización | B21: =NOW() -> 2024-01-09T15:15:16.520
A23: DEDUCIBLES | C23: PLAN 1 | D23: PLAN 2 | E23: PLAN 3
A24: En el país de residencia | C24: 7500 | D24: 10000 | E24: 20000
A25: Fuera del país de residencia | C25: 7500 | D25: 10000 | E25: 20000
A27: TARIFAS ANUALES
A28: Prima para Asegurado Titular | C28: =VLOOKUP($B$19,Tablas!$A$1138:$G$1204,3,TRUE) -> 3881 | D28: =VLOOKUP($B$19,Tablas!$A$1138:$G$1204,4,TRUE) -> 3350 | E28: =VLOOKUP($B$19,Tablas!$A$1138:$G$1204,5,TRUE) -> 2550
A29: Prima para conyuge | C29: =IF($B$15=1,0,(VLOOKUP($E$19,Tablas!$A$1138:$G$1204,3,TRUE))) -> 5358 | D29: =IF($B$15=1,0,(VLOOKUP($E$19,Tablas!$A$1138:$G$1204,4,TRUE))) -> 4702 | E29: =IF($B$15=1,0,(VLOOKUP($E$19,Tablas!$A$1138:$G$1204,5,TRUE))) -> 3567
A30: Prima para hijo (s) | C30: =IF($B$17=0,0,(VLOOKUP($B$17,Tablas!$A$1205:$G$1207,3,TRUE))) -> 2390 | D30: =IF($B$17=0,0,(VLOOKUP($B$17,Tablas!$A$1205:$G$1207,4,TRUE))) -> 2013 | E30: =IF($B$17=0,0,(VLOOKUP($B$17,Tablas!$A$1205:$G$1207,5,TRUE))) -> 1578
A31: Total de Prima neta | C31: =SUM(C28:C30) -> 11629 | D31: =SUM(D28:D30) -> 10065 | E31: =SUM(E28:E30) -> 7695
A32: Tarifa administrativa anual | C32: 75 | D32: 75 | E32: 75
A33: VAT (5%) :
A34: ITBMS (7%)
A35: TOTAL ANUAL | C35: =SUM(C31:C34) -> 11704 | D35: =SUM(D31:D34) -> 10140 | E35: 7770
A37: TARIFAS SEMESTRALES
A38: Prima para Asegurado Titular | C38: =VLOOKUP($B$19,Tablas!$A$1362:$G$1428,3,TRUE) -> 2056.93 | D38: =VLOOKUP($B$19,Tablas!$A$1362:$G$1428,5,TRUE) -> 1351.5 | E38: =VLOOKUP($B$19,Tablas!$A$1362:$G$1428,5,TRUE) -> 1351.5
A39: Prima para conyuge | C39: =IF($B$15=1,0,(VLOOKUP($E$19,Tablas!$A$1362:$G$1428,3,TRUE))) -> 2839.74 | D39: =IF($B$15=1,0,(VLOOKUP($E$19,Tablas!$A$1362:$G$1428,5,TRUE))) -> 1890.51 | E39: =IF($B$15=1,0,(VLOOKUP($E$19,Tablas!$A$1362:$G$1428,5,TRUE))) -> 1890.51
A40: Prima para hijo (s) | C40: =IF($B$17=0,0,(VLOOKUP($B$17,Tablas!$A$1429:$G$1431,3,TRUE))) -> 1266.7 | D40: =IF($B$17=0,0,(VLOOKUP($B$17,Tablas!$A$1429:$G$1431,5,TRUE))) -> 836.34 | E40: =IF($B$17=0,0,(VLOOKUP($B$17,Tablas!$A$1429:$G$1431,5,TRUE))) -> 836.34
A41: Total de Prima neta | C41: =SUM(C38:C40) -> 6163.37 | D41: =SUM(D38:D40) -> 4078.35 | E41: =SUM(E38:E40) -> 4078.35
A42: Tarifa administrativa anual | C42: 75 | D42: 75 | E42: 75
A43: VAT (5%) :
A44: ITBMS (7%)
A45: TOTAL de primera cuota | C45: =SUM(C41:C44) -> 6238.37 | D45: =SUM(D41:D44) -> 4153.35 | E45: =SUM(E41:E44) -> 4153.35
A46: Costo de segunda cuota | C46: =C45-C42 -> 6163.37 | D46: =D45-D42 -> 4078.35 | E46: =E45-E42 -> 4078.35
A47: TOTAL ANUAL | C47: =C45+C46 -> 12401.74 | D47: =D45+D46 -> 8231.7 | E47: 8231.7
A49: TARIFAS TRIMESTRALES
A50: Prima para Asegurado Titular | C50: =VLOOKUP($B$19,Tablas!$A$1287:$G$1353,3,TRUE) -> 1067.275 | D50: =VLOOKUP($B$19,Tablas!$A$1287:$G$1353,5,TRUE) -> 701.25 | E50: =VLOOKUP($B$19,Tablas!$A$1287:$G$1353,5,TRUE) -> 701.25
A51: Prima para conyuge | C51: =IF($B$15=1,0,(VLOOKUP($E$19,Tablas!$A$1287:$G$1353,3,TRUE))) -> 1473.45 | D51: =IF($B$15=1,0,(VLOOKUP($E$19,Tablas!$A$1287:$G$1353,5,TRUE))) -> 980.925 | E51: =IF($B$15=1,0,(VLOOKUP($E$19,Tablas!$A$1287:$G$1353,5,TRUE))) -> 980.925
A52: Prima para hijo (s) | C52: =IF($B$17=0,0,(VLOOKUP($B$17,Tablas!$A$1354:$G$1356,3,TRUE))) -> 657.25 | D52: =IF($B$17=0,0,(VLOOKUP($B$17,Tablas!$A$1354:$G$1356,5,TRUE))) -> 433.95 | E52: =IF($B$17=0,0,(VLOOKUP($B$17,Tablas!$A$1354:$G$1356,5,TRUE))) -> 433.95
A53: Total de Prima neta | C53: =SUM(C50:C52) -> 3197.975 | D53: =SUM(D50:D52) -> 2116.125 | E53: =SUM(E50:E52) -> 2116.125
A54: Tarifa administrativa anual | C54: 75 | D54: 75 | E54: 75
A55: VAT (5%) :
A56: ITBMS (7%)
A57: TOTAL de primera cuota | C57: =SUM(C53:C56) -> 3272.975 | D57: =SUM(D53:D56) -> 2191.125 | E57: 2191.125
A58: Costo de tarifa trimestral 2 a 4 | C58: =C57-C54 -> 3197.975 | D58: =D57-D54 -> 2116.125 | E58: =E57-E54 -> 2116.125
A59: TOTAL ANUAL | C59: =C57+(C58*3) -> 12866.9 | D59: =D57+(D58*3) -> 8539.5 | E59: 8539.5
A61: TARIFAS MENSUALES
A62: Prima para Asegurado Titular | C62: =VLOOKUP($B$19,Tablas!$A$1212:$G$1278,3,TRUE) -> 362.2266667 | D62: =VLOOKUP($B$19,Tablas!$A$1212:$G$1278,4,TRUE) -> 312.6666667 | E62: =VLOOKUP($B$19,Tablas!$A$1212:$G$1278,5,TRUE) -> 238
A63: Prima para conyuge | C63: =IF($B$15=1,0,(VLOOKUP($E$19,Tablas!$A$1212:$G$1278,3,TRUE))) -> 500.08 | D63: =IF($B$15=1,0,(VLOOKUP($E$19,Tablas!$A$1212:$G$1278,4,TRUE))) -> 438.8533333 | E63: =IF($B$15=1,0,(VLOOKUP($E$19,Tablas!$A$1212:$G$1278,5,TRUE))) -> 332.92
A64: Prima para hijo (s) | C64: =IF($B$17=0,0,(VLOOKUP($B$17,Tablas!$A$1279:$G$1281,3,TRUE))) -> 223.0666667 | D64: =IF($B$17=0,0,(VLOOKUP($B$17,Tablas!$A$1279:$G$1281,4,TRUE))) -> 187.88 | E64: =IF($B$17=0,0,(VLOOKUP($B$17,Tablas!$A$1279:$G$1281,5,TRUE))) -> 147.28
A65: Total de Prima neta | C65: =SUM(C62:C64) -> 1085.373333 | D65: =SUM(D62:D64) -> 939.4 | E65: =SUM(E62:E64) -> 718.2
A66: Tarifa administrativa anual | C66: 75 | D66: 75 | E66: 75
A67: VAT (5%) :
A68: ITBMS (7%)
A69: TOTAL de primera cuota | C69: =SUM(C65:C68) -> 1160.373333 | D69: =SUM(D65:D68) -> 1014.4 | E69: 793.2
A70: Costo de Tarifa mensual de 2 a 12 | C70: =C69-C66 -> 1085.373333 | D70: =D69-D66 -> 939.4 | E70: =E69-E66 -> 718.2
A71: TOTAL ANUAL | C71: =C69+(C70*11) -> 13099.48 | D71: =D69+(D70*11) -> 11347.8 | E71: 8693.4
A73: Este presupuesto solamente tiene carácter informativo y en ningún momento expresa compromiso legal para suministrarle cobertura de seguro. La emisión de una póliza de seguro Bupa está sujeta a todas las evaluaciones de riesgo por parte de Bupa y a la recepción de todos los pagos de prima requeridos.

Sheet Resumen Tarifas
A5: Cotización de Seguro Médico Internacional Bupa Global Major Health Plans Resumen de Tarifas Tarifas en US$ | Validas: 1 de enero de 2024
A13: Nombre del Asegurado Titular | B13: =+'INGRESO DE DATOS'!$C$37 -> John Doe
A15: Número de adultos en la póliza | B15: =+'INGRESO DE DATOS'!$C$39 -> 2
A17: Número de Dependientes en la póliza | B17: =+'INGRESO DE DATOS'!$C$41 -> 2 | C17: =IF('INGRESO DE DATOS'!$P$2=TRUE, "Cotización para dependiente de 24 años","") -> 
A19: Edad del Asegurado Titular | B19: =+'INGRESO DE DATOS'!$C$43 -> 32 | E19: Edad del/la conyuge | F19: =+'INGRESO DE DATOS'!$C$45 -> 46
A21: Fecha de la cotización | B21: =NOW() -> 2024-01-09T15:15:16.520
A23: BUPA GLOBAL ULTIMATE HEALTH PLAN
A24: DEDUCIBLES | B24: PLAN 1 | C24: PLAN 2 | D24: PLAN 3
A25: En el país de residencia | B25: $0 | C25: 1000 | D25: 2000
A26: Fuera del país de residencia | B26: $0 | C26: 1000 | D26: 2000
B27: TARIFAS ANUALES
B28: ='Bupa Global Ultimate'!C38 -> 79624 | C28: ='Bupa Global Ultimate'!D38 -> 51400 | D28: ='Bupa Global Ultimate'!E38 -> 80.25
B29: TARIFAS SEMESTRALES
B30: ='Bupa Global Ultimate'!C50 -> 42160.97 | C30: ='Bupa Global Ultimate'!D50 -> 27202.25 | D30: ='Bupa Global Ultimate'!E50 -> 0
B31: TARIFAS TRIMESTRALES
B32: ='Bupa Global Ultimate'!C63 -> 21875.975 | C32: ='Bupa Global Ultimate'!D63 -> 14114.375 | D32: ='Bupa Global Ultimate'!E63 -> 0
B33: TARIFAS MENSUALES
B34: ='Bupa Global Ultimate'!C76 -> 7424.573333 | C34: ='Bupa Global Ultimate'!D76 -> 4790.333333 | D34: ='Bupa Global Ultimate'!E76 -> 0
A35: Ahorros en tarifas de prima para Dependientes* | B35: ='Bupa Global Ultimate'!C39 -> 10149 | C35: ='Bupa Global Ultimate'!D39 -> 6547 | D35: ='Bupa Global Ultimate'!E39 -> 0
A37: BUPA GLOBAL ELITE HEALTH PLAN
A38: DEDUCIBLES | B38: PLAN 1 | C38: PLAN 2 | D38: PLAN 3 | E38: PLAN 4 | F38: PLAN 5
A39: En el país de residencia | B39: 1000 | C39: 2000 | D39: 3500 | E39: 5000 | F39: 10000
A40: Fuera del país de residencia | B40: 1000 | C40: 2000 | D40: 3500 | E40: 5000 | F40: 10000
A41: =IF('INGRESO DE DATOS'!P3=TRUE,"Variante con coaseguro fuera del país de residencia: SI","Variante con coaseguro fuera del país de residencia: NO") -> Variante con coaseguro fuera del país de residencia: NO | B41: TARIFAS ANUALES
B42: =+'Bupa Global Elite'!C40 -> 33919 | C42: =+'Bupa Global Elite'!D40 -> 29743 | D42: =+'Bupa Global Elite'!E40 -> 24591 | E42: =+'Bupa Global Elite'!F40 -> 21334 | F42: =+'Bupa Global Elite'!G40 -> 16566
B43: TARIFAS SEMESTRALES
B44: =+'Bupa Global Elite'!C53 -> 17937.32 | C44: =+'Bupa Global Elite'!D53 -> 15724.04 | D44: =+'Bupa Global Elite'!E53 -> 12993.48 | E44: =+'Bupa Global Elite'!F53 -> 11267.27 | F44: =+'Bupa Global Elite'!G53 -> 8740.23
B45: TARIFAS TRIMESTRALES
B46: =+'Bupa Global Elite'!C67 -> 9307.1 | C46: =+'Bupa Global Elite'!D67 -> 8158.7 | D46: =+'Bupa Global Elite'!E67 -> 6741.9 | E46: =+'Bupa Global Elite'!F67 -> 5846.225 | F46: =+'Bupa Global Elite'!G67 -> 4535.025
B47: TARIFAS MENSUALES
B48: =+'Bupa Global Elite'!C81 -> 3158.773333 | C48: =+'Bupa Global Elite'!D81 -> 2769.013333 | D48: =+'Bupa Global Elite'!E81 -> 2288.16 | E48: =+'Bupa Global Elite'!F81 -> 1984.173333 | F48: =+'Bupa Global Elite'!G81 -> 1539.16
A49: Ahorros en tarifas de prima para Dependientes* | B49: =+'Bupa Global Elite'!C41 -> 4366 | C49: =+'Bupa Global Elite'!D41 -> 3828 | D49: =+'Bupa Global Elite'!E41 -> 3242 | E49: =+'Bupa Global Elite'!F41 -> 2813 | F49: =+'Bupa Global Elite'!G41 -> 2183
A51: BUPA GLOBAL PREMIER HEALTH PLAN
A52: DEDUCIBLES | B52: PLAN 1 | C52: PLAN 2 | D52: PLAN 3 | E52: PLAN 4
A53: En el país de residencia | B53: 2000 | C53: 3500 | D53: 5000 | E53: 10000
A54: Fuera del país de residencia | B54: 2000 | C54: 3500 | D54: 5000 | E54: 10000
A55: =IF('INGRESO DE DATOS'!P3=TRUE,"Variante con coaseguro fuera del país de residencia: SI","Variante con coaseguro fuera del país de residencia: NO") -> Variante con coaseguro fuera del país de residencia: NO | B55: TARIFAS ANUALES
B56: =+'Bupa Global Premier'!C38 -> 24200 | C56: =+'Bupa Global Premier'!D38 -> 21967 | D56: =+'Bupa Global Premier'!E38 -> 16243 | E56: =+'Bupa Global Premier'!F38 -> 12105
B57: TARIFAS SEMESTRALES
B58: =+'Bupa Global Premier'!C50 -> 12786.25 | C58: =+'Bupa Global Premier'!D50 -> 11602.76 | D58: =+'Bupa Global Premier'!E50 -> 8569.04 | E58: =+'Bupa Global Premier'!F50 -> 6375.9
B59: TARIFAS TRIMESTRALES
B60: =+'Bupa Global Premier'!C63 -> 6634.375 | C60: =+'Bupa Global Premier'!D63 -> 6020.3 | D60: =+'Bupa Global Premier'!E63 -> 4446.2 | E60: =+'Bupa Global Premier'!F63 -> 3308.25
B61: TARIFAS MENSUALES
B62: =+'Bupa Global Premier'!C76 -> 2251.666667 | C62: =+'Bupa Global Premier'!D76 -> 2043.253333 | D62: =+'Bupa Global Premier'!E76 -> 1509.013333 | E62: =+'Bupa Global Premier'!F76 -> 1122.8
A64: BUPA GLOBAL SELECT HEALTH PLAN
A65: DEDUCIBLES | B65: PLAN 1 | C65: PLAN 2 | D65: PLAN 3 | E65: PLAN 4
A66: En el país de residencia | B66: 2000 | C66: 3500 | D66: 5000 | E66: 10000
A67: Fuera del país de residencia | B67: 2000 | C67: 3500 | D67: 5000 | E67: 10000
A68: =IF('INGRESO DE DATOS'!P3=TRUE,"Variante con coaseguro fuera del país de residencia: SI","Variante con coaseguro fuera del país de residencia: NO") -> Variante con coaseguro fuera del país de residencia: NO | B68: TARIFAS ANUALES
B69: =+'Bupa Global Select'!C38 -> 17466 | C69: =+'Bupa Global Select'!D38 -> 16763 | D69: =+'Bupa Global Select'!E38 -> 12442 | E69: =+'Bupa Global Select'!F38 -> 9280
B70: TARIFAS SEMESTRALES
B71: =+'Bupa Global Select'!C50 -> 9217.23 | C71: =+'Bupa Global Select'!D50 -> 8844.64 | D71: =+'Bupa Global Select'!E50 -> 6554.51 | E71: =+'Bupa Global Select'!F50 -> 4878.65
B72: TARIFAS TRIMESTRALES
B73: =+'Bupa Global Select'!C63 -> 4782.525 | C73: =+'Bupa Global Select'!D63 -> 4589.2 | D73: =+'Bupa Global Select'!E63 -> 3400.925 | E73: =+'Bupa Global Select'!F63 -> 2531.375
B74: TARIFAS MENSUALES
B75: =+'Bupa Global Select'!C76 -> 1623.16 | C75: =+'Bupa Global Select'!D76 -> 1557.546667 | D75: =+'Bupa Global Select'!E76 -> 1154.253333 | E75: =+'Bupa Global Select'!F76 -> 859.1333333
A77: BUPA GLOBAL MAJOR MEDICAL HEALTH PLAN
A78: DEDUCIBLES | B78: PLAN 1 | C78: PLAN 2 | D78: PLAN 3
A79: En el país de residencia | B79: 7500 | C79: 10000 | D79: 20000
A80: Fuera del país de residencia | B80: 10000 | C80: 20000 | D80: 20000
B81: TARIFAS ANUALES
B82: ='Bupa Global Major Medical'!C35 -> 11704 | C82: ='Bupa Global Major Medical'!D35 -> 10140 | D82: ='Bupa Global Major Medical'!E35 -> 7770
B83: TARIFAS SEMESTRALES
B84: ='Bupa Global Major Medical'!C46 -> 6163.37 | C84: ='Bupa Global Major Medical'!D46 -> 4078.35 | D84: ='Bupa Global Major Medical'!E46 -> 4078.35
B85: TARIFAS TRIMESTRALES
B86: ='Bupa Global Major Medical'!C58 -> 3197.975 | C86: ='Bupa Global Major Medical'!D58 -> 2116.125 | D86: ='Bupa Global Major Medical'!E58 -> 2116.125
B87: TARIFAS MENSUALES
B88: ='Bupa Global Major Medical'!C70 -> 1085.373333 | C88: ='Bupa Global Major Medical'!D70 -> 939.4 | D88: ='Bupa Global Major Medical'!E70 -> 718.2
A90: Este presupuesto solamente tiene carácter informativo y en ningún momento expresa compromiso legal para suministrarle cobertura de seguro. La emisión de una póliza de seguro Bupa está sujeta a todas las evaluaciones de riesgo por parte de Bupa y a la recepción de todos los pagos de prima requeridos. Una tarifa administrativa de US$75 se cargará automáticamente al primer pago. *Basado en un modo de pago anual

Sheet Tablas (hidden)
A2: BUPA GLOBAL ELITE | I2: FACTOR MENSUAL: | K2: 0.09333333333 | M2: Descuento de 24 años | N2: ='INGRESO DE DATOS'!P30 -> 1 | O2: Ultimate | P2: Elite | Q2: Premier | R2: Select | S2: Major Medical
A3: TARIFAS ANUALES | I3: FACTOR TRIMESTRAL: | K3: 0.275 | M3: Descuento de producto (%) | O3: ='INGRESO DE DATOS'!O39 -> 0 | P3: ='INGRESO DE DATOS'!P39 -> 0 | Q3: ='INGRESO DE DATOS'!Q39 -> 0 | R3: ='INGRESO DE DATOS'!R39 -> 0 | S3: ='INGRESO DE DATOS'!S39 -> 0
I4: FACTOR SEMIANUAL: | K4: 0.53 | M4: Factor para el descuento combinado | O4: ='INGRESO DE DATOS'!O47 -> 1 | P4: ='INGRESO DE DATOS'!P47 -> 1 | Q4: ='INGRESO DE DATOS'!Q47 -> 1 | R4: ='INGRESO DE DATOS'!R47 -> 1 | S4: ='INGRESO DE DATOS'!S47 -> 1
A5: EDAD | C5: 1000 | D5: 2000 | E5: 3500 | F5: 5000 | G5: 10000 | I5: TARIFAS BASE | O5: TARIFAS BASE CON DESCUENTO
A6: 18 | C6: =O6 -> 10334 | D6: =P6 -> 9056 | E6: 7617 | F6: 6606 | G6: 5124 | I6: 10334 | J6: 9056 | K6: 7617 | L6: 6606 | M6: 5124 | O6: =I6*$P$4 -> 10334 | P6: =J6*$P$4 -> 9056 | Q6: 7617 | R6: 6606 | S6: 5124
A7: 19 | C7: =O7 -> 10334 | D7: =P7 -> 9056 | E7: =Q7 -> 7617 | F7: =R7 -> 6606 | G7: =S7 -> 5124 | I7: 10334 | J7: 9056 | K7: 7617 | L7: 6606 | M7: 5124 | O7: =I7*$P$4 -> 10334 | P7: =J7*$P$4 -> 9056 | Q7: =K7*$P$4 -> 7617 | R7: =L7*$P$4 -> 6606 | S7: =M7*$P$4 -> 5124
A8: 20 | C8: 10334 | D8: 9056 | E8: 7617 | F8: 6606 | G8: 5124 | I8: 10334 | J8: 9056 | K8: 7617 | L8: 6606 | M8: 5124 | O8: 10334 | P8: 9056 | Q8: 7617 | R8: 6606 | S8: 5124
A9: 21 | C9: 10334 | D9: 9056 | E9: 7617 | F9: 6606 | G9: 5124 | I9: 10334 | J9: 9056 | K9: 7617 | L9: 6606 | M9: 5124 | O9: 10334 | P9: 9056 | Q9: 7617 | R9: 6606 | S9: 5124
A10: 22 | C10: 10334 | D10: 9056 | E10: 7617 | F10: 6606 | G10: 5124 | I10: 10334 | J10: 9056 | K10: 7617 | L10: 6606 | M10: 5124 | O10: 10334 | P10: 9056 | Q10: 7617 | R10: 6606 | S10: 5124
A11: 23 | C11: 10334 | D11: 9056 | E11: 7617 | F11: 6606 | G11: 5124 | I11: 10334 | J11: 9056 | K11: 7617 | L11: 6606 | M11: 5124 | O11: 10334 | P11: 9056 | Q11: 7617 | R11: 6606 | S11: 5124
A12: 24 | C12: 10334 | D12: 9056 | E12: 7617 | F12: 6606 | G12: 5124 | I12: 10334 | J12: 9056 | K12: 7617 | L12: 6606 | M12: 5124 | O12: 10334 | P12: 9056 | Q12: 7617 | R12: 6606 | S12: 5124
A13: 25 | C13: 11044 | D13: 9680 | E13: 8093 | F13: 7018 | G13: 5443 | I13: 11044 | J13: 9680 | K13: 8093 | L13: 7018 | M13: 5443 | O13: 11044 | P13: 9680 | Q13: 8093 | R13: 7018 | S13: 5443
A14: 26 | C14: 11044 | D14: 9680 | E14: 8093 | F14: 7018 | G14: 5443 | I14: 11044 | J14: 9680 | K14: 8093 | L14: 7018 | M14: 5443 | O14: 11044 | P14: 9680 | Q14: 8093 | R14: 7018 | S14: 5443
A15: 27 | C15: 11044 | D15: 9680 | E15: 8093 | F15: 7018 | G15: 5443 | I15: 11044 | J15: 9680 | K15: 8093 | L15: 7018 | M15: 5443 | O15: 11044 | P15: 9680 | Q15: 8093 | R15: 7018 | S15: 5443
A16: 28 | C16: 11044 | D16: 9680 | E16: 8093 | F16: 7018 | G16: 5443 | I16: 11044 | J16: 9680 | K16: 8093 | L16: 7018 | M16: 5443 | O16: 11044 | P16: 9680 | Q16: 8093 | R16: 7018 | S16: 5443
A17: 29 | C17: 11044 | D17: 9680 | E17: 8093 | F17: 7018 | G17: 5443 | I17: 11044 | J17: 9680 | K17: 8093 | L17: 7018 | M17: 5443 | O17: 11044 | P17: 9680 | Q17: 8093 | R17: 7018 | S17: 5443
A18: 30 | C18: 12285 | D18: 10768 | E18: 8933 | F18: 7745 | G18: 6008 | I18: 12285 | J18: 10768 | K18: 8933 | L18: 7745 | M18: 6008 | O18: 12285 | P18: 10768 | Q18: 8933 | R18: 7745 | S18: 6008
A19: 31 | C19: 12285 | D19: 10768 | E19: 8933 | F19: 7745 | G19: 6008 | I19: 12285 | J19: 10768 | K19: 8933 | L19: 7745 | M19: 6008 | O19: 12285 | P19: 10768 | Q19: 8933 | R19: 7745 | S19: 6008
A20: 32 | C20: 12285 | D20: 10768 | E20: 8933 | F20: 7745 | G20: 6008 | I20: 12285 | J20: 10768 | K20: 8933 | L20: 7745 | M20: 6008 | O20: 12285 | P20: 10768 | Q20: 8933 | R20: 7745 | S20: 6008
A21: 33 | C21: 12285 | D21: 10768 | E21: 8933 | F21: 7745 | G21: 6008 | I21: 12285 | J21: 10768 | K21: 8933 | L21: 7745 | M21: 6008 | O21: 12285 | P21: 10768 | Q21: 8933 | R21: 7745 | S21: 6008
A22: 34 | C22: 12285 | D22: 10768 | E22: 8933 | F22: 7745 | G22: 6008 | I22: 12285 | J22: 10768 | K22: 8933 | L22: 7745 | M22: 6008 | O22: 12285 | P22: 10768 | Q22: 8933 | R22: 7745 | S22: 6008
A23: 35 | C23: 13714 | D23: 12020 | E23: 9916 | F23: 8597 | G23: 6668 | I23: 13714 | J23: 12020 | K23: 9916 | L23: 8597 | M23: 6668 | O23: 13714 | P23: 12020 | Q23: 9916 | R23: 8597 | S23: 6668
A24: 36 | C24: 13714 | D24: 12020 | E24: 9916 | F24: 8597 | G24: 6668 | I24: 13714 | J24: 12020 | K24: 9916 | L24: 8597 | M24: 6668 | O24: 13714 | P24: 12020 | Q24: 9916 | R24: 8597 | S24: 6668
A25: 37 | C25: 13714 | D25: 12020 | E25: 9916 | F25: 8597 | G25: 6668 | I25: 13714 | J25: 12020 | K25: 9916 | L25: 8597 | M25: 6668 | O25: 13714 | P25: 12020 | Q25: 9916 | R25: 8597 | S25: 6668
A26: 38 | C26: 13714 | D26: 12020 | E26: 9916 | F26: 8597 | G26: 6668 | I26: 13714 | J26: 12020 | K26: 9916 | L26: 8597 | M26: 6668 | O26: 13714 | P26: 12020 | Q26: 9916 | R26: 8597 | S26: 6668
A27: 39 | C27: 13714 | D27: 12020 | E27: 9916 | F27: 8597 | G27: 6668 | I27: 13714 | J27: 12020 | K27: 9916 | L27: 8597 | M27: 6668 | O27: 13714 | P27: 12020 | Q27: 9916 | R27: 8597 | S27: 6668
A28: 40 | C28: 15366 | D28: 13466 | E28: 11059 | F28: 9589 | G28: 7438 | I28: 15366 | J28: 13466 | K28: 11059 | L28: 9589 | M28: 7438 | O28: 15366 | P28: 13466 | Q28: 11059 | R28: 9589 | S28: 7438
A29: 41 | C29: 15366 | D29: 13466 | E29: 11059 | F29: 9589 | G29: 7438 | I29: 15366 | J29: 13466 | K29: 11059 | L29: 9589 | M29: 7438 | O29: 15366 | P29: 13466 | Q29: 11059 | R29: 9589 | S29: 7438
A30: 42 | C30: 15366 | D30: 13466 | E30: 11059 | F30: 9589 | G30: 7438 | I30: 15366 | J30: 13466 | K30: 11059 | L30: 9589 | M30: 7438 | O30: 15366 | P30: 13466 | Q30: 11059 | R30: 9589 | S30: 7438
A31: 43 | C31: 15366 | D31: 13466 | E31: 11059 | F31: 9589 | G31: 7438 | I31: 15366 | J31: 13466 | K31: 11059 | L31: 9589 | M31: 7438 | O31: 15366 | P31: 13466 | Q31: 11059 | R31: 9589 | S31: 7438
A32: 44 | C32: 15366 | D32: 13466 | E32: 11059 | F32: 9589 | G32: 7438 | I32: 15366 | J32: 13466 | K32: 11059 | L32: 9589 | M32: 7438 | O32: 15366 | P32: 13466 | Q32: 11059 | R32: 9589 | S32: 7438
A33: 45 | C33: 17193 | D33: 15072 | E33: 12341 | F33: 10701 | G33: 8300 | I33: 17193 | J33: 15072 | K33: 12341 | L33: 10701 | M33: 8300 | O33: 17193 | P33: 15072 | Q33: 12341 | R33: 10701 | S33: 8300
A34: 46 | C34: 17193 | D34: 15072 | E34: 12341 | F34: 10701 | G34: 8300 | I34: 17193 | J34: 15072 | K34: 12341 | L34: 10701 | M34: 8300 | O34: 17193 | P34: 15072 | Q34: 12341 | R34: 10701 | S34: 8300
A35: 47 | C35: 17193 | D35: 15072 | E35: 12341 | F35: 10701 | G35: 8300 | I35: 17193 | J35: 15072 | K35: 12341 | L35: 10701 | M35: 8300 | O35: 17193 | P35: 15072 | Q35: 12341 | R35: 10701 | S35: 8300
A36: 48 | C36: 17193 | D36: 15072 | E36: 12341 | F36: 10701 | G36: 8300 | I36: 17193 | J36: 15072 | K36: 12341 | L36: 10701 | M36: 8300 | O36: 17193 | P36: 15072 | Q36: 12341 | R36: 10701 | S36: 8300
A37: 49 | C37: 17193 | D37: 15072 | E37: 12341 | F37: 10701 | G37: 8300 | I37: 17193 | J37: 15072 | K37: 12341 | L37: 10701 | M37: 8300 | O37: 17193 | P37: 15072 | Q37: 12341 | R37: 10701 | S37: 8300
A38: 50 | C38: 19258 | D38: 16881 | E38: 13787 | F38: 11955 | G38: 9273 | I38: 19258 | J38: 16881 | K38: 13787 | L38: 11955 | M38: 9273 | O38: 19258 | P38: 16881 | Q38: 13787 | R38: 11955 | S38: 9273
A39: 51 | C39: 19258 | D39: 16881 | E39: 13787 | F39: 11955 | G39: 9273 | I39: 19258 | J39: 16881 | K39: 13787 | L39: 11955 | M39: 9273 | O39: 19258 | P39: 16881 | Q39: 13787 | R39: 11955 | S39: 9273
A40: 52 | C40: 19258 | D40: 16881 | E40: 13787 | F40: 11955 | G40: 9273 | I40: 19258 | J40: 16881 | K40: 13787 | L40: 11955 | M40: 9273 | O40: 19258 | P40: 16881 | Q40: 13787 | R40: 11955 | S40: 9273
A41: 53 | C41: 19258 | D41: 16881 | E41: 13787 | F41: 11955 | G41: 9273 | I41: 19258 | J41: 16881 | K41: 13787 | L41: 11955 | M41: 9273 | O41: 19258 | P41: 16881 | Q41: 13787 | R41: 11955 | S41: 9273
A42: 54 | C42: 19258 | D42: 16881 | E42: 13787 | F42: 11955 | G42: 9273 | I42: 19258 | J42: 16881 | K42: 13787 | L42: 11955 | M42: 9273 | O42: 19258 | P42: 16881 | Q42: 13787 | R42: 11955 | S42: 9273
A43: 55 | C43: 21532 | D43: 18874 | E43: 15393 | F43: 13349 | G43: 10354 | I43: 21532 | J43: 18874 | K43: 15393 | L43: 13349 | M43: 10354 | O43: 21532 | P43: 18874 | Q43: 15393 | R43: 13349 | S43: 10354
A44: 56 | C44: 21532 | D44: 18874 | E44: 15393 | F44: 13349 | G44: 10354 | I44: 21532 | J44: 18874 | K44: 15393 | L44: 13349 | M44: 10354 | O44: 21532 | P44: 18874 | Q44: 15393 | R44: 13349 | S44: 10354
A45: 57 | C45: 21532 | D45: 18874 | E45: 15393 | F45: 13349 | G45: 10354 | I45: 21532 | J45: 18874 | K45: 15393 | L45: 13349 | M45: 10354 | O45: 21532 | P45: 18874 | Q45: 15393 | R45: 13349 | S45: 10354
A46: 58 | C46: 21532 | D46: 18874 | E46: 15393 | F46: 13349 | G46: 10354 | I46: 21532 | J46: 18874 | K46: 15393 | L46: 13349 | M46: 10354 | O46: 21532 | P46: 18874 | Q46: 15393 | R46: 13349 | S46: 10354
A47: 59 | C47: 21532 | D47: 18874 | E47: 15393 | F47: 13349 | G47: 10354 | I47: 21532 | J47: 18874 | K47: 15393 | L47: 13349 | M47: 10354 | O47: 21532 | P47: 18874 | Q47: 15393 | R47: 13349 | S47: 10354
A48: 60 | C48: 23045 | D48: 20199 | E48: 16462 | F48: 14277 | G48: 11073 | I48: 23045 | J48: 20199 | K48: 16462 | L48: 14277 | M48: 11073 | O48: 23045 | P48: 20199 | Q48: 16462 | R48: 14277 | S48: 11073
A49: 61 | C49: 25681 | D49: 22511 | E49: 18334 | F49: 15898 | G49: 12331 | I49: 25681 | J49: 22511 | K49: 18334 | L49: 15898 | M49: 12331 | O49: 25681 | P49: 22511 | Q49: 18334 | R49: 15898 | S49: 12331
A50: 62 | C50: 28532 | D50: 25011 | E50: 20365 | F50: 17658 | G50: 13695 | I50: 28532 | J50: 25011 | K50: 20365 | L50: 17658 | M50: 13695 | O50: 28532 | P50: 25011 | Q50: 20365 | R50: 17658 | S50: 13695
A51: 63 | C51: 31600 | D51: 27699 | E51: 22553 | F51: 19555 | G51: 15169 | I51: 31600 | J51: 27699 | K51: 22553 | L51: 19555 | M51: 15169 | O51: 31600 | P51: 27699 | Q51: 22553 | R51: 19555 | S51: 15169
A52: 64 | C52: 34885 | D52: 30574 | E52: 24899 | F52: 21591 | G52: 16746 | I52: 34885 | J52: 30574 | K52: 24899 | L52: 21591 | M52: 16746 | O52: 34885 | P52: 30574 | Q52: 24899 | R52: 21591 | S52: 16746
A53: 65 | C53: 38381 | D53: 33640 | E53: 27405 | F53: 23763 | G53: 18430 | I53: 38381 | J53: 33640 | K53: 27405 | L53: 23763 | M53: 18430 | O53: 38381 | P53: 33640 | Q53: 27405 | R53: 23763 | S53: 18430
A54: 66 | C54: 42093 | D54: 36894 | E54: 30073 | F54: 26076 | G54: 20222 | I54: 42093 | J54: 36894 | K54: 30073 | L54: 26076 | M54: 20222 | O54: 42093 | P54: 36894 | Q54: 30073 | R54: 26076 | S54: 20222
A55: 67 | C55: 46021 | D55: 40337 | E55: 32896 | F55: 28524 | G55: 22122 | I55: 46021 | J55: 40337 | K55: 32896 | L55: 28524 | M55: 22122 | O55: 46021 | P55: 40337 | Q55: 32896 | R55: 28524 | S55: 22122
A56: 68 | C56: 50162 | D56: 43967 | E56: 35877 | F56: 31109 | G56: 24126 | I56: 50162 | J56: 43967 | K56: 35877 | L56: 31109 | M56: 24126 | O56: 50162 | P56: 43967 | Q56: 35877 | R56: 31109 | S56: 24126
A57: 69 | C57: 54522 | D57: 47789 | E57: 39018 | F57: 33835 | G57: 26239 | I57: 54522 | J57: 47789 | K57: 39018 | L57: 33835 | M57: 26239 | O57: 54522 | P57: 47789 | Q57: 39018 | R57: 33835 | S57: 26239
A58: 70 | C58: 59092 | D58: 51795 | E58: 42316 | F58: 36692 | G58: 28458 | I58: 59092 | J58: 51795 | K58: 42316 | L58: 36692 | M58: 28458 | O58: 59092 | P58: 51795 | Q58: 42316 | R58: 36692 | S58: 28458
A59: 71 | C59: 63884 | D59: 55994 | E59: 45774 | F59: 39693 | G59: 30781 | I59: 63884 | J59: 55994 | K59: 45774 | L59: 39693 | M59: 30781 | O59: 63884 | P59: 55994 | Q59: 45774 | R59: 39693 | S59: 30781
A60: 72 | C60: 68883 | D60: 60379 | E60: 49394 | F60: 42829 | G60: 33216 | I60: 68883 | J60: 60379 | K60: 49394 | L60: 42829 | M60: 33216 | O60: 68883 | P60: 60379 | Q60: 49394 | R60: 42829 | S60: 33216
A61: 73 | C61: 74104 | D61: 64955 | E61: 53165 | F61: 46099 | G61: 35753 | I61: 74104 | J61: 64955 | K61: 53165 | L61: 46099 | M61: 35753 | O61: 74104 | P61: 64955 | Q61: 53165 | R61: 46099 | S61: 35753
A62: 74 | C62: 79539 | D62: 69718 | E62: 57100 | F62: 49511 | G62: 38398 | I62: 79539 | J62: 69718 | K62: 57100 | L62: 49511 | M62: 38398 | O62: 79539 | P62: 69718 | Q62: 57100 | R62: 49511 | S62: 38398
A63: 75 | C63: 85187 | D63: 74669 | E63: 61193 | F63: 53060 | G63: 41151 | I63: 85187 | J63: 74669 | K63: 61193 | L63: 53060 | M63: 41151 | O63: 85187 | P63: 74669 | Q63: 61193 | R63: 53060 | S63: 41151
A64: 76 | C64: 85187 | D64: 74669 | E64: 61193 | F64: 53060 | G64: 41151 | I64: 85187 | J64: 74669 | K64: 61193 | L64: 53060 | M64: 41151 | O64: 85187 | P64: 74669 | Q64: 61193 | R64: 53060 | S64: 41151
A65: 77 | C65: 85187 | D65: 74669 | E65: 61193 | F65: 53060 | G65: 41151 | I65: 85187 | J65: 74669 | K65: 61193 | L65: 53060 | M65: 41151 | O65: 85187 | P65: 74669 | Q65: 61193 | R65: 53060 | S65: 41151
A66: 78 | C66: 85187 | D66: 74669 | E66: 61193 | F66: 53060 | G66: 41151 | I66: 85187 | J66: 74669 | K66: 61193 | L66: 53060 | M66: 41151 | O66: 85187 | P66: 74669 | Q66: 61193 | R66: 53060 | S66: 41151
A67: 79 | C67: 85187 | D67: 74669 | E67: 61193 | F67: 53060 | G67: 41151 | I67: 85187 | J67: 74669 | K67: 61193 | L67: 53060 | M67: 41151 | O67: 85187 | P67: 74669 | Q67: 61193 | R67: 53060 | S67: 41151
A68: 80 | C68: 85187 | D68: 74669 | E68: 61193 | F68: 53060 | G68: 41151 | I68: 85187 | J68: 74669 | K68: 61193 | L68: 53060 | M68: 41151 | O68: 85187 | P68: 74669 | Q68: 61193 | R68: 53060 | S68: 41151
A69: 81 | C69: 85187 | D69: 74669 | E69: 61193 | F69: 53060 | G69: 41151 | I69: 85187 | J69: 74669 | K69: 61193 | L69: 53060 | M69: 41151 | O69: 85187 | P69: 74669 | Q69: 61193 | R69: 53060 | S69: 41151
A70: 82 | C70: 85187 | D70: 74669 | E70: 61193 | F70: 53060 | G70: 41151 | I70: 85187 | J70: 74669 | K70: 61193 | L70: 53060 | M70: 41151 | O70: 85187 | P70: 74669 | Q70: 61193 | R70: 53060 | S70: 41151
A71: 83 | C71: =O71 -> 85187 | D71: =P71 -> 74669 | E71: =Q71 -> 61193 | F71: =R71 -> 53060 | G71: =S71 -> 41151 | I71: 85187 | J71: 74669 | K71: 61193 | L71: 53060 | M71: 41151 | O71: =I71*$P$4 -> 85187 | P71: =J71*$P$4 -> 74669 | Q71: =K71*$P$4 -> 61193 | R71: =L71*$P$4 -> 53060 | S71: =M71*$P$4 -> 41151
A72: 84 | B72: o más | C72: 85187 | D72: 74669 | E72: 61193 | F72: 53060 | G72: 41151 | I72: 85187 | J72: 74669 | K72: 61193 | L72: 53060 | M72: 41151 | O72: 85187 | P72: 74669 | Q72: 61193 | R72: 53060 | S72: 41151
A73: 1 | B73: Hijo | C73: 4366 | D73: 3828 | E73: 3242 | F73: 2813 | G73: 2183 | I73: 4366 | J73: 3828 | K73: 3242 | L73: 2813 | M73: 2183 | O73: 4366 | P73: 3828 | Q73: 3242 | R73: 2813 | S73: 2183
A74: 2 | B74: Hijos | C74: 7424 | D74: 6507 | E74: 5511 | F74: 4779 | G74: 3708 | I74: 7424 | J74: 6507 | K74: 5511 | L74: 4779 | M74: 3708 | O74: 7424 | P74: 6507 | Q74: 5511 | R74: 4779 | S74: 3708
A75: 3 | B75: Hijos o más | C75: 10477 | D75: 9184 | E75: 7780 | F75: 6746 | G75: 5231 | I75: 10477 | J75: 9184 | K75: 7780 | L75: 6746 | M75: 5231 | O75: 10477 | P75: 9184 | Q75: 7780 | R75: 6746 | S75: 5231
A77: BUPA GLOBAL ELITE - MENSUALES
A79: EDAD | C79: 1000 | D79: 2000 | E79: 3500
A80: 18 | C80: =C6*$K$2 -> 964.5066667 | D80: =D6*$K$2 -> 845.2266667 | E80: 710.92 | F80: 616.56 | G80: 478.24
A81: 19 | C81: =C7*$K$2 -> 964.5066667 | D81: 845.2266667 | E81: 710.92 | F81: 616.56 | G81: 478.24
A82: 20 | C82: =C8*$K$2 -> 964.5066667 | D82: 845.2266667 | E82: 710.92 | F82: 616.56 | G82: 478.24
A83: 21 | C83: =C9*$K$2 -> 964.5066667 | D83: 845.2266667 | E83: 710.92 | F83: 616.56 | G83: 478.24
A84: 22 | C84: =C10*$K$2 -> 964.5066667 | D84: 845.2266667 | E84: 710.92 | F84: 616.56 | G84: 478.24
A85: 23 | C85: =C11*$K$2 -> 964.5066667 | D85: 845.2266667 | E85: 710.92 | F85: 616.56 | G85: 478.24
A86: 24 | C86: =C12*$K$2 -> 964.5066667 | D86: 845.2266667 | E86: 710.92 | F86: 616.56 | G86: 478.24
A87: 25 | C87: =C13*$K$2 -> 1030.773333 | D87: 903.4666667 | E87: 755.3466667 | F87: 655.0133333 | G87: 508.0133333
A88: 26 | C88: =C14*$K$2 -> 1030.773333 | D88: 903.4666667 | E88: 755.3466667 | F88: 655.0133333 | G88: 508.0133333
A89: 27 | C89: =C15*$K$2 -> 1030.773333 | D89: 903.4666667 | E89: 755.3466667 | F89: 655.0133333 | G89: 508.0133333
A90: 28 | C90: =C16*$K$2 -> 1030.773333 | D90: 903.4666667 | E90: 755.3466667 | F90: 655.0133333 | G90: 508.0133333
A91: 29 | C91: =C17*$K$2 -> 1030.773333 | D91: 903.4666667 | E91: 755.3466667 | F91: 655.0133333 | G91: 508.0133333
A92: 30 | C92: =C18*$K$2 -> 1146.6 | D92: 1005.013333 | E92: 833.7466667 | F92: 722.8666667 | G92: 560.7466667
A93: 31 | C93: =C19*$K$2 -> 1146.6 | D93: 1005.013333 | E93: 833.7466667 | F93: 722.8666667 | G93: 560.7466667
A94: 32 | C94: =C20*$K$2 -> 1146.6 | D94: 1005.013333 | E94: 833.7466667 | F94: 722.8666667 | G94: 560.7466667
A95: 33 | C95: =C21*$K$2 -> 1146.6 | D95: 1005.013333 | E95: 833.7466667 | F95: 722.8666667 | G95: 560.7466667
A96: 34 | C96: =C22*$K$2 -> 1146.6 | D96: 1005.013333 | E96: 833.7466667 | F96: 722.8666667 | G96: 560.7466667
A97: 35 | C97: =C23*$K$2 -> 1279.973333 | D97: 1121.866667 | E97: 925.4933333 | F97: 802.3866667 | G97: 622.3466667
A98: 36 | C98: =C24*$K$2 -> 1279.973333 | D98: 1121.866667 | E98: 925.4933333 | F98: 802.3866667 | G98: 622.3466667
A99: 37 | C99: =C25*$K$2 -> 1279.973333 | D99: 1121.866667 | E99: 925.4933333 | F99: 802.3866667 | G99: 622.3466667
A100: 38 | C100: =C26*$K$2 -> 1279.973333 | D100: 1121.866667 | E100: 925.4933333 | F100: 802.3866667 | G100: 622.3466667
A101: 39 | C101: =C27*$K$2 -> 1279.973333 | D101: 1121.866667 | E101: 925.4933333 | F101: 802.3866667 | G101: 622.3466667
A102: 40 | C102: =C28*$K$2 -> 1434.16 | D102: 1256.826667 | E102: 1032.173333 | F102: 894.9733333 | G102: 694.2133333
A103: 41 | C103: =C29*$K$2 -> 1434.16 | D103: 1256.826667 | E103: 1032.173333 | F103: 894.9733333 | G103: 694.2133333
A104: 42 | C104: =C30*$K$2 -> 1434.16 | D104: 1256.826667 | E104: 1032.173333 | F104: 894.9733333 | G104: 694.2133333
A105: 43 | C105: =C31*$K$2 -> 1434.16 | D105: 1256.826667 | E105: 1032.173333 | F105: 894.9733333 | G105: 694.2133333
A106: 44 | C106: =C32*$K$2 -> 1434.16 | D106: 1256.826667 | E106: 1032.173333 | F106: 894.9733333 | G106: 694.2133333
A107: 45 | C107: =C33*$K$2 -> 1604.68 | D107: 1406.72 | E107: 1151.826667 | F107: 998.76 | G107: 774.6666667
A108: 46 | C108: =C34*$K$2 -> 1604.68 | D108: 1406.72 | E108: 1151.826667 | F108: 998.76 | G108: 774.6666667
A109: 47 | C109: =C35*$K$2 -> 1604.68 | D109: 1406.72 | E109: 1151.826667 | F109: 998.76 | G109: 774.6666667
A110: 48 | C110: =C36*$K$2 -> 1604.68 | D110: 1406.72 | E110: 1151.826667 | F110: 998.76 | G110: 774.6666667
A111: 49 | C111: =C37*$K$2 -> 1604.68 | D111: 1406.72 | E111: 1151.826667 | F111: 998.76 | G111: 774.6666667
A112: 50 | C112: =C38*$K$2 -> 1797.413333 | D112: 1575.56 | E112: 1286.786667 | F112: 1115.8 | G112: 865.48
A113: 51 | C113: =C39*$K$2 -> 1797.413333 | D113: 1575.56 | E113: 1286.786667 | F113: 1115.8 | G113: 865.48
A114: 52 | C114: =C40*$K$2 -> 1797.413333 | D114: 1575.56 | E114: 1286.786667 | F114: 1115.8 | G114: 865.48
A115: 53 | C115: =C41*$K$2 -> 1797.413333 | D115: 1575.56 | E115: 1286.786667 | F115: 1115.8 | G115: 865.48
A116: 54 | C116: =C42*$K$2 -> 1797.413333 | D116: 1575.56 | E116: 1286.786667 | F116: 1115.8 | G116: 865.48
A117: 55 | C117: =C43*$K$2 -> 2009.653333 | D117: 1761.573333 | E117: 1436.68 | F117: 1245.906667 | G117: 966.3733333
A118: 56 | C118: =C44*$K$2 -> 2009.653333 | D118: 1761.573333 | E118: 1436.68 | F118: 1245.906667 | G118: 966.3733333
A119: 57 | C119: =C45*$K$2 -> 2009.653333 | D119: 1761.573333 | E119: 1436.68 | F119: 1245.906667 | G119: 966.3733333
A120: 58 | C120: =C46*$K$2 -> 2009.653333 | D120: 1761.573333 | E120: 1436.68 | F120: 1245.906667 | G120: 966.3733333
A121: 59 | C121: =C47*$K$2 -> 2009.653333 | D121: 1761.573333 | E121: 1436.68 | F121: 1245.906667 | G121: 966.3733333
A122: 60 | C122: =C48*$K$2 -> 2150.866667 | D122: 1885.24 | E122: 1536.453333 | F122: 1332.52 | G122: 1033.48
A123: 61 | C123: =C49*$K$2 -> 2396.893333 | D123: 2101.026667 | E123: 1711.173333 | F123: 1483.813333 | G123: 1150.893333
A124: 62 | C124: =C50*$K$2 -> 2662.986667 | D124: 2334.36 | E124: 1900.733333 | F124: 1648.08 | G124: 1278.2
A125: 63 | C125: =C51*$K$2 -> 2949.333333 | D125: 2585.24 | E125: 2104.946667 | F125: 1825.133333 | G125: 1415.773333
A126: 64 | C126: =C52*$K$2 -> 3255.933333 | D126: 2853.573333 | E126: 2323.906667 | F126: 2015.16 | G126: 1562.96
A127: 65 | C127: =C53*$K$2 -> 3582.226667 | D127: 3139.733333 | E127: 2557.8 | F127: 2217.88 | G127: 1720.133333
A128: 66 | C128: =C54*$K$2 -> 3928.68 | D128: 3443.44 | E128: 2806.813333 | F128: 2433.76 | G128: 1887.386667
A129: 67 | C129: =C55*$K$2 -> 4295.293333 | D129: 3764.786667 | E129: 3070.293333 | F129: 2662.24 | G129: 2064.72
A130: 68 | C130: =C56*$K$2 -> 4681.786667 | D130: 4103.586667 | E130: 3348.52 | F130: 2903.506667 | G130: 2251.76
A131: 69 | C131: =C57*$K$2 -> 5088.72 | D131: 4460.306667 | E131: 3641.68 | F131: 3157.933333 | G131: 2448.973333
A132: 70 | C132: =C58*$K$2 -> 5515.253333 | D132: 4834.2 | E132: 3949.493333 | F132: 3424.586667 | G132: 2656.08
A133: 71 | C133: =C59*$K$2 -> 5962.506667 | D133: 5226.106667 | E133: 4272.24 | F133: 3704.68 | G133: 2872.893333
A134: 72 | C134: =C60*$K$2 -> 6429.08 | D134: 5635.373333 | E134: 4610.106667 | F134: 3997.373333 | G134: 3100.16
A135: 73 | C135: =C61*$K$2 -> 6916.373333 | D135: 6062.466667 | E135: 4962.066667 | F135: 4302.573333 | G135: 3336.946667
A136: 74 | C136: =C62*$K$2 -> 7423.64 | D136: 6507.013333 | E136: 5329.333333 | F136: 4621.026667 | G136: 3583.813333
A137: 75 | C137: =C63*$K$2 -> 7950.786667 | D137: 6969.106667 | E137: 5711.346667 | F137: 4952.266667 | G137: 3840.76
A138: 76 | C138: =C64*$K$2 -> 7950.786667 | D138: 6969.106667 | E138: 5711.346667 | F138: 4952.266667 | G138: 3840.76
A139: 77 | C139: =C65*$K$2 -> 7950.786667 | D139: 6969.106667 | E139: 5711.346667 | F139: 4952.266667 | G139: 3840.76
A140: 78 | C140: =C66*$K$2 -> 7950.786667 | D140: 6969.106667 | E140: 5711.346667 | F140: 4952.266667 | G140: 3840.76
A141: 79 | C141: =C67*$K$2 -> 7950.786667 | D141: 6969.106667 | E141: 5711.346667 | F141: 4952.266667 | G141: 3840.76
A142: 80 | C142: =C68*$K$2 -> 7950.786667 | D142: 6969.106667 | E142: 5711.346667 | F142: 4952.266667 | G142: 3840.76
A143: 81 | C143: =C69*$K$2 -> 7950.786667 | D143: 6969.106667 | E143: 5711.346667 | F143: 4952.266667 | G143: 3840.76
A144: 82 | C144: =C70*$K$2 -> 7950.786667 | D144: 6969.106667 | E144: 5711.346667 | F144: 4952.266667 | G144: 3840.76
A145: 83 | C145: =C71*$K$2 -> 7950.786667 | D145: 6969.106667 | E145: 5711.346667 | F145: 4952.266667 | G145: 3840.76
A146: 84 | B146: o más | C146: =C72*$K$2 -> 7950.786667 | D146: 6969.106667 | E146: 5711.346667 | F146: 4952.266667 | G146: 3840.76
A147: 1 | B147: Hijo | C147: =C73*$K$2 -> 407.4933333 | D147: 357.28 | E147: 302.5866667 | F147: 262.5466667 | G147: 203.7466667
A148: 2 | B148: Hijos | C148: =C74*$K$2 -> 692.9066667 | D148: 607.32 | E148: 514.36 | F148: 446.04 | G148: 346.08
A149: 3 | B149: Hijos o más | C149: =C75*$K$2 -> 977.8533333 | D149: 857.1733333 | E149: 726.1333333 | F149: 629.6266667 | G149: 488.2266667
A152: BUPA GLOBAL PREMIER
A153: TARIFAS ANUALES
A155: EDAD | C155: 2000 | D155: 3500 | E155: 5000 | F155: 10000 | I155: TARIFAS BASE | N155: TARIFAS BASE COND ESCUENTO
A156: 18 | C156: =N156 -> 6756 | D156: =O156 -> 6130 | E156: 4651 | F156: 3460 | I156: 6756 | J156: 6130 | K156: 4651 | L156: 3460 | N156: =I156*$Q$4 -> 6756 | O156: =J156*$Q$4 -> 6130 | P156: 4651 | Q156: 3460
A157: 19 | C157: =N157 -> 6756 | D157: =O157 -> 6130 | E157: =P157 -> 4651 | F157: =Q157 -> 3460 | I157: 6756 | J157: 6130 | K157: 4651 | L157: 3460 | N157: =I157*$Q$4 -> 6756 | O157: =J157*$Q$4 -> 6130 | P157: =K157*$Q$4 -> 4651 | Q157: =L157*$Q$4 -> 3460
A158: 20 | C158: 6756 | D158: 6130 | E158: 4651 | F158: 3460 | I158: 6756 | J158: 6130 | K158: 4651 | L158: 3460 | N158: 6756 | O158: 6130 | P158: 4651 | Q158: 3460
A159: 21 | C159: 6756 | D159: 6130 | E159: 4651 | F159: 3460 | I159: 6756 | J159: 6130 | K159: 4651 | L159: 3460 | N159: 6756 | O159: 6130 | P159: 4651 | Q159: 3460
A160: 22 | C160: 6756 | D160: 6130 | E160: 4651 | F160: 3460 | I160: 6756 | J160: 6130 | K160: 4651 | L160: 3460 | N160: 6756 | O160: 6130 | P160: 4651 | Q160: 3460
A161: 23 | C161: 6756 | D161: 6130 | E161: 4651 | F161: 3460 | I161: 6756 | J161: 6130 | K161: 4651 | L161: 3460 | N161: 6756 | O161: 6130 | P161: 4651 | Q161: 3460
A162: 24 | C162: 6756 | D162: 6130 | E162: 4651 | F162: 3460 | I162: 6756 | J162: 6130 | K162: 4651 | L162: 3460 | N162: 6756 | O162: 6130 | P162: 4651 | Q162: 3460
A163: 25 | C163: 7218 | D163: 6551 | E163: 4919 | F163: 3661 | I163: 7218 | J163: 6551 | K163: 4919 | L163: 3661 | N163: 7218 | O163: 6551 | P163: 4919 | Q163: 3661
A164: 26 | C164: 7218 | D164: 6551 | E164: 4919 | F164: 3661 | I164: 7218 | J164: 6551 | K164: 4919 | L164: 3661 | N164: 7218 | O164: 6551 | P164: 4919 | Q164: 3661
A165: 27 | C165: 7218 | D165: 6551 | E165: 4919 | F165: 3661 | I165: 7218 | J165: 6551 | K165: 4919 | L165: 3661 | N165: 7218 | O165: 6551 | P165: 4919 | Q165: 3661
A166: 28 | C166: 7218 | D166: 6551 | E166: 4919 | F166: 3661 | I166: 7218 | J166: 6551 | K166: 4919 | L166: 3661 | N166: 7218 | O166: 6551 | P166: 4919 | Q166: 3661
A167: 29 | C167: 7218 | D167: 6551 | E167: 4919 | F167: 3661 | I167: 7218 | J167: 6551 | K167: 4919 | L167: 3661 | N167: 7218 | O167: 6551 | P167: 4919 | Q167: 3661
A168: 30 | C168: 8031 | D168: 7286 | E168: 5401 | F168: 4019 | I168: 8031 | J168: 7286 | K168: 5401 | L168: 4019 | N168: 8031 | O168: 7286 | P168: 5401 | Q168: 4019
A169: 31 | C169: 8031 | D169: 7286 | E169: 5401 | F169: 4019 | I169: 8031 | J169: 7286 | K169: 5401 | L169: 4019 | N169: 8031 | O169: 7286 | P169: 5401 | Q169: 4019
A170: 32 | C170: 8031 | D170: 7286 | E170: 5401 | F170: 4019 | I170: 8031 | J170: 7286 | K170: 5401 | L170: 4019 | N170: 8031 | O170: 7286 | P170: 5401 | Q170: 4019
A171: 33 | C171: 8031 | D171: 7286 | E171: 5401 | F171: 4019 | I171: 8031 | J171: 7286 | K171: 5401 | L171: 4019 | N171: 8031 | O171: 7286 | P171: 5401 | Q171: 4019
A172: 34 | C172: 8031 | D172: 7286 | E172: 5401 | F172: 4019 | I172: 8031 | J172: 7286 | K172: 5401 | L172: 4019 | N172: 8031 | O172: 7286 | P172: 5401 | Q172: 4019
A173: 35 | C173: 8962 | D173: 8136 | E173: 5969 | F173: 4439 | I173: 8962 | J173: 8136 | K173: 5969 | L173: 4439 | N173: 8962 | O173: 8136 | P173: 5969 | Q173: 4439
A174: 36 | C174: 8962 | D174: 8136 | E174: 5969 | F174: 4439 | I174: 8962 | J174: 8136 | K174: 5969 | L174: 4439 | N174: 8962 | O174: 8136 | P174: 5969 | Q174: 4439
A175: 37 | C175: 8962 | D175: 8136 | E175: 5969 | F175: 4439 | I175: 8962 | J175: 8136 | K175: 5969 | L175: 4439 | N175: 8962 | O175: 8136 | P175: 5969 | Q175: 4439
A176: 38 | C176: 8962 | D176: 8136 | E176: 5969 | F176: 4439 | I176: 8962 | J176: 8136 | K176: 5969 | L176: 4439 | N176: 8962 | O176: 8136 | P176: 5969 | Q176: 4439
A177: 39 | C177: 8962 | D177: 8136 | E177: 5969 | F177: 4439 | I177: 8962 | J177: 8136 | K177: 5969 | L177: 4439 | N177: 8962 | O177: 8136 | P177: 5969 | Q177: 4439
A178: 40 | C178: 10043 | D178: 9115 | E178: 6636 | F178: 4937 | I178: 10043 | J178: 9115 | K178: 6636 | L178: 4937 | N178: 10043 | O178: 9115 | P178: 6636 | Q178: 4937
A179: 41 | C179: 10043 | D179: 9115 | E179: 6636 | F179: 4937 | I179: 10043 | J179: 9115 | K179: 6636 | L179: 4937 | N179: 10043 | O179: 9115 | P179: 6636 | Q179: 4937
A180: 42 | C180: 10043 | D180: 9115 | E180: 6636 | F180: 4937 | I180: 10043 | J180: 9115 | K180: 6636 | L180: 4937 | N180: 10043 | O180: 9115 | P180: 6636 | Q180: 4937
A181: 43 | C181: 10043 | D181: 9115 | E181: 6636 | F181: 4937 | I181: 10043 | J181: 9115 | K181: 6636 | L181: 4937 | N181: 10043 | O181: 9115 | P181: 6636 | Q181: 4937
A182: 44 | C182: 10043 | D182: 9115 | E182: 6636 | F182: 4937 | I182: 10043 | J182: 9115 | K182: 6636 | L182: 4937 | N182: 10043 | O182: 9115 | P182: 6636 | Q182: 4937
A183: 45 | C183: 11241 | D183: 10203 | E183: 7387 | F183: 5495 | I183: 11241 | J183: 10203 | K183: 7387 | L183: 5495 | N183: 11241 | O183: 10203 | P183: 7387 | Q183: 5495
A184: 46 | C184: 11241 | D184: 10203 | E184: 7387 | F184: 5495 | I184: 11241 | J184: 10203 | K184: 7387 | L184: 5495 | N184: 11241 | O184: 10203 | P184: 7387 | Q184: 5495
A185: 47 | C185: 11241 | D185: 10203 | E185: 7387 | F185: 5495 | I185: 11241 | J185: 10203 | K185: 7387 | L185: 5495 | N185: 11241 | O185: 10203 | P185: 7387 | Q185: 5495
A186: 48 | C186: 11241 | D186: 10203 | E186: 7387 | F186: 5495 | I186: 11241 | J186: 10203 | K186: 7387 | L186: 5495 | N186: 11241 | O186: 10203 | P186: 7387 | Q186: 5495
A187: 49 | C187: 11241 | D187: 10203 | E187: 7387 | F187: 5495 | I187: 11241 | J187: 10203 | K187: 7387 | L187: 5495 | N187: 11241 | O187: 10203 | P187: 7387 | Q187: 5495
A188: 50 | C188: 12590 | D188: 11425 | E188: 8239 | F188: 6130 | I188: 12590 | J188: 11425 | K188: 8239 | L188: 6130 | N188: 12590 | O188: 11425 | P188: 8239 | Q188: 6130
A189: 51 | C189: 12590 | D189: 11425 | E189: 8239 | F189: 6130 | I189: 12590 | J189: 11425 | K189: 8239 | L189: 6130 | N189: 12590 | O189: 11425 | P189: 8239 | Q189: 6130
A190: 52 | C190: 12590 | D190: 11425 | E190: 8239 | F190: 6130 | I190: 12590 | J190: 11425 | K190: 8239 | L190: 6130 | N190: 12590 | O190: 11425 | P190: 8239 | Q190: 6130
A191: 53 | C191: 12590 | D191: 11425 | E191: 8239 | F191: 6130 | I191: 12590 | J191: 11425 | K191: 8239 | L191: 6130 | N191: 12590 | O191: 11425 | P191: 8239 | Q191: 6130
A192: 54 | C192: 12590 | D192: 11425 | E192: 8239 | F192: 6130 | I192: 12590 | J192: 11425 | K192: 8239 | L192: 6130 | N192: 12590 | O192: 11425 | P192: 8239 | Q192: 6130
A193: 55 | C193: 14075 | D193: 12775 | E193: 9188 | F193: 6836 | I193: 14075 | J193: 12775 | K193: 9188 | L193: 6836 | N193: 14075 | O193: 12775 | P193: 9188 | Q193: 6836
A194: 56 | C194: 14075 | D194: 12775 | E194: 9188 | F194: 6836 | I194: 14075 | J194: 12775 | K194: 9188 | L194: 6836 | N194: 14075 | O194: 12775 | P194: 9188 | Q194: 6836
A195: 57 | C195: 14075 | D195: 12775 | E195: 9188 | F195: 6836 | I195: 14075 | J195: 12775 | K195: 9188 | L195: 6836 | N195: 14075 | O195: 12775 | P195: 9188 | Q195: 6836
A196: 58 | C196: 14075 | D196: 12775 | E196: 9188 | F196: 6836 | I196: 14075 | J196: 12775 | K196: 9188 | L196: 6836 | N196: 14075 | O196: 12775 | P196: 9188 | Q196: 6836
A197: 59 | C197: 14075 | D197: 12775 | E197: 9188 | F197: 6836 | I197: 14075 | J197: 12775 | K197: 9188 | L197: 6836 | N197: 14075 | O197: 12775 | P197: 9188 | Q197: 6836
A198: 60 | C198: 15065 | D198: 13669 | E198: 9823 | F198: 7306 | I198: 15065 | J198: 13669 | K198: 9823 | L198: 7306 | N198: 15065 | O198: 13669 | P198: 9823 | Q198: 7306
A199: 61 | C199: 16788 | D199: 15235 | E199: 10930 | F199: 8132 | I199: 16788 | J199: 15235 | K199: 10930 | L199: 8132 | N199: 16788 | O199: 15235 | P199: 10930 | Q199: 8132
A200: 62 | C200: 18648 | D200: 16926 | E200: 12138 | F200: 9030 | I200: 18648 | J200: 16926 | K200: 12138 | L200: 9030 | N200: 18648 | O200: 16926 | P200: 12138 | Q200: 9030
A201: 63 | C201: 20654 | D201: 18744 | E201: 13445 | F201: 10001 | I201: 20654 | J201: 18744 | K201: 13445 | L201: 10001 | N201: 20654 | O201: 18744 | P201: 13445 | Q201: 10001
A202: 64 | C202: 22800 | D202: 20690 | E202: 14847 | F202: 11045 | I202: 22800 | J202: 20690 | K202: 14847 | L202: 11045 | N202: 22800 | O202: 20690 | P202: 14847 | Q202: 11045
A203: 65 | C203: 25085 | D203: 22762 | E203: 16344 | F203: 12158 | I203: 25085 | J203: 22762 | K203: 16344 | L203: 12158 | N203: 25085 | O203: 22762 | P203: 16344 | Q203: 12158
A204: 66 | C204: 27514 | D204: 24967 | E204: 17940 | F204: 13347 | I204: 27514 | J204: 24967 | K204: 17940 | L204: 13347 | N204: 27514 | O204: 24967 | P204: 17940 | Q204: 13347
A205: 67 | C205: 30080 | D205: 27297 | E205: 19631 | F205: 14605 | I205: 30080 | J205: 27297 | K205: 19631 | L205: 14605 | N205: 30080 | O205: 27297 | P205: 19631 | Q205: 14605
A206: 68 | C206: 32786 | D206: 29757 | E206: 21422 | F206: 15935 | I206: 32786 | J206: 29757 | K206: 21422 | L206: 15935 | N206: 32786 | O206: 29757 | P206: 21422 | Q206: 15935
... 1257 more rows
